Capital or Revenue,Directorate,Transaction Number,Date,Service Area,Expenses Type,Amount,Supplier Name
Revenue,Managing Director & Head of Paid Service,5105691779,01.10.2014,Strengthening Families,Payments to Voluntary and Other Associations,25.00,SPOTLIGHT BOUTIQUE
Revenue,Managing Director & Head of Paid Service,5105693473,08.10.2014,Public Health Core,Professional Services,"5,600.00",REDACTED PERSONAL DATA
Revenue,Director of Childrens Services,5105693887,10.10.2014,Commissioning ACL,Grants to External Bodies,"1,095.00",REDACTED PERSONAL DATA
Revenue,Head of Economy & Tourism,5105695355,17.10.2014,Properties Industrial Estates,Security of Buildings,100.00,REDACTED PERSONAL DATA
Revenue,Head of HR & Organisational Change,5105695355,17.10.2014,"Westridge, Ryde",Security of Buildings,25.00,REDACTED PERSONAL DATA
Revenue,Head of Economy & Tourism,5105695355,17.10.2014,Non-operational buildings,Security of Buildings,100.00,REDACTED PERSONAL DATA
Revenue,Head of Economy & Tourism,5105695355,17.10.2014,Non-operational buildings,Security of Buildings,100.00,REDACTED PERSONAL DATA
Revenue,Head of Economy & Tourism,5105695355,17.10.2014,Medina Adult Training Centre Empty Costs,Security of Buildings,100.00,REDACTED PERSONAL DATA
Revenue,Head of Economy & Tourism,5105695355,17.10.2014,Church View Ventnor,Security of Buildings,100.00,REDACTED PERSONAL DATA
Revenue,Director of Childrens Services,5105694633,15.10.2014,Clatterford Pupil Referral Unit (PRU),Security of Buildings,40.00,REDACTED PERSONAL DATA
Revenue,Head of Economy & Tourism,5105695355,17.10.2014,Carisbrooke Contact Centre,Security of Buildings,100.00,REDACTED PERSONAL DATA
Revenue,Director of Childrens Services,5105695355,17.10.2014,Youth- Shorwell,Security of Buildings,100.00,REDACTED PERSONAL DATA
Revenue,Head of Economy & Tourism,5105695355,17.10.2014,"Atkinson Drive, Newport",Security of Buildings,100.00,REDACTED PERSONAL DATA
Revenue,Director of Childrens Services,5105694633,15.10.2014,Old Cowes Enterprise College,Security of Buildings,"1,200.00",REDACTED PERSONAL DATA
Revenue,Director of Childrens Services,5105695355,17.10.2014,Old Cowes Enterprise College,Security of Buildings,300.00,REDACTED PERSONAL DATA
Revenue,Director of Childrens Services,5105695355,17.10.2014,Gatten & Lake Primary School Disposal,Security of Buildings,425.00,REDACTED PERSONAL DATA
Revenue,Director of Childrens Services,5105694633,15.10.2014,Hunnyhill Primary School Disposal,Security of Buildings,300.00,REDACTED PERSONAL DATA
Revenue,Director of Childrens Services,5105694633,15.10.2014,The Bay Primary School Disposal,Minor Works,20.00,REDACTED PERSONAL DATA
Revenue,Director of Childrens Services,5105694633,15.10.2014,Sandham Middle School Disposal,Security of Buildings,120.00,REDACTED PERSONAL DATA
Revenue,Director of Childrens Services,5105694633,15.10.2014,Sandham Middle School Disposal,Security of Buildings,50.00,REDACTED PERSONAL DATA
Revenue,Head of Economy & Tourism,5105695355,17.10.2014,Ryde Depot,Security of Buildings,100.00,REDACTED PERSONAL DATA
Revenue,Head of ASC & Community Wellbeing,5105696227,29.10.2014,31 Carter Avenue,Maintenance of Operational Equipment,55.00,CHRIS' DOMESTIC SERVICES
Revenue,Head of ASC & Community Wellbeing,5105693299,08.10.2014,31 Carter Avenue,Maintenance of Operational Equipment,119.99,CHRIS' DOMESTIC SERVICES
Revenue,Director of Childrens Services,5105696354,29.10.2014,Trajectory Funding,Training,"2,255.00",REDACTED PERSONAL DATA
Revenue,Director of Childrens Services,5105696354,29.10.2014,Trajectory Funding,Training,290.00,REDACTED PERSONAL DATA
Revenue,Head of Economy & Tourism,5105696252,29.10.2014,Transport Fleet Administration,Vehicle Maintenance Costs,256.81,ISLANDWIDE WINDSCREENS
Revenue,Head of Economy & Tourism,5105692280,03.10.2014,Rights of Way Operations,Vehicle Maintenance Costs,189.01,ISLANDWIDE WINDSCREENS
Revenue,Head of Economy & Tourism,5105696402,29.10.2014,Dog Service,Vehicle Maintenance Costs,65.00,ISLANDWIDE WINDSCREENS
Revenue,Director of Childrens Services,5105693467,15.10.2014,Complaints (Children & Families),Professional Services,"1,714.05",REDACTED PERSONAL DATA
Revenue,Director of Childrens Services,5105693742,17.10.2014,Complaints (Children & Families),Professional Services,"1,819.05",REDACTED PERSONAL DATA
Revenue,Director of Childrens Services,5105694128,15.10.2014,Complaints (Children & Families),Professional Services,"2,042.35",REDACTED PERSONAL DATA
Revenue,Director of Childrens Services,5105696903,31.10.2014,Thompson House Tuition Centre (PRU),Training,100.00,REDACTED PERSONAL DATA
Revenue,Director of Childrens Services,5105696903,31.10.2014,Clatterford Pupil Referral Unit (PRU),Training,50.00,REDACTED PERSONAL DATA
Revenue,Director of Childrens Services,5105696388,29.10.2014,Accreditation Centre,Training,"1,000.00",REDACTED PERSONAL DATA
Revenue,Director of Childrens Services,5105696388,29.10.2014,Accreditation Centre,Training,380.00,REDACTED PERSONAL DATA
Revenue,Managing Director & Head of Paid Service,5105694150,15.10.2014,Strengthening Families,Payment to Private Contractors,920.00,REDACTED PERSONAL DATA
Revenue,Managing Director & Head of Paid Service,5105694150,15.10.2014,Strengthening Families,Payment to Private Contractors,500.00,REDACTED PERSONAL DATA
Revenue,Director of Childrens Services,5105695375,22.10.2014,Children In Need 1,Support Children,200.00,ISLAND EQUUS
Revenue,Director of Childrens Services,5105693784,22.10.2014,Special Educational Needs Reforms Grant,Agency staff,"1,425.00",REDACTED PERSONAL DATA
Revenue,Director of Childrens Services,5105693784,22.10.2014,Special Educational Needs Reforms Grant,Agency staff,135.10,REDACTED PERSONAL DATA
Revenue,Director of Childrens Services,5105696467,29.10.2014,Short Breaks,Charges from Independent Providers,517.95,REDACTED PERSONAL DATA
Revenue,Head of Economy & Tourism,5105688864,10.10.2014,Newport Library,Professional Services,195.00,REDACTED PERSONAL DATA
Revenue,Head of ASC & Community Wellbeing,5105695580,22.10.2014,Leaseholds by LA,Accommodation Costs - Leaseholder Payments,695.89,REDACTED PERSONAL DATA
Revenue,Head of ASC & Community Wellbeing,5105695580,22.10.2014,Leaseholds by LA,Accommodation Costs - Leaseholder Payments,695.89,REDACTED PERSONAL DATA
Revenue,Head of ASC & Community Wellbeing,5105695580,22.10.2014,Leaseholds by LA,Accommodation Costs - Leaseholder Payments,695.89,REDACTED PERSONAL DATA
Revenue,Head of ASC & Community Wellbeing,5105695580,22.10.2014,Leaseholds by LA,Accommodation Costs - Leaseholder Payments,695.89,REDACTED PERSONAL DATA
Revenue,Head of ASC & Community Wellbeing,5105695580,22.10.2014,Leaseholds by LA,Accommodation Costs - Leaseholder Payments,695.89,REDACTED PERSONAL DATA
Revenue,Head of Economy & Tourism,5105695352,22.10.2014,"St Thomas Church, Ryde",Minor Works,100.00,"PETER A ATTRILL, GARDENING SERVICES"
Revenue,Managing Director & Head of Paid Service,5105695862,29.10.2014,Strengthening Families,Payments to Voluntary and Other Associations,50.00,REDACTED PERSONAL DATA
Revenue,Director of Childrens Services,5105692418,22.10.2014,LSCB (Local Safeguarding Childrens Board),Training,150.00,REDACTED PERSONAL DATA
Revenue,Director of Childrens Services,5105693348,10.10.2014,Complaints (Children & Families),Professional Services,"1,292.56",REDACTED PERSONAL DATA
Revenue,Head of Corp Gov & Monitoring Officer,5105696364,29.10.2014,Committee and Scrutiny Team,Payment to Private Contractors,"2,255.00",REDACTED PERSONAL DATA
Revenue,Head of Corp Gov & Monitoring Officer,5105696364,29.10.2014,Committee and Scrutiny Team,Payment to Private Contractors,45.00,REDACTED PERSONAL DATA
Revenue,Head of Corp Gov & Monitoring Officer,5105696364,29.10.2014,Committee and Scrutiny Team,Payment to Private Contractors,248.10,REDACTED PERSONAL DATA
Revenue,Head of ASC & Community Wellbeing,5105695600,22.10.2014,Leaseholds by LA,Accommodation Costs - Leaseholder Payments,866.67,2K PROPERTY
Revenue,Head of ASC & Community Wellbeing,5105696923,31.10.2014,Adelaide Resource Centre,Catering Purchases,46.84,3663 (BFS GROUP LTD)
Revenue,Head of ASC & Community Wellbeing,5105696932,31.10.2014,Adelaide Resource Centre,Catering Purchases,-46.84,3663 (BFS GROUP LTD)
Revenue,Head of ASC & Community Wellbeing,5105696177,24.10.2014,Adelaide Resource Centre,Catering Purchases,282.95,3663 (BFS GROUP LTD)
Revenue,Head of ASC & Community Wellbeing,5105696181,24.10.2014,Adelaide Resource Centre,Catering Purchases,67.60,3663 (BFS GROUP LTD)
Revenue,Head of ASC & Community Wellbeing,5105696181,24.10.2014,Adelaide Resource Centre,Catering Purchases,5.14,3663 (BFS GROUP LTD)
Revenue,Head of ASC & Community Wellbeing,5105696177,24.10.2014,Adelaide Resource Centre,Catering Purchases,63.88,3663 (BFS GROUP LTD)
Revenue,Head of ASC & Community Wellbeing,5105695326,22.10.2014,Adelaide Resource Centre,Catering Purchases,126.54,3663 (BFS GROUP LTD)
Revenue,Head of ASC & Community Wellbeing,5105695322,17.10.2014,Adelaide Resource Centre,Catering Purchases,10.53,3663 (BFS GROUP LTD)
Revenue,Head of ASC & Community Wellbeing,5105695341,17.10.2014,Adelaide Resource Centre,Catering Purchases,268.56,3663 (BFS GROUP LTD)
Revenue,Head of ASC & Community Wellbeing,5105695341,17.10.2014,Adelaide Resource Centre,Catering Purchases,13.72,3663 (BFS GROUP LTD)
Revenue,Head of ASC & Community Wellbeing,5105695326,22.10.2014,Adelaide Resource Centre,Catering Purchases,5.14,3663 (BFS GROUP LTD)
Revenue,Head of ASC & Community Wellbeing,5105693787,22.10.2014,Adelaide Resource Centre,Catering Purchases,140.93,3663 (BFS GROUP LTD)
Revenue,Head of ASC & Community Wellbeing,5105693787,22.10.2014,Adelaide Resource Centre,Catering Purchases,5.14,3663 (BFS GROUP LTD)
Revenue,Head of ASC & Community Wellbeing,5105693492,22.10.2014,Adelaide Resource Centre,Catering Purchases,122.58,3663 (BFS GROUP LTD)
Revenue,Head of ASC & Community Wellbeing,5105693487,10.10.2014,Adelaide Resource Centre,Catering Purchases,359.33,3663 (BFS GROUP LTD)
Revenue,Head of ASC & Community Wellbeing,5105693483,08.10.2014,Adelaide Resource Centre,Catering Purchases,290.36,3663 (BFS GROUP LTD)
Revenue,Head of ASC & Community Wellbeing,5105693483,08.10.2014,Adelaide Resource Centre,Catering Purchases,43.17,3663 (BFS GROUP LTD)
Revenue,Head of ASC & Community Wellbeing,5105693487,10.10.2014,Adelaide Resource Centre,Catering Purchases,15.87,3663 (BFS GROUP LTD)
Revenue,Head of ASC & Community Wellbeing,5105693492,22.10.2014,Adelaide Resource Centre,Catering Purchases,10.95,3663 (BFS GROUP LTD)
Revenue,Head of ASC & Community Wellbeing,5105692495,08.10.2014,Gouldings Resource Centre,Catering Purchases,345.81,3663 (BFS GROUP LTD)
Revenue,Head of ASC & Community Wellbeing,5105692495,08.10.2014,Gouldings Resource Centre,Catering Purchases,50.96,3663 (BFS GROUP LTD)
Revenue,Head of ASC & Community Wellbeing,5105693298,08.10.2014,Gouldings Resource Centre,Catering Purchases,320.18,3663 (BFS GROUP LTD)
Revenue,Head of ASC & Community Wellbeing,5105693298,08.10.2014,Gouldings Resource Centre,Catering Purchases,20.38,3663 (BFS GROUP LTD)
Revenue,Head of ASC & Community Wellbeing,5105694130,15.10.2014,Gouldings Resource Centre,Catering Purchases,342.10,3663 (BFS GROUP LTD)
Revenue,Head of ASC & Community Wellbeing,5105694130,15.10.2014,Gouldings Resource Centre,Catering Purchases,21.41,3663 (BFS GROUP LTD)
Revenue,Head of ASC & Community Wellbeing,5105695741,22.10.2014,Gouldings Resource Centre,Catering Purchases,511.67,3663 (BFS GROUP LTD)
Revenue,Head of ASC & Community Wellbeing,5105696870,31.10.2014,Gouldings Resource Centre,Catering Purchases,397.41,3663 (BFS GROUP LTD)
Revenue,Head of ASC & Community Wellbeing,5105696870,31.10.2014,Gouldings Resource Centre,Catering Purchases,15.23,3663 (BFS GROUP LTD)
Revenue,Head of ASC & Community Wellbeing,5105695814,22.10.2014,Westminster House,Catering Purchases,42.04,3663 (BFS GROUP LTD)
Revenue,Head of ASC & Community Wellbeing,5105695515,22.10.2014,Westminster House,Catering Purchases,95.38,3663 (BFS GROUP LTD)
Revenue,Head of ASC & Community Wellbeing,5105695516,22.10.2014,Westminster House,Catering Purchases,98.86,3663 (BFS GROUP LTD)
Revenue,Head of ASC & Community Wellbeing,5105692479,08.10.2014,Westminster House,Catering Purchases,108.63,3663 (BFS GROUP LTD)
Revenue,Head of ASC & Community Wellbeing,5105692307,03.10.2014,Westminster House,Catering Purchases,51.75,3663 (BFS GROUP LTD)
Revenue,Head of ASC & Community Wellbeing,5105692481,08.10.2014,Westminster House,Catering Purchases,59.07,3663 (BFS GROUP LTD)
Revenue,Head of Economy & Tourism,5105696192,24.10.2014,Ryde Sports Centre,Stock Purchases,227.74,3663 (BFS GROUP LTD)
Revenue,Head of Economy & Tourism,5105691947,01.10.2014,Fairway Sports Complex,Stock Purchases,192.19,3663 (BFS GROUP LTD)
Revenue,Head of Economy & Tourism,5105692287,03.10.2014,The Heights,Stock Purchases,275.75,3663 (BFS GROUP LTD)
Revenue,Head of Economy & Tourism,5105695771,22.10.2014,The Heights,Stock Purchases,81.41,3663 (BFS GROUP LTD)
Revenue,Head of Economy & Tourism,5105693452,08.10.2014,The Heights,Stock Purchases,77.76,3663 (BFS GROUP LTD)
Revenue,Head of Economy & Tourism,5105693452,08.10.2014,The Heights,Stock Purchases,107.07,3663 (BFS GROUP LTD)
Revenue,Head of Economy & Tourism,5105693453,08.10.2014,The Heights,Stock Purchases,285.60,3663 (BFS GROUP LTD)
Revenue,Head of Economy & Tourism,5105695777,22.10.2014,The Heights,Stock Purchases,60.46,3663 (BFS GROUP LTD)
Revenue,Head of Economy & Tourism,5105695777,22.10.2014,The Heights,Stock Purchases,13.59,3663 (BFS GROUP LTD)
Revenue,Head of Economy & Tourism,5105693834,10.10.2014,The Heights,Stock Purchases,-23.28,3663 (BFS GROUP LTD)
Revenue,Head of Economy & Tourism,5105693825,15.10.2014,The Heights,Stock Purchases,172.32,3663 (BFS GROUP LTD)
Revenue,Head of Economy & Tourism,5105693825,15.10.2014,The Heights,Stock Purchases,83.34,3663 (BFS GROUP LTD)
Revenue,Head of Economy & Tourism,5105691948,01.10.2014,The Heights,Stock Purchases,189.10,3663 (BFS GROUP LTD)
Revenue,Head of Economy & Tourism,5105692021,03.10.2014,The Heights,Stock Purchases,21.91,3663 (BFS GROUP LTD)
Revenue,Head of Economy & Tourism,5105692021,03.10.2014,The Heights,Stock Purchases,58.18,3663 (BFS GROUP LTD)
Revenue,Head of Economy & Tourism,5105692281,03.10.2014,The Heights,Stock Purchases,102.27,3663 (BFS GROUP LTD)
Revenue,Head of Economy & Tourism,5105692281,03.10.2014,The Heights,Stock Purchases,50.38,3663 (BFS GROUP LTD)
Revenue,Head of Economy & Tourism,5105691784,01.10.2014,Medina Leisure Centre,Stock Purchases,104.48,3663 (BFS GROUP LTD)
Revenue,Head of Economy & Tourism,5105691780,01.10.2014,Medina Leisure Centre,Stock Purchases,435.92,3663 (BFS GROUP LTD)
Revenue,Head of Economy & Tourism,5105694193,15.10.2014,Medina Leisure Centre,Stock Purchases,301.05,3663 (BFS GROUP LTD)
Revenue,Head of Economy & Tourism,5105693363,07.10.2014,Medina Leisure Centre,Stock Purchases,355.61,3663 (BFS GROUP LTD)
Revenue,Head of Economy & Tourism,5105693361,07.10.2014,Medina Leisure Centre,Stock Purchases,10.96,3663 (BFS GROUP LTD)
Revenue,Head of Economy & Tourism,5105696235,29.10.2014,Medina Leisure Centre,Stock Purchases,357.18,3663 (BFS GROUP LTD)
Revenue,Head of Economy & Tourism,5105696478,29.10.2014,Medina Leisure Centre,Stock Purchases,10.81,3663 (BFS GROUP LTD)
Revenue,Head of Economy & Tourism,5105696478,29.10.2014,Medina Leisure Centre,Stock Purchases,38.29,3663 (BFS GROUP LTD)
Revenue,Head of Economy & Tourism,5105692277,03.10.2014,Westridge Squash Courts,Stock Purchases,171.55,3663 (BFS GROUP LTD)
Revenue,Head of Economy & Tourism,5105695772,22.10.2014,Westridge Squash Courts,Stock Purchases,82.72,3663 (BFS GROUP LTD)
Revenue,Head of Finance & S151 Officer,5105691958,01.10.2014,Project Manager Waste Strategy,Computer Software & Consumables,461.25,4 PROJECTS LIMITED
Revenue,Head of Finance & S151 Officer,5105692288,03.10.2014,Project Manager Waste Strategy,Computer Software & Consumables,461.25,4 PROJECTS LIMITED
Revenue,Head of Finance & S151 Officer,5105692289,03.10.2014,Project Manager Waste Strategy,Computer Software & Consumables,-461.25,4 PROJECTS LIMITED
Revenue,Head of Finance & S151 Officer,5105692290,03.10.2014,Project Manager Waste Strategy,Computer Software & Consumables,461.25,4 PROJECTS LIMITED
Revenue,Head of Finance & S151 Officer,5105692291,03.10.2014,Project Manager Waste Strategy,Computer Software & Consumables,-461.25,4 PROJECTS LIMITED
Revenue,Head of ASC & Community Wellbeing,5105693541,10.10.2014,Overbrook,Minor Works,273.83,A & M APPLIANCE CARE
Revenue,Head of ASC & Community Wellbeing,5105692411,08.10.2014,Adelaide Resource Centre,Consumable Cleaning Materials,137.00,A & M APPLIANCE CARE
Revenue,Head of ASC & Community Wellbeing,5105693783,10.10.2014,Adelaide Resource Centre,Consumable Cleaning Materials,234.00,A & M APPLIANCE CARE
Revenue,Head of ASC & Community Wellbeing,5105692449,03.10.2014,Gouldings Resource Centre,Consumable Cleaning Materials,212.00,A & M APPLIANCE CARE
Revenue,Head of ASC & Community Wellbeing,5105693775,10.10.2014,Gouldings Resource Centre,Maintenance of Operational Equipment,55.00,A & M APPLIANCE CARE
Revenue,Head of ASC & Community Wellbeing,5105696592,31.10.2014,Westminster House,Maintenance of Operational Equipment,24.00,A & M APPLIANCE CARE
Revenue,Chief Fire Officer,5105692451,03.10.2014,Fire Technical Support,Stock Purchases,120.00,A & M APPLIANCE CARE
Revenue,Chief Fire Officer,5105692451,03.10.2014,Fire Technical Support,Stock Purchases,30.00,A & M APPLIANCE CARE
Revenue,Head of Economy & Tourism,5105696376,29.10.2014,October Walking Festival,Advertising & Publicity,840.00,A & N MEDIA FINANCE SERVICES LTD
Revenue,Head of ASC & Community Wellbeing,5105695586,22.10.2014,Leaseholds by LA,Accommodation Costs - Leaseholder Payments,780.00,REDACTED PERSONAL DATA
Revenue,Director of Childrens Services,5105695017,17.10.2014,Special Guardianship Order Costs,Support Children,132.69,REDACTED PERSONAL DATA
Revenue,Director of Childrens Services,5105695017,17.10.2014,Special Guardianship Order Costs,Support Children,168.39,REDACTED PERSONAL DATA
Revenue,Director of Childrens Services,5105693603,10.10.2014,Special Guardianship Order Costs,Support Children,132.69,REDACTED PERSONAL DATA
Revenue,Director of Childrens Services,5105693603,10.10.2014,Special Guardianship Order Costs,Support Children,168.39,REDACTED PERSONAL DATA
Revenue,Director of Childrens Services,5105692120,03.10.2014,Special Guardianship Order Costs,Support Children,132.69,REDACTED PERSONAL DATA
Revenue,Director of Childrens Services,5105692120,03.10.2014,Special Guardianship Order Costs,Support Children,168.39,REDACTED PERSONAL DATA
Revenue,Director of Childrens Services,5105695913,24.10.2014,Special Guardianship Order Costs,Support Children,132.69,REDACTED PERSONAL DATA
Revenue,Director of Childrens Services,5105695913,24.10.2014,Special Guardianship Order Costs,Support Children,168.39,REDACTED PERSONAL DATA
Revenue,Director of Childrens Services,5105696653,31.10.2014,Special Guardianship Order Costs,Support Children,132.69,REDACTED PERSONAL DATA
Revenue,Director of Childrens Services,5105696653,31.10.2014,Special Guardianship Order Costs,Support Children,168.39,REDACTED PERSONAL DATA
Revenue,Director of Childrens Services,5105693675,10.10.2014,Leaving Care Costs,Support Children,120.89,REDACTED PERSONAL DATA
Revenue,Director of Childrens Services,5105695089,17.10.2014,Leaving Care Costs,Support Children,120.89,REDACTED PERSONAL DATA
Revenue,Director of Childrens Services,5105692192,03.10.2014,Leaving Care Costs,Support Children,120.89,REDACTED PERSONAL DATA
Revenue,Director of Childrens Services,5105695986,24.10.2014,Leaving Care Costs,Support Children,120.89,REDACTED PERSONAL DATA
Revenue,Director of Childrens Services,5105696726,31.10.2014,Leaving Care Costs,Support Children,120.89,REDACTED PERSONAL DATA
Revenue,Director of Childrens Services,5105696726,31.10.2014,Leaving Care Costs,Support Children,138.16,REDACTED PERSONAL DATA
Revenue,Director of Childrens Services,5105692192,03.10.2014,Leaving Care Costs,Accommodation Costs - Service Users,57.50,REDACTED PERSONAL DATA
Revenue,Director of Childrens Services,5105693675,10.10.2014,Leaving Care Costs,Accommodation Costs - Service Users,57.50,REDACTED PERSONAL DATA
Revenue,Director of Childrens Services,5105695089,17.10.2014,Leaving Care Costs,Accommodation Costs - Service Users,57.50,REDACTED PERSONAL DATA
Revenue,Director of Childrens Services,5105695986,24.10.2014,Leaving Care Costs,Accommodation Costs - Service Users,57.50,REDACTED PERSONAL DATA
Revenue,Director of Childrens Services,5105696726,31.10.2014,Leaving Care Costs,Accommodation Costs - Service Users,57.50,REDACTED PERSONAL DATA
Revenue,Director of Childrens Services,5105696726,31.10.2014,Leaving Care Costs,Accommodation Costs - Service Users,65.71,REDACTED PERSONAL DATA
Revenue,Head of ASC & Community Wellbeing,5105695595,22.10.2014,Leaseholds by LA,Accommodation Costs - Leaseholder Payments,510.25,REDACTED PERSONAL DATA
Revenue,Head of ASC & Community Wellbeing,5105695595,22.10.2014,Leaseholds by LA,Accommodation Costs - Leaseholder Payments,510.25,REDACTED PERSONAL DATA
Revenue,Head of ASC & Community Wellbeing,5105695595,22.10.2014,Leaseholds by LA,Accommodation Costs - Leaseholder Payments,510.25,REDACTED PERSONAL DATA
Revenue,Head of ASC & Community Wellbeing,5105695595,22.10.2014,Leaseholds by LA,Accommodation Costs - Leaseholder Payments,510.25,REDACTED PERSONAL DATA
Revenue,Head of ASC & Community Wellbeing,5105695595,22.10.2014,Leaseholds by LA,Accommodation Costs - Leaseholder Payments,510.25,REDACTED PERSONAL DATA
Revenue,Head of ASC & Community Wellbeing,5105695595,22.10.2014,Leaseholds by LA,Accommodation Costs - Leaseholder Payments,510.25,REDACTED PERSONAL DATA
Revenue,Director of Childrens Services,5105694995,17.10.2014,Adoption Costs,Support Children,186.49,REDACTED PERSONAL DATA
Revenue,Director of Childrens Services,5105692097,03.10.2014,Adoption Costs,Support Children,186.49,REDACTED PERSONAL DATA
Revenue,Director of Childrens Services,5105693581,10.10.2014,Adoption Costs,Support Children,186.49,REDACTED PERSONAL DATA
Revenue,Director of Childrens Services,5105696630,31.10.2014,Adoption Costs,Support Children,186.49,REDACTED PERSONAL DATA
Revenue,Director of Childrens Services,5105695891,24.10.2014,Adoption Costs,Support Children,186.49,REDACTED PERSONAL DATA
Revenue,Director of Childrens Services,5105692158,03.10.2014,In-house Fostering,Boarding Out Allowances,199.00,REDACTED PERSONAL DATA
Revenue,Director of Childrens Services,5105692158,03.10.2014,In-house Fostering,Boarding Out Allowances,200.00,REDACTED PERSONAL DATA
Revenue,Director of Childrens Services,5105692158,03.10.2014,In-house Fostering,Boarding Out Allowances,242.08,REDACTED PERSONAL DATA
Revenue,Director of Childrens Services,5105693641,10.10.2014,In-house Fostering,Boarding Out Allowances,199.00,REDACTED PERSONAL DATA
Revenue,Director of Childrens Services,5105693641,10.10.2014,In-house Fostering,Boarding Out Allowances,200.00,REDACTED PERSONAL DATA
Revenue,Director of Childrens Services,5105693641,10.10.2014,In-house Fostering,Boarding Out Allowances,242.08,REDACTED PERSONAL DATA
Revenue,Director of Childrens Services,5105695055,17.10.2014,In-house Fostering,Boarding Out Allowances,242.08,REDACTED PERSONAL DATA
Revenue,Director of Childrens Services,5105695055,17.10.2014,In-house Fostering,Boarding Out Allowances,199.00,REDACTED PERSONAL DATA
Revenue,Director of Childrens Services,5105695055,17.10.2014,In-house Fostering,Boarding Out Allowances,200.00,REDACTED PERSONAL DATA
Revenue,Director of Childrens Services,5105695952,24.10.2014,In-house Fostering,Boarding Out Allowances,242.08,REDACTED PERSONAL DATA
Revenue,Director of Childrens Services,5105695952,24.10.2014,In-house Fostering,Boarding Out Allowances,199.00,REDACTED PERSONAL DATA
Revenue,Director of Childrens Services,5105695952,24.10.2014,In-house Fostering,Boarding Out Allowances,200.00,REDACTED PERSONAL DATA
Revenue,Director of Childrens Services,5105695952,24.10.2014,In-house Fostering,Boarding Out Allowances,150.00,REDACTED PERSONAL DATA
Revenue,Director of Childrens Services,5105696692,31.10.2014,In-house Fostering,Boarding Out Allowances,199.00,REDACTED PERSONAL DATA
Revenue,Director of Childrens Services,5105696692,31.10.2014,In-house Fostering,Boarding Out Allowances,200.00,REDACTED PERSONAL DATA
Revenue,Director of Childrens Services,5105696692,31.10.2014,In-house Fostering,Boarding Out Allowances,150.00,REDACTED PERSONAL DATA
Revenue,Director of Childrens Services,5105696692,31.10.2014,In-house Fostering,Boarding Out Allowances,242.08,REDACTED PERSONAL DATA
Revenue,Director of Childrens Services,5105695972,24.10.2014,Leaving Care Costs,Transport of Clients,20.20,REDACTED PERSONAL DATA
Revenue,Director of Childrens Services,5105693661,10.10.2014,Leaving Care Costs,Transport of Clients,20.20,REDACTED PERSONAL DATA
Revenue,Director of Childrens Services,5105695075,17.10.2014,Leaving Care Costs,Transport of Clients,20.20,REDACTED PERSONAL DATA
Revenue,Head of ASC & Community Wellbeing,5105695597,22.10.2014,Leaseholds by LA,Accommodation Costs - Leaseholder Payments,780.00,REDACTED PERSONAL DATA
Revenue,Head of ASC & Community Wellbeing,5105695584,22.10.2014,Leaseholds by LA,Accommodation Costs - Leaseholder Payments,649.83,REDACTED PERSONAL DATA
Revenue,Head of ASC & Community Wellbeing,5105695584,22.10.2014,Leaseholds by LA,Accommodation Costs - Leaseholder Payments,789.01,REDACTED PERSONAL DATA
Revenue,Head of ASC & Community Wellbeing,5105695584,22.10.2014,Leaseholds by LA,Accommodation Costs - Leaseholder Payments,835.08,REDACTED PERSONAL DATA
Revenue,Director of Childrens Services,5105694991,17.10.2014,Adoption Costs,Support Children,87.15,REDACTED PERSONAL DATA
Revenue,Director of Childrens Services,5105692093,03.10.2014,Adoption Costs,Support Children,87.15,REDACTED PERSONAL DATA
Revenue,Director of Childrens Services,5105693577,10.10.2014,Adoption Costs,Support Children,87.15,REDACTED PERSONAL DATA
Revenue,Director of Childrens Services,5105696626,31.10.2014,Adoption Costs,Support Children,87.15,REDACTED PERSONAL DATA
Revenue,Director of Childrens Services,5105695887,24.10.2014,Adoption Costs,Support Children,87.15,REDACTED PERSONAL DATA
Revenue,Director of Childrens Services,5105693702,10.10.2014,In-house Fostering,Boarding Out Allowances,345.83,REDACTED PERSONAL DATA
Revenue,Director of Childrens Services,5105695117,17.10.2014,In-house Fostering,Boarding Out Allowances,242.08,REDACTED PERSONAL DATA
Revenue,Director of Childrens Services,5105695117,17.10.2014,In-house Fostering,Boarding Out Allowances,150.00,REDACTED PERSONAL DATA
Revenue,Director of Childrens Services,5105696014,24.10.2014,In-house Fostering,Boarding Out Allowances,242.08,REDACTED PERSONAL DATA
Revenue,Director of Childrens Services,5105696014,24.10.2014,In-house Fostering,Boarding Out Allowances,150.00,REDACTED PERSONAL DATA
Revenue,Director of Childrens Services,5105696754,31.10.2014,In-house Fostering,Boarding Out Allowances,150.00,REDACTED PERSONAL DATA
Revenue,Director of Childrens Services,5105696754,31.10.2014,In-house Fostering,Boarding Out Allowances,242.08,REDACTED PERSONAL DATA
Revenue,Head of ASC & Community Wellbeing,5105696139,24.10.2014,Supporting People Older Persons,Payment to Private Contractors,697.20,ABBEYFIELD WEST WIGHT SOCIETY
Capital,Head of ASC & Community Wellbeing,5105695496,22.10.2014,Adelaide & Gouldings Fixtures & Fittings,"Plant, Equipment & Furniture - Capital",733.39,ABBOTTS FLOORING (IOW) LTD
Revenue,Head of ASC & Community Wellbeing,5105694196,15.10.2014,"Options,Prevention & Register Team",Computer Maintenance,446.22,ABRITAS LTD
Revenue,Managing Director & Head of Paid Service,5105692068,03.10.2014,Drug Misuse - Adults,Payment to Private Contractors,"2,750.00",AC COUNSELLING
Revenue,Managing Director & Head of Paid Service,5105692068,03.10.2014,Drug Misuse - Adults,Payment to Private Contractors,70.00,AC COUNSELLING
Revenue,Head of ASC & Community Wellbeing,5105692683,08.10.2014,Elderly Frail Residential Care,Charges from Independent Providers,"1,700.44",ACACIA CARE HOME
Revenue,Head of ASC & Community Wellbeing,5105693321,08.10.2014,Elderly Frail Residential Care,Charges from Independent Providers,728.76,ACACIA CARE HOME
Revenue,Head of ASC & Community Wellbeing,5105693321,08.10.2014,Elderly Frail Residential Care,Charges from Independent Providers,"1,700.44",ACACIA CARE HOME
Revenue,Head of ASC & Community Wellbeing,5105692683,08.10.2014,Elderly Frail Residential Care,Charges from Independent Providers,"1,700.44",ACACIA CARE HOME
Revenue,Head of ASC & Community Wellbeing,5105692683,08.10.2014,Elderly Frail Residential Care,Charges from Independent Providers,"1,700.44",ACACIA CARE HOME
Revenue,Head of ASC & Community Wellbeing,5105692683,08.10.2014,Elderly Frail Residential Care,Charges from Independent Providers,"1,700.44",ACACIA CARE HOME
Revenue,Head of ASC & Community Wellbeing,5105692683,08.10.2014,Elderly Frail Residential Care,Charges from Independent Providers,"1,700.44",ACACIA CARE HOME
Revenue,Head of ASC & Community Wellbeing,5105695625,22.10.2014,Elderly Frail Residential Care,Charges from Independent Providers,"1,153.87",ACACIA CARE HOME
Revenue,Head of ASC & Community Wellbeing,5105695755,22.10.2014,Elderly Mentally Ill Residential Care,Charges from Independent Providers,890.68,ACACIA CARE HOME
Revenue,Head of Corp Gov & Monitoring Officer,5105696203,29.10.2014,Democratic Representation & Management,Interview & recruitment expenses,44.00,ACCESS PERSONAL CHECKING SERVICES LTD
Revenue,Head of Corp Gov & Monitoring Officer,5105696203,29.10.2014,Democratic Representation & Management,Interview & recruitment expenses,6.00,ACCESS PERSONAL CHECKING SERVICES LTD
Revenue,Head of HR & Organisational Change,5105696203,29.10.2014,Human Resources Support Team,Interview & recruitment expenses,6.00,ACCESS PERSONAL CHECKING SERVICES LTD
Revenue,Head of ASC & Community Wellbeing,5105696203,29.10.2014,Plean Dene,Interview & recruitment expenses,88.00,ACCESS PERSONAL CHECKING SERVICES LTD
Revenue,Head of ASC & Community Wellbeing,5105696203,29.10.2014,Plean Dene,Interview & recruitment expenses,12.00,ACCESS PERSONAL CHECKING SERVICES LTD
Revenue,Head of ASC & Community Wellbeing,5105696203,29.10.2014,Saxonbury,Interview & recruitment expenses,6.00,ACCESS PERSONAL CHECKING SERVICES LTD
Revenue,Head of ASC & Community Wellbeing,5105696203,29.10.2014,Saxonbury,Interview & recruitment expenses,44.00,ACCESS PERSONAL CHECKING SERVICES LTD
Revenue,Head of ASC & Community Wellbeing,5105696203,29.10.2014,40 Venner Avenue,Interview & recruitment expenses,44.00,ACCESS PERSONAL CHECKING SERVICES LTD
Revenue,Head of ASC & Community Wellbeing,5105696203,29.10.2014,40 Venner Avenue,Interview & recruitment expenses,6.00,ACCESS PERSONAL CHECKING SERVICES LTD
Revenue,Head of ASC & Community Wellbeing,5105696203,29.10.2014,Highmead,Interview & recruitment expenses,18.00,ACCESS PERSONAL CHECKING SERVICES LTD
Revenue,Head of ASC & Community Wellbeing,5105696203,29.10.2014,Highmead,Interview & recruitment expenses,132.00,ACCESS PERSONAL CHECKING SERVICES LTD
Revenue,Head of ASC & Community Wellbeing,5105696203,29.10.2014,Deputyship Office,Interview & recruitment expenses,6.00,ACCESS PERSONAL CHECKING SERVICES LTD
Revenue,Head of ASC & Community Wellbeing,5105696203,29.10.2014,Deputyship Office,Interview & recruitment expenses,26.00,ACCESS PERSONAL CHECKING SERVICES LTD
Revenue,Head of ASC & Community Wellbeing,5105696203,29.10.2014,Wightcare,Interview & recruitment expenses,88.00,ACCESS PERSONAL CHECKING SERVICES LTD
Revenue,Head of ASC & Community Wellbeing,5105696203,29.10.2014,Wightcare,Interview & recruitment expenses,12.00,ACCESS PERSONAL CHECKING SERVICES LTD
Revenue,Head of ASC & Community Wellbeing,5105696203,29.10.2014,First Response,Interview & recruitment expenses,44.00,ACCESS PERSONAL CHECKING SERVICES LTD
Revenue,Head of ASC & Community Wellbeing,5105696203,29.10.2014,First Response,Interview & recruitment expenses,6.00,ACCESS PERSONAL CHECKING SERVICES LTD
Revenue,Head of ASC & Community Wellbeing,5105696203,29.10.2014,Transitions Team,Interview & recruitment expenses,44.00,ACCESS PERSONAL CHECKING SERVICES LTD
Revenue,Head of ASC & Community Wellbeing,5105696203,29.10.2014,Transitions Team,Interview & recruitment expenses,6.00,ACCESS PERSONAL CHECKING SERVICES LTD
Revenue,Head of ASC & Community Wellbeing,5105696203,29.10.2014,Adelaide Resource Centre,Interview & recruitment expenses,88.00,ACCESS PERSONAL CHECKING SERVICES LTD
Revenue,Head of ASC & Community Wellbeing,5105696203,29.10.2014,Adelaide Resource Centre,Interview & recruitment expenses,12.00,ACCESS PERSONAL CHECKING SERVICES LTD
Revenue,Head of ASC & Community Wellbeing,5105696203,29.10.2014,Gouldings Resource Centre,Interview & recruitment expenses,6.00,ACCESS PERSONAL CHECKING SERVICES LTD
Revenue,Head of ASC & Community Wellbeing,5105696203,29.10.2014,Gouldings Resource Centre,Interview & recruitment expenses,44.00,ACCESS PERSONAL CHECKING SERVICES LTD
Revenue,Head of ASC & Community Wellbeing,5105696203,29.10.2014,Westminster House,Interview & recruitment expenses,6.00,ACCESS PERSONAL CHECKING SERVICES LTD
Revenue,Head of ASC & Community Wellbeing,5105696203,29.10.2014,Westminster House,Interview & recruitment expenses,44.00,ACCESS PERSONAL CHECKING SERVICES LTD
Revenue,Head of Economy & Tourism,5105696203,29.10.2014,Leisure Management & Admin,Interview & recruitment expenses,26.00,ACCESS PERSONAL CHECKING SERVICES LTD
Revenue,Head of Economy & Tourism,5105696203,29.10.2014,Leisure Management & Admin,Interview & recruitment expenses,6.00,ACCESS PERSONAL CHECKING SERVICES LTD
Revenue,Head of Economy & Tourism,5105696203,29.10.2014,Play Development,Interview & recruitment expenses,6.00,ACCESS PERSONAL CHECKING SERVICES LTD
Revenue,Head of Economy & Tourism,5105696203,29.10.2014,Play Development,Interview & recruitment expenses,44.00,ACCESS PERSONAL CHECKING SERVICES LTD
Revenue,Head of Economy & Tourism,5105696203,29.10.2014,The Heights,Interview & recruitment expenses,12.00,ACCESS PERSONAL CHECKING SERVICES LTD
Revenue,Head of Economy & Tourism,5105696203,29.10.2014,The Heights,Interview & recruitment expenses,88.00,ACCESS PERSONAL CHECKING SERVICES LTD
Revenue,Head of Economy & Tourism,5105696203,29.10.2014,Medina Leisure Centre,Interview & recruitment expenses,132.00,ACCESS PERSONAL CHECKING SERVICES LTD
Revenue,Head of Economy & Tourism,5105696203,29.10.2014,Medina Leisure Centre,Interview & recruitment expenses,18.00,ACCESS PERSONAL CHECKING SERVICES LTD
Revenue,Director of Childrens Services,5105696203,29.10.2014,LSCB (Local Safeguarding Childrens Board),Interview & recruitment expenses,6.00,ACCESS PERSONAL CHECKING SERVICES LTD
Revenue,Director of Childrens Services,5105696203,29.10.2014,LSCB (Local Safeguarding Childrens Board),Interview & recruitment expenses,44.00,ACCESS PERSONAL CHECKING SERVICES LTD
Revenue,Director of Childrens Services,5105696203,29.10.2014,Clatterford Pupil Referral Unit (PRU),Interview & recruitment expenses,18.00,ACCESS PERSONAL CHECKING SERVICES LTD
Revenue,Director of Childrens Services,5105696203,29.10.2014,Clatterford Pupil Referral Unit (PRU),Interview & recruitment expenses,132.00,ACCESS PERSONAL CHECKING SERVICES LTD
Revenue,Head of Economy & Tourism,5105696203,29.10.2014,School Music Service,Interview & recruitment expenses,6.00,ACCESS PERSONAL CHECKING SERVICES LTD
Revenue,Head of Economy & Tourism,5105696203,29.10.2014,School Music Service,Interview & recruitment expenses,44.00,ACCESS PERSONAL CHECKING SERVICES LTD
Revenue,Head of Economy & Tourism,5105696203,29.10.2014,Music Centre,Interview & recruitment expenses,6.00,ACCESS PERSONAL CHECKING SERVICES LTD
Revenue,Director of Childrens Services,5105696203,29.10.2014,Outreach Services,Interview & recruitment expenses,44.00,ACCESS PERSONAL CHECKING SERVICES LTD
Revenue,Director of Childrens Services,5105696203,29.10.2014,Youth Offending Team,Interview & recruitment expenses,6.00,ACCESS PERSONAL CHECKING SERVICES LTD
Revenue,Director of Childrens Services,5105696203,29.10.2014,Disabled Childrens Team,Interview & recruitment expenses,44.00,ACCESS PERSONAL CHECKING SERVICES LTD
Revenue,Director of Childrens Services,5105696203,29.10.2014,Disabled Childrens Team,Interview & recruitment expenses,6.00,ACCESS PERSONAL CHECKING SERVICES LTD
Revenue,Director of Childrens Services,5105696203,29.10.2014,Direct Payments Children & Families,Interview & recruitment expenses,102.00,ACCESS PERSONAL CHECKING SERVICES LTD
Revenue,Director of Childrens Services,5105696203,29.10.2014,Direct Payments Children & Families,Interview & recruitment expenses,748.00,ACCESS PERSONAL CHECKING SERVICES LTD
Revenue,Director of Childrens Services,5105696203,29.10.2014,In-house Fostering,Interview & recruitment expenses,528.00,ACCESS PERSONAL CHECKING SERVICES LTD
Revenue,Director of Childrens Services,5105696203,29.10.2014,In-house Fostering,Interview & recruitment expenses,84.00,ACCESS PERSONAL CHECKING SERVICES LTD
Revenue,Director of Childrens Services,5105696203,29.10.2014,Beaulieu House,Interview & recruitment expenses,18.00,ACCESS PERSONAL CHECKING SERVICES LTD
Revenue,Director of Childrens Services,5105696203,29.10.2014,Beaulieu House,Interview & recruitment expenses,88.00,ACCESS PERSONAL CHECKING SERVICES LTD
Revenue,Head of Economy & Tourism,5105696203,29.10.2014,School Crossing Patrols,Interview & recruitment expenses,44.00,ACCESS PERSONAL CHECKING SERVICES LTD
Revenue,Head of Economy & Tourism,5105696203,29.10.2014,School Crossing Patrols,Interview & recruitment expenses,12.00,ACCESS PERSONAL CHECKING SERVICES LTD
Revenue,Head of Finance & S151 Officer,5105696203,29.10.2014,Community Bus Service,Interview & recruitment expenses,6.00,ACCESS PERSONAL CHECKING SERVICES LTD
Revenue,Head of Finance & S151 Officer,5105696203,29.10.2014,Community Bus Service,Interview & recruitment expenses,44.00,ACCESS PERSONAL CHECKING SERVICES LTD
Revenue,Head of Planning & Regulatory Services,5105696169,24.10.2014,Licensing Services,Interview & recruitment expenses,660.00,ACCESS PERSONAL CHECKING SERVICES LTD
Revenue,Head of Planning & Regulatory Services,5105696169,24.10.2014,Licensing Services,Professional Services,96.00,ACCESS PERSONAL CHECKING SERVICES LTD
Revenue,Head of ASC & Community Wellbeing,5105694254,15.10.2014,Elderly Frail Homecare,Charges from Independent Providers,727.16,ACORN CARE SERVICE LTD
Revenue,Head of ASC & Community Wellbeing,5105694257,15.10.2014,Elderly Frail Homecare,Charges from Independent Providers,"2,634.10",ACORN CARE SERVICE LTD
Revenue,Head of ASC & Community Wellbeing,5105694255,15.10.2014,Elderly Frail Homecare,Charges from Independent Providers,608.44,ACORN CARE SERVICE LTD
Revenue,Head of ASC & Community Wellbeing,5105694256,15.10.2014,Elderly Frail Homecare,Charges from Independent Providers,118.72,ACORN CARE SERVICE LTD
Revenue,Head of ASC & Community Wellbeing,5105694245,15.10.2014,Elderly Frail Homecare,Charges from Independent Providers,207.76,ACORN CARE SERVICE LTD
Revenue,Head of ASC & Community Wellbeing,5105694246,15.10.2014,Elderly Frail Homecare,Charges from Independent Providers,133.56,ACORN CARE SERVICE LTD
Revenue,Head of ASC & Community Wellbeing,5105694247,15.10.2014,Elderly Frail Homecare,Charges from Independent Providers,793.94,ACORN CARE SERVICE LTD
Revenue,Head of ASC & Community Wellbeing,5105694250,15.10.2014,Elderly Frail Homecare,Charges from Independent Providers,552.79,ACORN CARE SERVICE LTD
Revenue,Head of ASC & Community Wellbeing,5105694253,15.10.2014,Elderly Frail Homecare,Charges from Independent Providers,430.36,ACORN CARE SERVICE LTD
Revenue,Head of ASC & Community Wellbeing,5105694248,15.10.2014,Elderly Frail Homecare,Charges from Independent Providers,300.51,ACORN CARE SERVICE LTD
Revenue,Head of ASC & Community Wellbeing,5105694252,15.10.2014,Elderly Frail Homecare,Charges from Independent Providers,311.64,ACORN CARE SERVICE LTD
Revenue,Head of ASC & Community Wellbeing,5105694233,15.10.2014,Elderly Frail Homecare,Charges from Independent Providers,"2,337.30",ACORN CARE SERVICE LTD
Revenue,Head of ASC & Community Wellbeing,5105694234,15.10.2014,Elderly Frail Homecare,Charges from Independent Providers,237.44,ACORN CARE SERVICE LTD
Revenue,Head of ASC & Community Wellbeing,5105694235,15.10.2014,Elderly Frail Homecare,Charges from Independent Providers,"1,558.20",ACORN CARE SERVICE LTD
Revenue,Head of ASC & Community Wellbeing,5105694244,15.10.2014,Elderly Frail Homecare,Charges from Independent Providers,44.52,ACORN CARE SERVICE LTD
Revenue,Head of ASC & Community Wellbeing,5105694232,15.10.2014,Elderly Frail Homecare,Charges from Independent Providers,"2,493.12",ACORN CARE SERVICE LTD
Revenue,Head of ASC & Community Wellbeing,5105694236,15.10.2014,Elderly Frail Homecare,Charges from Independent Providers,"1,357.86",ACORN CARE SERVICE LTD
Revenue,Head of ASC & Community Wellbeing,5105694237,15.10.2014,Elderly Frail Homecare,Charges from Independent Providers,385.84,ACORN CARE SERVICE LTD
Revenue,Head of ASC & Community Wellbeing,5105694238,15.10.2014,Elderly Frail Homecare,Charges from Independent Providers,"1,157.52",ACORN CARE SERVICE LTD
Revenue,Head of ASC & Community Wellbeing,5105694239,15.10.2014,Elderly Frail Homecare,Charges from Independent Providers,831.04,ACORN CARE SERVICE LTD
Revenue,Head of ASC & Community Wellbeing,5105694241,15.10.2014,Elderly Frail Homecare,Charges from Independent Providers,534.24,ACORN CARE SERVICE LTD
Revenue,Head of ASC & Community Wellbeing,5105694242,15.10.2014,Elderly Frail Homecare,Charges from Independent Providers,727.16,ACORN CARE SERVICE LTD
Revenue,Head of ASC & Community Wellbeing,5105694243,15.10.2014,Elderly Frail Homecare,Charges from Independent Providers,103.88,ACORN CARE SERVICE LTD
Revenue,Head of ASC & Community Wellbeing,5105694240,15.10.2014,Elderly Frail Homecare,Charges from Independent Providers,140.98,ACORN CARE SERVICE LTD
Revenue,Head of ASC & Community Wellbeing,5105694259,15.10.2014,Elderly Frail Homecare,Charges from Independent Providers,586.18,ACORN CARE SERVICE LTD
Revenue,Head of ASC & Community Wellbeing,5105694261,15.10.2014,Elderly Frail Homecare,Charges from Independent Providers,222.60,ACORN CARE SERVICE LTD
Revenue,Head of ASC & Community Wellbeing,5105694273,15.10.2014,Elderly Frail Homecare,Charges from Independent Providers,565.11,ACORN CARE SERVICE LTD
Revenue,Head of ASC & Community Wellbeing,5105695393,22.10.2014,Elderly Frail Homecare,Charges from Independent Providers,330.19,ACORN CARE SERVICE LTD
Revenue,Head of ASC & Community Wellbeing,5105694275,15.10.2014,Elderly Frail Homecare,Charges from Independent Providers,300.51,ACORN CARE SERVICE LTD
Revenue,Head of ASC & Community Wellbeing,5105694276,15.10.2014,Elderly Frail Homecare,Charges from Independent Providers,207.76,ACORN CARE SERVICE LTD
Revenue,Head of ASC & Community Wellbeing,5105694267,15.10.2014,Elderly Frail Homecare,Charges from Independent Providers,59.36,ACORN CARE SERVICE LTD
Revenue,Head of ASC & Community Wellbeing,5105694265,15.10.2014,Elderly Frail Homecare,Charges from Independent Providers,511.98,ACORN CARE SERVICE LTD
Revenue,Head of ASC & Community Wellbeing,5105694266,15.10.2014,Elderly Frail Homecare,Charges from Independent Providers,519.40,ACORN CARE SERVICE LTD
Revenue,Head of ASC & Community Wellbeing,5105694262,15.10.2014,Elderly Frail Homecare,Charges from Independent Providers,486.01,ACORN CARE SERVICE LTD
Revenue,Head of ASC & Community Wellbeing,5105694272,15.10.2014,Elderly Frail Homecare,Charges from Independent Providers,400.68,ACORN CARE SERVICE LTD
Revenue,Head of ASC & Community Wellbeing,5105694264,15.10.2014,Elderly Frail Homecare,Charges from Independent Providers,415.52,ACORN CARE SERVICE LTD
Revenue,Head of ASC & Community Wellbeing,5105694270,15.10.2014,Elderly Frail Homecare,Charges from Independent Providers,192.92,ACORN CARE SERVICE LTD
Revenue,Head of ASC & Community Wellbeing,5105694268,15.10.2014,Elderly Frail Homecare,Charges from Independent Providers,497.14,ACORN CARE SERVICE LTD
Revenue,Head of ASC & Community Wellbeing,5105694274,15.10.2014,Elderly Frail Homecare,Regular Respite Care,29.68,ACORN CARE SERVICE LTD
Revenue,Head of ASC & Community Wellbeing,5105694260,15.10.2014,Elderly Frail Homecare,Regular Respite Care,118.72,ACORN CARE SERVICE LTD
Revenue,Head of ASC & Community Wellbeing,5105695394,22.10.2014,Elderly Frail Homecare,Regular Respite Care,29.68,ACORN CARE SERVICE LTD
Revenue,Head of ASC & Community Wellbeing,5105694251,15.10.2014,Elderly Frail Homecare,Regular Respite Care,237.44,ACORN CARE SERVICE LTD
Revenue,Head of ASC & Community Wellbeing,5105694249,15.10.2014,Elderly Frail Homecare,Regular Respite Care,118.72,ACORN CARE SERVICE LTD
Revenue,Head of ASC & Community Wellbeing,5105694258,15.10.2014,Elderly Frail Homecare,Regular Respite Care,118.72,ACORN CARE SERVICE LTD
Revenue,Head of ASC & Community Wellbeing,5105694263,15.10.2014,Elderly Frail Homecare,Regular Respite Care,118.72,ACORN CARE SERVICE LTD
Revenue,Head of ASC & Community Wellbeing,5105694269,15.10.2014,Elderly Frail Homecare,Regular Respite Care,118.72,ACORN CARE SERVICE LTD
Revenue,Head of ASC & Community Wellbeing,5105694271,15.10.2014,Elderly Frail Homecare,Regular Respite Care,89.04,ACORN CARE SERVICE LTD
Revenue,Head of Finance & S151 Officer,5105696800,31.10.2014,Concessionary Fares- Over 60s,Payment to Private Contractors,"2,500.00",ACT -APPLIED CARD TECHNOLOGIES LTD
Revenue,Chief Fire Officer,5105691769,01.10.2014,Fire Technical Support,Vehicle Maintenance Costs,4.04,ADAMS MOREY LTD
Revenue,Chief Fire Officer,5105691769,01.10.2014,Fire Technical Support,Vehicle Maintenance Costs,4.04,ADAMS MOREY LTD
Revenue,Chief Fire Officer,5105691769,01.10.2014,Fire Technical Support,Vehicle Maintenance Costs,49.86,ADAMS MOREY LTD
Revenue,Chief Fire Officer,5105691769,01.10.2014,Fire Technical Support,Vehicle Maintenance Costs,10.20,ADAMS MOREY LTD
Revenue,Chief Fire Officer,5105691769,01.10.2014,Fire Technical Support,Vehicle Maintenance Costs,10.20,ADAMS MOREY LTD
Revenue,Chief Fire Officer,5105691769,01.10.2014,Fire Technical Support,Vehicle Maintenance Costs,6.05,ADAMS MOREY LTD
Revenue,Chief Fire Officer,5105691769,01.10.2014,Fire Technical Support,Vehicle Maintenance Costs,6.05,ADAMS MOREY LTD
Revenue,Chief Fire Officer,5105691767,01.10.2014,Fire Technical Support,Vehicle Maintenance Costs,40.00,ADAMS MOREY LTD
Revenue,Chief Fire Officer,5105691777,01.10.2014,Fire Technical Support,Vehicle Maintenance Costs,50.12,ADAMS MOREY LTD
Revenue,Chief Fire Officer,5105691777,01.10.2014,Fire Technical Support,Vehicle Maintenance Costs,8.30,ADAMS MOREY LTD
Revenue,Chief Fire Officer,5105691777,01.10.2014,Fire Technical Support,Vehicle Maintenance Costs,5.51,ADAMS MOREY LTD
Revenue,Chief Fire Officer,5105691777,01.10.2014,Fire Technical Support,Vehicle Maintenance Costs,8.71,ADAMS MOREY LTD
Revenue,Chief Fire Officer,5105693762,10.10.2014,Fire Technical Support,Vehicle Maintenance Costs,40.00,ADAMS MOREY LTD
Revenue,Chief Fire Officer,5105694175,17.10.2014,Fire Technical Support,Vehicle Maintenance Costs,285.34,ADAMS MOREY LTD
Revenue,Chief Fire Officer,5105694638,15.10.2014,Fire Technical Support,Vehicle Maintenance Costs,14.50,ADAMS MOREY LTD
Revenue,Chief Fire Officer,5105694646,22.10.2014,Fire Technical Support,Vehicle Maintenance Costs,-14.50,ADAMS MOREY LTD
Revenue,Chief Fire Officer,5105693447,10.10.2014,Fire Technical Support,Vehicle Maintenance Costs,21.75,ADAMS MOREY LTD
Revenue,Chief Fire Officer,5105692517,15.10.2014,Fire Technical Support,Vehicle Maintenance Costs,14.50,ADAMS MOREY LTD
Revenue,Chief Fire Officer,5105692467,15.10.2014,Fire Technical Support,Vehicle Maintenance Costs,151.76,ADAMS MOREY LTD
Revenue,Chief Fire Officer,5105692467,15.10.2014,Fire Technical Support,Vehicle Maintenance Costs,14.66,ADAMS MOREY LTD
Revenue,Chief Fire Officer,5105692467,15.10.2014,Fire Technical Support,Vehicle Maintenance Costs,14.66,ADAMS MOREY LTD
Revenue,Chief Fire Officer,5105692470,08.10.2014,Fire Technical Support,Vehicle Maintenance Costs,293.04,ADAMS MOREY LTD
Revenue,Chief Fire Officer,5105692472,08.10.2014,Fire Technical Support,Vehicle Maintenance Costs,14.50,ADAMS MOREY LTD
Revenue,Chief Fire Officer,5105692466,15.10.2014,Fire Technical Support,Vehicle Maintenance Costs,14.50,ADAMS MOREY LTD
Revenue,Chief Fire Officer,5105696432,29.10.2014,Fire Technical Support,Vehicle Maintenance Costs,14.50,ADAMS MOREY LTD
Revenue,Chief Fire Officer,5105696186,24.10.2014,Fire Technical Support,Vehicle Maintenance Costs,6.44,ADAMS MOREY LTD
Revenue,Chief Fire Officer,5105696186,24.10.2014,Fire Technical Support,Vehicle Maintenance Costs,6.30,ADAMS MOREY LTD
Revenue,Chief Fire Officer,5105696196,24.10.2014,Fire Technical Support,Vehicle Maintenance Costs,5.01,ADAMS MOREY LTD
Revenue,Chief Fire Officer,5105696196,24.10.2014,Fire Technical Support,Vehicle Maintenance Costs,5.50,ADAMS MOREY LTD
Revenue,Chief Fire Officer,5105696196,24.10.2014,Fire Technical Support,Vehicle Maintenance Costs,8.96,ADAMS MOREY LTD
Revenue,Chief Fire Officer,5105696183,24.10.2014,Fire Technical Support,Vehicle Maintenance Costs,48.00,ADAMS MOREY LTD
Revenue,Chief Fire Officer,5105696093,24.10.2014,Fire Technical Support,Vehicle Maintenance Costs,14.50,ADAMS MOREY LTD
Revenue,Chief Fire Officer,5105695351,22.10.2014,Fire Technical Support,Vehicle Maintenance Costs,27.88,ADAMS MOREY LTD
Revenue,Chief Fire Officer,5105695340,17.10.2014,Fire Technical Support,Vehicle Maintenance Costs,62.57,ADAMS MOREY LTD
Capital,Chief Fire Officer,5105691991,03.10.2014,Fire Capital Projects,Vehicle Leasing and Acquisition,220.00,ADAMS MOREY LTD
Capital,Chief Fire Officer,5105691769,01.10.2014,Fire Capital Projects,Vehicle Leasing and Acquisition,22.53,ADAMS MOREY LTD
Capital,Chief Fire Officer,5105691769,01.10.2014,Fire Capital Projects,Vehicle Leasing and Acquisition,29.22,ADAMS MOREY LTD
Capital,Chief Fire Officer,5105692469,08.10.2014,Fire Capital Projects,Vehicle Leasing and Acquisition,295.00,ADAMS MOREY LTD
Capital,Chief Fire Officer,5105692469,08.10.2014,Fire Capital Projects,Vehicle Leasing and Acquisition,22.96,ADAMS MOREY LTD
Capital,Chief Fire Officer,5105696208,24.10.2014,Fire Capital Projects,Vehicle Leasing and Acquisition,42.40,ADAMS MOREY LTD
Capital,Chief Fire Officer,5105696208,24.10.2014,Fire Capital Projects,Vehicle Leasing and Acquisition,35.40,ADAMS MOREY LTD
Revenue,Head of Economy & Tourism,5105693488,10.10.2014,Crematorium,Maintenance of Operational Equipment,198.00,ADCOCK REFRIGERATION
Revenue,Managing Director & Head of Paid Service,5105693883,15.10.2014,Drug Misuse - Adults,Payment to Private Contractors,"1,180.00",ADDICTION RECOVERY CENTRE (ARC)
Revenue,Head of ASC & Community Wellbeing,5105692557,08.10.2014,Elderly Frail Residential Care,Charges from Independent Providers,"1,812.44",ADIEMUS CARE LTD
Revenue,Director of Childrens Services,5105692059,08.10.2014,Children In Need 2,Agency staff,"1,850.00",AFFINITY WORKFORCE
Revenue,Director of Childrens Services,5105692059,08.10.2014,Children In Need 2,Agency staff,22.05,AFFINITY WORKFORCE
Revenue,Director of Childrens Services,5105691396,03.10.2014,Children In Need 2,Agency staff,"1,850.00",AFFINITY WORKFORCE
Revenue,Director of Childrens Services,5105691396,03.10.2014,Children In Need 2,Agency staff,48.83,AFFINITY WORKFORCE
Revenue,Managing Director & Head of Paid Service,5105696873,31.10.2014,Contraception,Payment to Private Contractors,770.00,ALBERT STREET PRACTICE
Revenue,Managing Director & Head of Paid Service,5105696873,31.10.2014,NHS Health Check Programme,Payment to Private Contractors,"1,075.00",ALBERT STREET PRACTICE
Revenue,Managing Director & Head of Paid Service,5105696873,31.10.2014,STI Tests & Treatment,Payment to Private Contractors,35.00,ALBERT STREET PRACTICE
Revenue,Managing Director & Head of Paid Service,5105696873,31.10.2014,Stop Smoking Services & Interventions,Payment to Private Contractors,"1,040.00",ALBERT STREET PRACTICE
Revenue,Head of Economy & Tourism,5105695362,17.10.2014,Dinosaur Isle Museum (Sandown Geology),General Materials,43.80,ALEC TIRANTI LTD
Revenue,Head of Economy & Tourism,5105695362,17.10.2014,Dinosaur Isle Museum (Sandown Geology),General Materials,43.80,ALEC TIRANTI LTD
Revenue,Head of Economy & Tourism,5105695362,17.10.2014,Dinosaur Isle Museum (Sandown Geology),General Materials,18.69,ALEC TIRANTI LTD
Revenue,Head of Planning & Regulatory Services,5105691992,03.10.2014,Development Control,Advertising & Publicity,177.83,ALEXANDER ADVERTISING (INT) LTD
Revenue,Head of Planning & Regulatory Services,5105695762,22.10.2014,Development Control,Advertising & Publicity,209.21,ALEXANDER ADVERTISING (INT) LTD
Revenue,Head of Planning & Regulatory Services,5105695760,22.10.2014,Development Control,Advertising & Publicity,251.05,ALEXANDER ADVERTISING (INT) LTD
Revenue,Head of Planning & Regulatory Services,5105696863,31.10.2014,Development Control,Advertising & Publicity,135.99,ALEXANDER ADVERTISING (INT) LTD
Revenue,Director of Childrens Services,5105691126,03.10.2014,Complaints (Children & Families),Professional Services,488.50,ALISON CAMPBELL LTD
Revenue,Director of Childrens Services,5105693384,17.10.2014,Support for Looked After Children - Disabled Childrens Team,Professional Services,166.00,ALPHA (IOW) LTD
Revenue,Director of Childrens Services,5105693384,17.10.2014,Independ. & Non-Maint. Special Schls & Independ. Specialist Provision,Transport of Clients,166.00,ALPHA (IOW) LTD
Revenue,Director of Childrens Services,5105696427,29.10.2014,Special Educational Needs Transport,Taxis - Contract Hire,188.00,ALPHA (IOW) LTD
Revenue,Director of Childrens Services,5105696427,29.10.2014,Special Educational Needs Transport,Taxis - Contract Hire,376.00,ALPHA (IOW) LTD
Revenue,Director of Childrens Services,5105696427,29.10.2014,Special Educational Needs Transport,Taxis - Contract Hire,355.60,ALPHA (IOW) LTD
Revenue,Director of Childrens Services,5105696427,29.10.2014,Special Educational Needs Transport,Taxis - Contract Hire,396.90,ALPHA (IOW) LTD
Revenue,Director of Childrens Services,5105696427,29.10.2014,Special Educational Needs Transport,Taxis - Contract Hire,313.35,ALPHA (IOW) LTD
Revenue,Director of Childrens Services,5105696427,29.10.2014,Special Educational Needs Transport,Taxis - Contract Hire,321.45,ALPHA (IOW) LTD
Revenue,Director of Childrens Services,5105696427,29.10.2014,Special Educational Needs Transport,Taxis - Contract Hire,320.00,ALPHA (IOW) LTD
Revenue,Director of Childrens Services,5105695848,29.10.2014,Special Educational Needs Transport,Taxis - Contract Hire,320.00,ALPHA (IOW) LTD
Revenue,Director of Childrens Services,5105695745,22.10.2014,Special Educational Needs Transport,Taxis - Contract Hire,320.00,ALPHA (IOW) LTD
Revenue,Director of Childrens Services,5105695848,29.10.2014,Special Educational Needs Transport,Taxis - Contract Hire,304.80,ALPHA (IOW) LTD
Revenue,Director of Childrens Services,5105695745,22.10.2014,Special Educational Needs Transport,Taxis - Contract Hire,304.80,ALPHA (IOW) LTD
Revenue,Director of Childrens Services,5105695848,29.10.2014,Special Educational Needs Transport,Taxis - Contract Hire,267.90,ALPHA (IOW) LTD
Revenue,Director of Childrens Services,5105695745,22.10.2014,Special Educational Needs Transport,Taxis - Contract Hire,267.90,ALPHA (IOW) LTD
Revenue,Director of Childrens Services,5105695745,22.10.2014,Special Educational Needs Transport,Taxis - Contract Hire,457.20,ALPHA (IOW) LTD
Revenue,Director of Childrens Services,5105695848,29.10.2014,Special Educational Needs Transport,Taxis - Contract Hire,457.20,ALPHA (IOW) LTD
Revenue,Director of Childrens Services,5105696427,29.10.2014,Special Educational Needs Transport,Taxis - Contract Hire,267.90,ALPHA (IOW) LTD
Revenue,Director of Childrens Services,5105696427,29.10.2014,Special Educational Needs Transport,Taxis - Contract Hire,457.20,ALPHA (IOW) LTD
Revenue,Director of Childrens Services,5105696427,29.10.2014,Special Educational Needs Transport,Taxis - Contract Hire,461.75,ALPHA (IOW) LTD
Revenue,Director of Childrens Services,5105695848,29.10.2014,Special Educational Needs Transport,Taxis - Contract Hire,200.00,ALPHA (IOW) LTD
Revenue,Director of Childrens Services,5105695745,22.10.2014,Special Educational Needs Transport,Taxis - Contract Hire,200.00,ALPHA (IOW) LTD
Revenue,Director of Childrens Services,5105695745,22.10.2014,Special Educational Needs Transport,Taxis - Contract Hire,461.75,ALPHA (IOW) LTD
Revenue,Director of Childrens Services,5105695848,29.10.2014,Special Educational Needs Transport,Taxis - Contract Hire,461.75,ALPHA (IOW) LTD
Revenue,Director of Childrens Services,5105693798,24.10.2014,Special Educational Needs Transport,Taxis - Contract Hire,188.00,ALPHA (IOW) LTD
Revenue,Director of Childrens Services,5105693800,24.10.2014,Special Educational Needs Transport,Taxis - Contract Hire,150.40,ALPHA (IOW) LTD
Revenue,Director of Childrens Services,5105693790,10.10.2014,Special Educational Needs Transport,Taxis - Contract Hire,188.00,ALPHA (IOW) LTD
Revenue,Director of Childrens Services,5105693781,10.10.2014,Special Educational Needs Transport,Taxis - Contract Hire,188.00,ALPHA (IOW) LTD
Revenue,Director of Childrens Services,5105693781,10.10.2014,Special Educational Needs Transport,Taxis - Contract Hire,200.00,ALPHA (IOW) LTD
Revenue,Director of Childrens Services,5105693798,24.10.2014,Special Educational Needs Transport,Taxis - Contract Hire,200.00,ALPHA (IOW) LTD
Revenue,Director of Childrens Services,5105693790,10.10.2014,Special Educational Needs Transport,Taxis - Contract Hire,200.00,ALPHA (IOW) LTD
Revenue,Director of Childrens Services,5105693800,24.10.2014,Special Educational Needs Transport,Taxis - Contract Hire,160.00,ALPHA (IOW) LTD
Revenue,Director of Childrens Services,5105695745,22.10.2014,Special Educational Needs Transport,Taxis - Contract Hire,188.00,ALPHA (IOW) LTD
Revenue,Director of Childrens Services,5105695848,29.10.2014,Special Educational Needs Transport,Taxis - Contract Hire,188.00,ALPHA (IOW) LTD
Revenue,Director of Childrens Services,5105695745,22.10.2014,Special Educational Needs Transport,Taxis - Contract Hire,376.00,ALPHA (IOW) LTD
Revenue,Director of Childrens Services,5105695848,29.10.2014,Special Educational Needs Transport,Taxis - Contract Hire,376.00,ALPHA (IOW) LTD
Revenue,Director of Childrens Services,5105695848,29.10.2014,Special Educational Needs Transport,Taxis - Contract Hire,355.60,ALPHA (IOW) LTD
Revenue,Director of Childrens Services,5105695745,22.10.2014,Special Educational Needs Transport,Taxis - Contract Hire,355.60,ALPHA (IOW) LTD
Revenue,Director of Childrens Services,5105695745,22.10.2014,Special Educational Needs Transport,Taxis - Contract Hire,396.90,ALPHA (IOW) LTD
Revenue,Director of Childrens Services,5105695848,29.10.2014,Special Educational Needs Transport,Taxis - Contract Hire,396.90,ALPHA (IOW) LTD
Revenue,Director of Childrens Services,5105695848,29.10.2014,Special Educational Needs Transport,Taxis - Contract Hire,313.35,ALPHA (IOW) LTD
Revenue,Director of Childrens Services,5105695745,22.10.2014,Special Educational Needs Transport,Taxis - Contract Hire,313.35,ALPHA (IOW) LTD
Revenue,Director of Childrens Services,5105695848,29.10.2014,Special Educational Needs Transport,Taxis - Contract Hire,321.45,ALPHA (IOW) LTD
Revenue,Director of Childrens Services,5105695745,22.10.2014,Special Educational Needs Transport,Taxis - Contract Hire,321.45,ALPHA (IOW) LTD
Revenue,Director of Childrens Services,5105696427,29.10.2014,Special Educational Needs Transport,Taxis - Contract Hire,304.80,ALPHA (IOW) LTD
Revenue,Director of Childrens Services,5105696427,29.10.2014,Special Educational Needs Transport,Taxis - Contract Hire,200.00,ALPHA (IOW) LTD
Revenue,Director of Childrens Services,5105693790,10.10.2014,Special Educational Needs Transport,Taxis - Contract Hire,304.80,ALPHA (IOW) LTD
Revenue,Director of Childrens Services,5105693798,24.10.2014,Special Educational Needs Transport,Taxis - Contract Hire,304.80,ALPHA (IOW) LTD
Revenue,Director of Childrens Services,5105693800,24.10.2014,Special Educational Needs Transport,Taxis - Contract Hire,182.88,ALPHA (IOW) LTD
Revenue,Director of Childrens Services,5105693781,10.10.2014,Special Educational Needs Transport,Taxis - Contract Hire,304.80,ALPHA (IOW) LTD
Revenue,Director of Childrens Services,5105693790,10.10.2014,Special Educational Needs Transport,Taxis - Contract Hire,267.90,ALPHA (IOW) LTD
Revenue,Director of Childrens Services,5105693798,24.10.2014,Special Educational Needs Transport,Taxis - Contract Hire,267.90,ALPHA (IOW) LTD
Revenue,Director of Childrens Services,5105693800,24.10.2014,Special Educational Needs Transport,Taxis - Contract Hire,214.32,ALPHA (IOW) LTD
Revenue,Director of Childrens Services,5105693781,10.10.2014,Special Educational Needs Transport,Taxis - Contract Hire,267.90,ALPHA (IOW) LTD
Revenue,Director of Childrens Services,5105693781,10.10.2014,Special Educational Needs Transport,Taxis - Contract Hire,457.20,ALPHA (IOW) LTD
Revenue,Director of Childrens Services,5105693800,24.10.2014,Special Educational Needs Transport,Taxis - Contract Hire,365.76,ALPHA (IOW) LTD
Revenue,Director of Childrens Services,5105693798,24.10.2014,Special Educational Needs Transport,Taxis - Contract Hire,457.20,ALPHA (IOW) LTD
Revenue,Director of Childrens Services,5105693790,10.10.2014,Special Educational Needs Transport,Taxis - Contract Hire,457.20,ALPHA (IOW) LTD
Revenue,Director of Childrens Services,5105693781,10.10.2014,Special Educational Needs Transport,Taxis - Contract Hire,461.75,ALPHA (IOW) LTD
Revenue,Director of Childrens Services,5105693790,10.10.2014,Special Educational Needs Transport,Taxis - Contract Hire,461.75,ALPHA (IOW) LTD
Revenue,Director of Childrens Services,5105693798,24.10.2014,Special Educational Needs Transport,Taxis - Contract Hire,461.75,ALPHA (IOW) LTD
Revenue,Director of Childrens Services,5105693800,24.10.2014,Special Educational Needs Transport,Taxis - Contract Hire,277.05,ALPHA (IOW) LTD
Revenue,Director of Childrens Services,5105693781,10.10.2014,Special Educational Needs Transport,Taxis - Contract Hire,376.00,ALPHA (IOW) LTD
Revenue,Director of Childrens Services,5105693800,24.10.2014,Special Educational Needs Transport,Taxis - Contract Hire,300.80,ALPHA (IOW) LTD
Revenue,Director of Childrens Services,5105693790,10.10.2014,Special Educational Needs Transport,Taxis - Contract Hire,376.00,ALPHA (IOW) LTD
Revenue,Director of Childrens Services,5105693798,24.10.2014,Special Educational Needs Transport,Taxis - Contract Hire,376.00,ALPHA (IOW) LTD
Revenue,Director of Childrens Services,5105693798,24.10.2014,Special Educational Needs Transport,Taxis - Contract Hire,355.60,ALPHA (IOW) LTD
Revenue,Director of Childrens Services,5105693790,10.10.2014,Special Educational Needs Transport,Taxis - Contract Hire,355.60,ALPHA (IOW) LTD
Revenue,Director of Childrens Services,5105693800,24.10.2014,Special Educational Needs Transport,Taxis - Contract Hire,284.48,ALPHA (IOW) LTD
Revenue,Director of Childrens Services,5105693781,10.10.2014,Special Educational Needs Transport,Taxis - Contract Hire,355.60,ALPHA (IOW) LTD
Revenue,Director of Childrens Services,5105693781,10.10.2014,Special Educational Needs Transport,Taxis - Contract Hire,396.90,ALPHA (IOW) LTD
Revenue,Director of Childrens Services,5105693800,24.10.2014,Special Educational Needs Transport,Taxis - Contract Hire,238.14,ALPHA (IOW) LTD
Revenue,Director of Childrens Services,5105693790,10.10.2014,Special Educational Needs Transport,Taxis - Contract Hire,396.90,ALPHA (IOW) LTD
Revenue,Director of Childrens Services,5105693798,24.10.2014,Special Educational Needs Transport,Taxis - Contract Hire,396.90,ALPHA (IOW) LTD
Revenue,Director of Childrens Services,5105693798,24.10.2014,Special Educational Needs Transport,Taxis - Contract Hire,313.35,ALPHA (IOW) LTD
Revenue,Director of Childrens Services,5105693790,10.10.2014,Special Educational Needs Transport,Taxis - Contract Hire,313.35,ALPHA (IOW) LTD
Revenue,Director of Childrens Services,5105693800,24.10.2014,Special Educational Needs Transport,Taxis - Contract Hire,188.01,ALPHA (IOW) LTD
Revenue,Director of Childrens Services,5105693781,10.10.2014,Special Educational Needs Transport,Taxis - Contract Hire,313.35,ALPHA (IOW) LTD
Revenue,Director of Childrens Services,5105693798,24.10.2014,Special Educational Needs Transport,Taxis - Contract Hire,321.45,ALPHA (IOW) LTD
Revenue,Director of Childrens Services,5105693790,10.10.2014,Special Educational Needs Transport,Taxis - Contract Hire,321.45,ALPHA (IOW) LTD
Revenue,Director of Childrens Services,5105693800,24.10.2014,Special Educational Needs Transport,Taxis - Contract Hire,192.87,ALPHA (IOW) LTD
Revenue,Director of Childrens Services,5105693781,10.10.2014,Special Educational Needs Transport,Taxis - Contract Hire,321.45,ALPHA (IOW) LTD
Revenue,Director of Childrens Services,5105693790,10.10.2014,Special Educational Needs Transport,Taxis - Contract Hire,320.00,ALPHA (IOW) LTD
Revenue,Director of Childrens Services,5105693798,24.10.2014,Special Educational Needs Transport,Taxis - Contract Hire,320.00,ALPHA (IOW) LTD
Revenue,Director of Childrens Services,5105693800,24.10.2014,Special Educational Needs Transport,Taxis - Contract Hire,192.00,ALPHA (IOW) LTD
Revenue,Director of Childrens Services,5105693781,10.10.2014,Special Educational Needs Transport,Taxis - Contract Hire,320.00,ALPHA (IOW) LTD
Revenue,Director of Childrens Services,5105693781,10.10.2014,Home to School Transport,Taxis - Contract Hire,314.95,ALPHA (IOW) LTD
Revenue,Director of Childrens Services,5105693800,24.10.2014,Home to School Transport,Taxis - Contract Hire,251.96,ALPHA (IOW) LTD
Revenue,Director of Childrens Services,5105693798,24.10.2014,Home to School Transport,Taxis - Contract Hire,314.95,ALPHA (IOW) LTD
Revenue,Director of Childrens Services,5105693790,10.10.2014,Home to School Transport,Taxis - Contract Hire,314.95,ALPHA (IOW) LTD
Revenue,Director of Childrens Services,5105693781,10.10.2014,Home to School Transport,Taxis - Contract Hire,428.25,ALPHA (IOW) LTD
Revenue,Director of Childrens Services,5105693800,24.10.2014,Home to School Transport,Taxis - Contract Hire,256.95,ALPHA (IOW) LTD
Revenue,Director of Childrens Services,5105693798,24.10.2014,Home to School Transport,Taxis - Contract Hire,428.25,ALPHA (IOW) LTD
Revenue,Director of Childrens Services,5105693790,10.10.2014,Home to School Transport,Taxis - Contract Hire,428.25,ALPHA (IOW) LTD
Revenue,Director of Childrens Services,5105693781,10.10.2014,Home to School Transport,Taxis - Contract Hire,415.50,ALPHA (IOW) LTD
Revenue,Director of Childrens Services,5105693798,24.10.2014,Home to School Transport,Taxis - Contract Hire,415.50,ALPHA (IOW) LTD
Revenue,Director of Childrens Services,5105693800,24.10.2014,Home to School Transport,Taxis - Contract Hire,332.40,ALPHA (IOW) LTD
Revenue,Director of Childrens Services,5105693790,10.10.2014,Home to School Transport,Taxis - Contract Hire,415.50,ALPHA (IOW) LTD
Revenue,Director of Childrens Services,5105693781,10.10.2014,Home to School Transport,Taxis - Contract Hire,396.90,ALPHA (IOW) LTD
Revenue,Director of Childrens Services,5105693800,24.10.2014,Home to School Transport,Taxis - Contract Hire,317.52,ALPHA (IOW) LTD
Revenue,Director of Childrens Services,5105693798,24.10.2014,Home to School Transport,Taxis - Contract Hire,396.90,ALPHA (IOW) LTD
Revenue,Director of Childrens Services,5105693790,10.10.2014,Home to School Transport,Taxis - Contract Hire,396.90,ALPHA (IOW) LTD
Revenue,Director of Childrens Services,5105693781,10.10.2014,Home to School Transport,Taxis - Contract Hire,254.00,ALPHA (IOW) LTD
Revenue,Director of Childrens Services,5105693790,10.10.2014,Home to School Transport,Taxis - Contract Hire,254.00,ALPHA (IOW) LTD
Revenue,Director of Childrens Services,5105693800,24.10.2014,Home to School Transport,Taxis - Contract Hire,152.40,ALPHA (IOW) LTD
Revenue,Director of Childrens Services,5105693798,24.10.2014,Home to School Transport,Taxis - Contract Hire,254.00,ALPHA (IOW) LTD
Revenue,Director of Childrens Services,5105696427,29.10.2014,Home to School Transport,Taxis - Contract Hire,396.90,ALPHA (IOW) LTD
Revenue,Director of Childrens Services,5105695745,22.10.2014,Home to School Transport,Taxis - Contract Hire,428.25,ALPHA (IOW) LTD
Revenue,Director of Childrens Services,5105695848,29.10.2014,Home to School Transport,Taxis - Contract Hire,428.25,ALPHA (IOW) LTD
Revenue,Director of Childrens Services,5105695848,29.10.2014,Home to School Transport,Taxis - Contract Hire,254.00,ALPHA (IOW) LTD
Revenue,Director of Childrens Services,5105695745,22.10.2014,Home to School Transport,Taxis - Contract Hire,254.00,ALPHA (IOW) LTD
Revenue,Director of Childrens Services,5105695745,22.10.2014,Home to School Transport,Taxis - Contract Hire,415.50,ALPHA (IOW) LTD
Revenue,Director of Childrens Services,5105695848,29.10.2014,Home to School Transport,Taxis - Contract Hire,415.50,ALPHA (IOW) LTD
Revenue,Director of Childrens Services,5105696427,29.10.2014,Home to School Transport,Taxis - Contract Hire,254.00,ALPHA (IOW) LTD
Revenue,Director of Childrens Services,5105695745,22.10.2014,Home to School Transport,Taxis - Contract Hire,396.90,ALPHA (IOW) LTD
Revenue,Director of Childrens Services,5105695848,29.10.2014,Home to School Transport,Taxis - Contract Hire,396.90,ALPHA (IOW) LTD
Revenue,Director of Childrens Services,5105695745,22.10.2014,Home to School Transport,Taxis - Contract Hire,314.95,ALPHA (IOW) LTD
Revenue,Director of Childrens Services,5105695848,29.10.2014,Home to School Transport,Taxis - Contract Hire,314.95,ALPHA (IOW) LTD
Revenue,Director of Childrens Services,5105696427,29.10.2014,Home to School Transport,Taxis - Contract Hire,314.95,ALPHA (IOW) LTD
Revenue,Director of Childrens Services,5105696427,29.10.2014,Home to School Transport,Taxis - Contract Hire,428.25,ALPHA (IOW) LTD
Revenue,Director of Childrens Services,5105696427,29.10.2014,Home to School Transport,Taxis - Contract Hire,415.50,ALPHA (IOW) LTD
Revenue,Head of ASC & Community Wellbeing,5105692598,08.10.2014,Learning Disability Residential Care,Charges from Independent Providers,"3,836.84",ALPHAGRANGE LTD
Revenue,Director of Childrens Services,5105696904,31.10.2014,LSCB (Local Safeguarding Childrens Board),Conference Expenses,"1,052.50",ALTEREGO CREATIVE SOLUTIONS LTD
Revenue,Head of Finance & S151 Officer,5105692426,08.10.2014,Project Manager Waste Strategy,Consultants Fees,"12,787.00",AMEC ENVIRONMENT AND INFRASTRUCTURE UK LTD
Revenue,Head of ASC & Community Wellbeing,5105694912,17.10.2014,Community Outreach,Agency staff,182.00,ANCHOR RECRUITMENT
Revenue,Head of ASC & Community Wellbeing,5105691929,03.10.2014,Elderly Frail Residential Care,Charges from Independent Providers,364.38,ANCONA CARE HOME
Revenue,Head of ASC & Community Wellbeing,5105691929,03.10.2014,Elderly Frail Residential Care,Charges from Independent Providers,"1,700.44",ANCONA CARE HOME
Revenue,Head of ASC & Community Wellbeing,5105692600,08.10.2014,Elderly Frail Residential Care,Charges from Independent Providers,"2,093.84",ANCONA CARE HOME
Revenue,Head of ASC & Community Wellbeing,5105692600,08.10.2014,Elderly Frail Residential Care,Charges from Independent Providers,"1,700.44",ANCONA CARE HOME
Revenue,Head of ASC & Community Wellbeing,5105692600,08.10.2014,Elderly Frail Residential Care,Charges from Independent Providers,"1,781.36",ANCONA CARE HOME
Revenue,Head of ASC & Community Wellbeing,5105692600,08.10.2014,Elderly Mentally Ill Residential Care,Charges from Independent Providers,"1,781.36",ANCONA CARE HOME
Revenue,Head of ASC & Community Wellbeing,5105692600,08.10.2014,Elderly Mentally Ill Residential Care,Charges from Independent Providers,"1,781.36",ANCONA CARE HOME
Revenue,Head of ASC & Community Wellbeing,5105692600,08.10.2014,REDACTED PERSONAL DATA,Order Settlement to Bal Sht GL,"2,093.84",ANCONA CARE HOME
Revenue,Head of Economy & Tourism,5105696179,24.10.2014,Allotments,Payment to Private Contractors,115.00,REDACTED PERSONAL DATA
Revenue,Director of Childrens Services,5105696948,31.10.2014,Dyslexia Support,General Educational Materials,34.00,ANN ARBOR PUBLISHERS LTD
Revenue,Director of Childrens Services,5105696948,31.10.2014,Dyslexia Support,General Educational Materials,34.00,ANN ARBOR PUBLISHERS LTD
Revenue,Director of Childrens Services,5105696948,31.10.2014,Dyslexia Support,General Educational Materials,294.00,ANN ARBOR PUBLISHERS LTD
Revenue,Head of Economy & Tourism,5105692464,08.10.2014,Print Unit,Printing Costs,89.10,ANTALIS MCNAUGHTON
Revenue,Head of Economy & Tourism,5105692464,08.10.2014,Print Unit,Printing Costs,93.20,ANTALIS MCNAUGHTON
Revenue,Head of Economy & Tourism,5105695467,29.10.2014,Print Unit,Printing Costs,116.50,ANTALIS MCNAUGHTON
Revenue,Head of Economy & Tourism,5105695467,29.10.2014,Print Unit,Printing Costs,58.40,ANTALIS MCNAUGHTON
Revenue,Head of Corp Gov & Monitoring Officer,5105692031,03.10.2014,Coroner,Payment to Private Contractors,"1,200.00",HASELEY MANOR
Revenue,Head of Corp Gov & Monitoring Officer,5105692029,03.10.2014,Coroner,Payment to Private Contractors,600.00,HASELEY MANOR
Revenue,Head of Corp Gov & Monitoring Officer,5105691709,01.10.2014,Coroner,Payment to Private Contractors,720.00,HASELEY MANOR
Revenue,Head of ASC & Community Wellbeing,5105693489,08.10.2014,S75 Integrated Community Equipment Store,Operational Equipment,"1,999.50",APOLLO HEALTHCARE TECHNOLOGIES
Capital,Head of HR & Organisational Change,5105695377,22.10.2014,Strategic Projects,"Plant, Equipment & Furniture - Capital","2,252.00",APPLE DISTRIBUTION INTERNATIONAL
Capital,Head of HR & Organisational Change,5105688397,22.10.2014,Strategic Projects,ICT Hardware & Software - Capital,"3,236.00",APPLE DISTRIBUTION INTERNATIONAL
Revenue,Head of ASC & Community Wellbeing,5105693556,10.10.2014,Community Outreach,Operational Equipment,-2.56,ARCO LTD
Revenue,Head of ASC & Community Wellbeing,5105689745,10.10.2014,Community Outreach,Operational Equipment,7.94,ARCO LTD
Revenue,Head of ASC & Community Wellbeing,5105689745,10.10.2014,Community Outreach,Operational Equipment,9.81,ARCO LTD
Revenue,Head of ASC & Community Wellbeing,5105692400,15.10.2014,Community Outreach,Professional Services,85.00,ARCO LTD
Revenue,Head of ASC & Community Wellbeing,5105691965,01.10.2014,Community Outreach,Clothing & Laundry,10.98,ARCO LTD
Revenue,Head of ASC & Community Wellbeing,5105691965,01.10.2014,Community Outreach,Clothing & Laundry,6.40,ARCO LTD
Revenue,Head of ASC & Community Wellbeing,5105691965,01.10.2014,Community Outreach,Clothing & Laundry,1.31,ARCO LTD
Revenue,Head of Economy & Tourism,5105694126,15.10.2014,The Heights,Clothing & Laundry,20.00,ARCO LTD
Revenue,Head of Economy & Tourism,5105694126,15.10.2014,The Heights,Clothing & Laundry,3.60,ARCO LTD
Revenue,Head of Economy & Tourism,5105693500,08.10.2014,Medina Leisure Centre,Clothing & Laundry,329.83,ARCO LTD
Revenue,Head of Economy & Tourism,5105693390,08.10.2014,Ferry Operation,Clothing & Laundry,12.60,ARCO LTD
Revenue,Head of Economy & Tourism,5105693390,08.10.2014,Ferry Operation,Clothing & Laundry,35.56,ARCO LTD
Revenue,Head of Economy & Tourism,5105694077,15.10.2014,Ferry Operation,Clothing & Laundry,3.60,ARCO LTD
Revenue,Head of Economy & Tourism,5105694077,15.10.2014,Ferry Operation,Clothing & Laundry,10.16,ARCO LTD
Revenue,Head of Economy & Tourism,5105692409,08.10.2014,Environment officers,Clothing & Laundry,26.13,ARCO LTD
Revenue,Managing Director & Head of Paid Service,5105696976,31.10.2014,STI Tests & Treatment,Payment to Private Contractors,15.00,ARGYLL HOUSE SURGERY
Revenue,Managing Director & Head of Paid Service,5105696976,31.10.2014,Stop Smoking Services & Interventions,Payment to Private Contractors,640.00,ARGYLL HOUSE SURGERY
Revenue,Head of ASC & Community Wellbeing,5105693815,10.10.2014,S75 Integrated Community Equipment Store,Maintenance of Operational Equipment,299.90,ARJO MED AB LTD
Revenue,Head of ASC & Community Wellbeing,5105693815,10.10.2014,S75 Integrated Community Equipment Store,Maintenance of Operational Equipment,149.95,ARJO MED AB LTD
Revenue,Head of ASC & Community Wellbeing,5105696551,29.10.2014,S75 Integrated Community Equipment Store,Operational Equipment,"5,700.00",ARJO MED AB LTD
Revenue,Head of ASC & Community Wellbeing,5105696551,29.10.2014,S75 Integrated Community Equipment Store,Operational Equipment,480.00,ARJO MED AB LTD
Revenue,Head of ASC & Community Wellbeing,5105696551,29.10.2014,S75 Integrated Community Equipment Store,Operational Equipment,40.00,ARJO MED AB LTD
Revenue,Head of ASC & Community Wellbeing,5105694098,15.10.2014,S75 Integrated Community Equipment Store,Operational Equipment,"5,700.00",ARJO MED AB LTD
Revenue,Head of ASC & Community Wellbeing,5105694098,15.10.2014,S75 Integrated Community Equipment Store,Operational Equipment,480.00,ARJO MED AB LTD
Revenue,Head of ASC & Community Wellbeing,5105694098,15.10.2014,S75 Integrated Community Equipment Store,Operational Equipment,40.00,ARJO MED AB LTD
Revenue,Head of ASC & Community Wellbeing,5105689699,22.10.2014,Plean Dene,Maintenance of Operational Equipment,68.00,ARJO MED AB LTD
Revenue,Head of ASC & Community Wellbeing,5105696511,31.10.2014,Plean Dene,Maintenance of Operational Equipment,359.00,ARJO MED AB LTD
Revenue,Head of ASC & Community Wellbeing,5105696514,29.10.2014,Saxonbury,Minor Works,68.00,ARJO MED AB LTD
Revenue,Head of ASC & Community Wellbeing,5105694104,15.10.2014,Saxonbury,Maintenance of Operational Equipment,255.20,ARJO MED AB LTD
Revenue,Head of ASC & Community Wellbeing,5105695489,22.10.2014,Highmead,Maintenance of Operational Equipment,68.00,ARJO MED AB LTD
Revenue,Head of ASC & Community Wellbeing,5105694105,15.10.2014,Gouldings Resource Centre,Maintenance of Operational Equipment,238.00,ARJO MED AB LTD
Capital,Head of ASC & Community Wellbeing,5105689195,01.10.2014,Adelaide & Gouldings Fixtures & Fittings,"Plant, Equipment & Furniture - Capital",705.00,ARJO MED AB LTD
Revenue,Director of Childrens Services,5105695476,22.10.2014,Beaulieu House,Minor Works,68.00,ARJO MED AB LTD
Revenue,Head of Economy & Tourism,5105692273,03.10.2014,Rights of Way Operations,Advertising & Publicity,20.00,ARRETON COMMUNITY HALL FUND
Revenue,Head of Economy & Tourism,5105696350,29.10.2014,Crematorium,General Materials,"1,817.92",ASHDOWN SUPPLIES
Revenue,Head of ASC & Community Wellbeing,5105696584,29.10.2014,Gouldings Resource Centre,Prop Svs only - Day to day mtce,405.87,ASSA ABLOY ENTRANCE SYSTEMS LTD
Revenue,Head of Economy & Tourism,5105696586,31.10.2014,Freshwater West Wight Library,Prop Svs only - Day to day mtce,436.00,ASSA ABLOY ENTRANCE SYSTEMS LTD
Revenue,Head of Economy & Tourism,5105692045,03.10.2014,Freshwater West Wight Library,Prop Svs only - Day to day mtce,22.07,ASSA ABLOY ENTRANCE SYSTEMS LTD
Revenue,Head of Economy & Tourism,5105694906,22.10.2014,Medina Leisure Centre,Prop Svs only - Day to day mtce,142.23,ASSA ABLOY ENTRANCE SYSTEMS LTD
Revenue,Head of Economy & Tourism,5105692297,03.10.2014,Medina Leisure Centre,Prop Svs only - Day to day mtce,60.08,ASSA ABLOY ENTRANCE SYSTEMS LTD
Revenue,Head of Economy & Tourism,5105692346,03.10.2014,Medina Leisure Centre,Prop Svs only - Day to day mtce,83.14,ASSA ABLOY ENTRANCE SYSTEMS LTD
Revenue,Director of Childrens Services,5105691744,01.10.2014,Thompson House Tuition Centre (PRU),Minor Works,"1,175.23",ASSA ABLOY ENTRANCE SYSTEMS LTD
Revenue,Director of Childrens Services,5105696583,29.10.2014,Children's Services Strategic Management,Minor Works,379.60,ASSA ABLOY ENTRANCE SYSTEMS LTD
Revenue,Director of Childrens Services,5105695445,22.10.2014,Clatterford Pupil Referral Unit (PRU),Schools Examination Fees,612.15,ASSESSMENT & QUALIFICATION ALLIANCE
Revenue,Chief Fire Officer,5105696097,24.10.2014,Emergency Management,Fixed Telephones,890.00,AST CONNECTIONS LTD
Revenue,Head of Economy & Tourism,5105696187,24.10.2014,Dinosaur Isle Museum (Sandown Geology),Stock Purchases,450.00,AT ONE COMMUNICATIONS
Revenue,Chief Fire Officer,5105694653,15.10.2014,Deputy Chief Fire Office,Conference Expenses,57.29,ATOS WORLDLINE
Revenue,Director of Childrens Services,5105696855,31.10.2014,7740 - HW06 EJD,Vehicle Maintenance Costs,-140.78,ATS EUROMASTER LTD
Revenue,Director of Childrens Services,5105696853,31.10.2014,7740 - HW06 EJD,Vehicle Maintenance Costs,281.56,ATS EUROMASTER LTD
Revenue,Head of ASC & Community Wellbeing,5105692570,08.10.2014,Elderly Frail Residential Care,Charges from Independent Providers,"2,093.84",AUTUMN HOUSE CARE LTD
Revenue,Head of ASC & Community Wellbeing,5105692570,08.10.2014,Elderly Mentally Ill Residential Care,Charges from Independent Providers,"2,093.84",AUTUMN HOUSE CARE LTD
Revenue,Head of ASC & Community Wellbeing,5105692570,08.10.2014,Elderly Mentally Ill Residential Care,Charges from Independent Providers,"2,093.84",AUTUMN HOUSE CARE LTD
Revenue,Head of ASC & Community Wellbeing,5105692570,08.10.2014,Elderly Mentally Ill Residential Care,Charges from Independent Providers,"2,093.84",AUTUMN HOUSE CARE LTD
Revenue,Head of ASC & Community Wellbeing,5105692570,08.10.2014,Elderly Mentally Ill Residential Care,Charges from Independent Providers,"2,093.84",AUTUMN HOUSE CARE LTD
Revenue,Head of ASC & Community Wellbeing,5105692570,08.10.2014,Elderly Mentally Ill Residential Care,Charges from Independent Providers,"2,093.84",AUTUMN HOUSE CARE LTD
Revenue,Head of ASC & Community Wellbeing,5105692570,08.10.2014,Elderly Mentally Ill Residential Care,Charges from Independent Providers,"2,093.84",AUTUMN HOUSE CARE LTD
Revenue,Head of ASC & Community Wellbeing,5105692570,08.10.2014,Elderly Mentally Ill Residential Care,Charges from Independent Providers,"1,781.36",AUTUMN HOUSE CARE LTD
Revenue,Head of ASC & Community Wellbeing,5105692570,08.10.2014,Elderly Mentally Ill Residential Care,Charges from Independent Providers,"2,093.84",AUTUMN HOUSE CARE LTD
Revenue,Head of ASC & Community Wellbeing,5105692570,08.10.2014,Elderly Mentally Ill Residential Care,Charges from Independent Providers,"2,093.84",AUTUMN HOUSE CARE LTD
Revenue,Head of ASC & Community Wellbeing,5105692570,08.10.2014,Elderly Mentally Ill Residential Care,Charges from Independent Providers,"1,781.36",AUTUMN HOUSE CARE LTD
Revenue,Head of ASC & Community Wellbeing,5105692570,08.10.2014,Elderly Mentally Ill Residential Care,Charges from Independent Providers,"2,093.84",AUTUMN HOUSE CARE LTD
Revenue,Head of ASC & Community Wellbeing,5105692570,08.10.2014,Elderly Mentally Ill Residential Care,Charges from Independent Providers,"1,781.36",AUTUMN HOUSE CARE LTD
Revenue,Head of ASC & Community Wellbeing,5105692570,08.10.2014,Elderly Mentally Ill Residential Care,Charges from Independent Providers,"2,093.84",AUTUMN HOUSE CARE LTD
Revenue,Head of ASC & Community Wellbeing,5105692570,08.10.2014,Elderly Mentally Ill Residential Care,Charges from Independent Providers,"2,093.84",AUTUMN HOUSE CARE LTD
Revenue,Head of ASC & Community Wellbeing,5105692570,08.10.2014,Elderly Mentally Ill Residential Care,Charges from Independent Providers,"2,093.84",AUTUMN HOUSE CARE LTD
Revenue,Head of ASC & Community Wellbeing,5105692570,08.10.2014,Elderly Mentally Ill Residential Care,Charges from Independent Providers,"1,781.36",AUTUMN HOUSE CARE LTD
Revenue,Head of ASC & Community Wellbeing,5105692570,08.10.2014,Elderly Mentally Ill Residential Care,Charges from Independent Providers,"2,093.84",AUTUMN HOUSE CARE LTD
Revenue,Head of ASC & Community Wellbeing,5105692570,08.10.2014,Elderly Mentally Ill Residential Care,Charges from Independent Providers,"2,093.84",AUTUMN HOUSE CARE LTD
Revenue,Head of ASC & Community Wellbeing,5105692570,08.10.2014,Elderly Mentally Ill Residential Care,Charges from Independent Providers,"2,093.84",AUTUMN HOUSE CARE LTD
Revenue,Head of ASC & Community Wellbeing,5105692570,08.10.2014,Elderly Mentally Ill Residential Care,Charges from Independent Providers,"2,093.84",AUTUMN HOUSE CARE LTD
Revenue,Head of ASC & Community Wellbeing,5105692570,08.10.2014,Elderly Mentally Ill Residential Care,Charges from Independent Providers,"2,093.84",AUTUMN HOUSE CARE LTD
Revenue,Head of ASC & Community Wellbeing,5105696255,29.10.2014,Elderly Mentally Ill Residential Care,Charges from Independent Providers,"1,346.04",AUTUMN HOUSE CARE LTD
Revenue,Head of ASC & Community Wellbeing,5105692570,08.10.2014,Mental Health Residential Care,Charges from Independent Providers,"1,700.44",AUTUMN HOUSE CARE LTD
Revenue,Head of ASC & Community Wellbeing,5105694657,15.10.2014,Mental Health Residential Care,Charges from Independent Providers,"1,457.52",AUTUMN HOUSE CARE LTD
Revenue,Head of ASC & Community Wellbeing,5105694657,15.10.2014,Mental Health Residential Care,Charges from Independent Providers,"1,700.44",AUTUMN HOUSE CARE LTD
Revenue,Head of ASC & Community Wellbeing,5105692570,08.10.2014,Physical Disability Residential Care,Charges from Independent Providers,"2,093.84",AUTUMN HOUSE CARE LTD
Revenue,Head of ASC & Community Wellbeing,5105692570,08.10.2014,REDACTED PERSONAL DATA,Order Settlement to Bal Sht GL,"2,093.84",AUTUMN HOUSE CARE LTD
Revenue,Head of HR & Organisational Change,5105696244,29.10.2014,Payroll,Consultants Fees,414.00,AVALON VALE UK LTD
Revenue,Director of Childrens Services,5105692112,03.10.2014,Leaving Care Costs,Support Children,120.89,REDACTED PERSONAL DATA
Revenue,Director of Childrens Services,5105692112,03.10.2014,Leaving Care Costs,Accommodation Costs - Service Users,57.50,REDACTED PERSONAL DATA
Revenue,Director of Childrens Services,5105696645,31.10.2014,Leaving Care Costs,Accommodation Costs - Service Users,50.00,REDACTED PERSONAL DATA
Revenue,Head of Economy & Tourism,5105691834,01.10.2014,Fort Victoria,General Materials,54.38,B & Q FINANCIAL SERVICES
Revenue,Head of ASC & Community Wellbeing,5105692585,08.10.2014,Learning Disability Residential Care,Charges from Independent Providers,"1,894.76",REDACTED PERSONAL DATA
Revenue,Head of ASC & Community Wellbeing,5105692585,08.10.2014,Learning Disability Residential Care,Charges from Independent Providers,"1,894.76",REDACTED PERSONAL DATA
Revenue,Head of ASC & Community Wellbeing,5105692585,08.10.2014,Learning Disability Residential Care,Charges from Independent Providers,"2,745.40",REDACTED PERSONAL DATA
Revenue,Head of ASC & Community Wellbeing,5105695581,22.10.2014,Leaseholds by LA,Accommodation Costs - Leaseholder Payments,815.49,REDACTED PERSONAL DATA
Revenue,Head of Exchequer Services,5105695652,22.10.2014,Staff Benefits,Payment to Private Contractors,243.00,REDACTED PERSONAL DATA
Revenue,Head of Exchequer Services,5105695652,22.10.2014,Staff Benefits,Payment to Private Contractors,100.00,REDACTED PERSONAL DATA
Revenue,Head of Exchequer Services,5105695652,22.10.2014,Staff Benefits,Payment to Private Contractors,50.00,REDACTED PERSONAL DATA
Revenue,Head of ASC & Community Wellbeing,5105695588,22.10.2014,Leaseholds by LA,Accommodation Costs - Leaseholder Payments,799.50,REDACTED PERSONAL DATA
Revenue,Head of ASC & Community Wellbeing,5105695588,22.10.2014,Leaseholds by LA,Accommodation Costs - Leaseholder Payments,866.67,REDACTED PERSONAL DATA
Revenue,Head of ASC & Community Wellbeing,5105695588,22.10.2014,Leaseholds by LA,Accommodation Costs - Leaseholder Payments,866.67,REDACTED PERSONAL DATA
Revenue,Head of ASC & Community Wellbeing,5105695588,22.10.2014,Leaseholds by LA,Accommodation Costs - Leaseholder Payments,888.33,REDACTED PERSONAL DATA
Revenue,Head of ASC & Community Wellbeing,5105695588,22.10.2014,Leaseholds by LA,Accommodation Costs - Leaseholder Payments,799.50,REDACTED PERSONAL DATA
Revenue,Director of Childrens Services,5105693778,10.10.2014,In-house Fostering,Professional Services,"1,116.76",BAAF REGISTERED CHARITY
Revenue,Director of Childrens Services,5105692058,03.10.2014,Purchased Residential,Charges from Independent Providers,"13,263.57",BACK ON TRACK
Revenue,Director of Childrens Services,5105692060,08.10.2014,Purchased Residential,Charges from Independent Providers,"2,780.00",BACK ON TRACK
Revenue,Director of Childrens Services,5105693795,17.10.2014,Purchased Residential,Charges from Independent Providers,"12,835.71",BACK ON TRACK
Revenue,Head of HR & Organisational Change,5105691990,03.10.2014,"Bugle House,Newport",Rent of Buildings and Rooms,"6,625.00",BAE SYSTEMS
Revenue,Head of HR & Organisational Change,5105692014,03.10.2014,"Westridge, Ryde",Property Services - Planned Maintenance,687.14,BALFOUR BEATTY
Revenue,Head of HR & Organisational Change,5105692009,03.10.2014,"29,High St,Newport",Property Services - Planned Maintenance,289.47,BALFOUR BEATTY
Revenue,Head of Economy & Tourism,5105692017,03.10.2014,Non-operational buildings,Prop Svs only - Day to day mtce,692.75,BALFOUR BEATTY
Capital,Head of HR & Organisational Change,5105691880,01.10.2014,Management of Asbestos,Payment to Contractors - Capital,"6,272.00",BALFOUR BEATTY
Capital,Head of HR & Organisational Change,5105692076,03.10.2014,Management of Asbestos,Payment to Contractors - Capital,"1,032.00",BALFOUR BEATTY
Capital,Head of HR & Organisational Change,5105692022,03.10.2014,Management of Asbestos,Payment to Contractors - Capital,"3,931.00",BALFOUR BEATTY
Revenue,Head of ASC & Community Wellbeing,5105691978,01.10.2014,Downside Community & Learning Centre,Minor Works,404.25,BALFOUR BEATTY
Revenue,Head of ASC & Community Wellbeing,5105691987,03.10.2014,Adelaide Resource Centre,Property Services - Planned Maintenance,240.00,BALFOUR BEATTY
Revenue,Head of ASC & Community Wellbeing,5105687613,08.10.2014,Adelaide Resource Centre,Maintenance of Operational Equipment,73.01,BALFOUR BEATTY
Revenue,Head of ASC & Community Wellbeing,5105691966,01.10.2014,Gouldings Resource Centre,Property Services - Planned Maintenance,257.85,BALFOUR BEATTY
Revenue,Head of ASC & Community Wellbeing,5105696066,29.10.2014,Gouldings Resource Centre,Minor Works,111.03,BALFOUR BEATTY
Revenue,Head of Economy & Tourism,5105691853,03.10.2014,Archives,Prop Svs only - Day to day mtce,"4,230.88",BALFOUR BEATTY
Revenue,Head of Economy & Tourism,5105692020,03.10.2014,Dinosaur Isle Museum (Sandown Geology),Prop Svs only - Day to day mtce,955.20,BALFOUR BEATTY
Revenue,Head of Economy & Tourism,5105679986,24.10.2014,The Heights,Prop Svs only - Day to day mtce,266.43,BALFOUR BEATTY
Revenue,Director of Childrens Services,5105693334,08.10.2014,Thompson House Tuition Centre (PRU),Minor Works,98.54,BALFOUR BEATTY
Revenue,Director of Childrens Services,5105693334,08.10.2014,Clatterford Pupil Referral Unit (PRU),Minor Works,98.54,BALFOUR BEATTY
Revenue,Director of Childrens Services,5105696068,29.10.2014,Youth- Cowes,Prop Svs only - Day to day mtce,63.23,BALFOUR BEATTY
Revenue,Director of Childrens Services,5105692005,03.10.2014,Beaulieu House,Minor Works,641.80,BALFOUR BEATTY
Revenue,Head of Finance & S151 Officer,5105696218,24.10.2014,Public Conveniences - General,Prop Svs only - Day to day mtce,199.23,BALFOUR BEATTY
Revenue,Head of Finance & S151 Officer,5105692008,03.10.2014,Public Conveniences - General,Prop Svs only - Day to day mtce,653.10,BALFOUR BEATTY
Revenue,Head of Finance & S151 Officer,5105680325,24.10.2014,Public Conveniences - General,Prop Svs only - Day to day mtce,231.44,BALFOUR BEATTY
Revenue,Head of Economy & Tourism,5105687522,08.10.2014,Newport Harbour Account,Prop Svs only - Day to day mtce,430.75,BALFOUR BEATTY
Revenue,Chief Fire Officer,5105694099,15.10.2014,Fire Technical Support,Payment to Private Contractors,644.70,BALLYCLARE LTD
Revenue,Chief Fire Officer,5105694096,15.10.2014,Fire Technical Support,Payment to Private Contractors,"6,683.45",BALLYCLARE LTD
Revenue,Chief Fire Officer,5105692080,03.10.2014,Fire Technical Support,Payment to Private Contractors,644.70,BALLYCLARE LTD
Revenue,Chief Fire Officer,5105692064,03.10.2014,Fire Technical Support,Payment to Private Contractors,"6,683.45",BALLYCLARE LTD
Revenue,Director of Childrens Services,5105691523,24.10.2014,Family Support Work,Payment to Private Contractors,"41,779.25",BARNARDOS
Revenue,Chief Fire Officer,5105695328,22.10.2014,Diversity & Workforce,Operational Equipment,150.00,BARTLETTS SERVICE STATION
Revenue,Chief Fire Officer,5105696366,29.10.2014,Diversity & Workforce,Operational Equipment,150.00,BARTLETTS SERVICE STATION
Revenue,Chief Fire Officer,5105692334,03.10.2014,Diversity & Workforce,Operational Equipment,225.00,BARTLETTS SERVICE STATION
Revenue,Head of Exchequer Services,5105695633,22.10.2014,Staff Benefits,Payment to Private Contractors,50.00,BARTON PRIMARY & EARLY YEARS
Revenue,Head of Exchequer Services,5105695633,22.10.2014,Staff Benefits,Payment to Private Contractors,11.67,BARTON PRIMARY & EARLY YEARS
Revenue,Head of Exchequer Services,5105695633,22.10.2014,Staff Benefits,Payment to Private Contractors,12.00,BARTON PRIMARY & EARLY YEARS
Revenue,Director of Childrens Services,5105693330,08.10.2014,Workforce Development - Early Years,Hire of facilities,40.00,BARTON PRIMARY & EARLY YEARS
Revenue,Head of ASC & Community Wellbeing,5105696301,29.10.2014,S75 Integrated Community Equipment Store,Maintenance of Operational Equipment,126.00,BARTRAM ASSOCIATES LTD
Revenue,Head of Economy & Tourism,5105696070,29.10.2014,October Walking Festival,Advertising & Publicity,450.00,BAUER CONSUMER MEDIA LTD
Revenue,Director of Childrens Services,5105695441,22.10.2014,Short Breaks,Advertising & Publicity,716.00,BEACON MEDIA LIMITED
Revenue,Director of Childrens Services,5105696563,29.10.2014,In-house Fostering,Advertising & Publicity,716.00,BEACON MEDIA LIMITED
Revenue,Director of Childrens Services,5105696933,31.10.2014,Independ. & Non-Maint. Special Schls & Independ. Specialist Provision,Transport of Clients,840.00,BEACON TAXIS
Revenue,Head of ASC & Community Wellbeing,5105692802,08.10.2014,Elderly Mentally Ill Nursing Mainland,Charges from Independent Providers,"2,269.40",BEAUMONT LODGE LTD
Revenue,Managing Director & Head of Paid Service,5105696974,31.10.2014,Contraception,Payment to Private Contractors,125.00,BEECH GROVE SURGERY
Revenue,Managing Director & Head of Paid Service,5105696974,31.10.2014,NHS Health Check Programme,Payment to Private Contractors,725.00,BEECH GROVE SURGERY
Revenue,Managing Director & Head of Paid Service,5105696974,31.10.2014,STI Tests & Treatment,Payment to Private Contractors,25.00,BEECH GROVE SURGERY
Revenue,Managing Director & Head of Paid Service,5105696974,31.10.2014,Stop Smoking Services & Interventions,Payment to Private Contractors,640.00,BEECH GROVE SURGERY
Revenue,Head of Economy & Tourism,5105693832,10.10.2014,The Heights,Payment to Private Contractors,265.00,BEL SOLUTIONS LTD
Revenue,Head of Economy & Tourism,5105693832,10.10.2014,Medina Leisure Centre,Payment to Private Contractors,373.75,BEL SOLUTIONS LTD
Revenue,Head of Economy & Tourism,5105693832,10.10.2014,Westridge Squash Courts,Payment to Private Contractors,117.50,BEL SOLUTIONS LTD
Revenue,Head of ASC & Community Wellbeing,5105694132,15.10.2014,Community Laundry Service,Clothing & Laundry,13.74,BERENDSEN
Revenue,Head of ASC & Community Wellbeing,5105694158,17.10.2014,Community Laundry Service,Clothing & Laundry,13.74,BERENDSEN
Revenue,Head of ASC & Community Wellbeing,5105694159,17.10.2014,Community Laundry Service,Clothing & Laundry,13.74,BERENDSEN
Revenue,Head of ASC & Community Wellbeing,5105689698,15.10.2014,Community Laundry Service,Clothing & Laundry,13.74,BERENDSEN
Revenue,Head of ASC & Community Wellbeing,5105689695,15.10.2014,Community Laundry Service,Clothing & Laundry,13.74,BERENDSEN
Revenue,Head of ASC & Community Wellbeing,5105689229,15.10.2014,Community Laundry Service,Clothing & Laundry,13.74,BERENDSEN
Revenue,Head of ASC & Community Wellbeing,5105689700,15.10.2014,Community Laundry Service,Clothing & Laundry,13.74,BERENDSEN
Revenue,Head of ASC & Community Wellbeing,5105695364,17.10.2014,B&B Properties,Accommodation Costs - Bed & Breakfast,"4,994.00",BERTRAM LODGE
Revenue,Head of HR & Organisational Change,5105694081,15.10.2014,ICT Management,Catering Purchases,12.96,BETA PAK LTD
Revenue,Head of HR & Organisational Change,5105694080,15.10.2014,ICT Service Support Manager,Catering Purchases,17.79,BETA PAK LTD
Revenue,Head of ASC & Community Wellbeing,5105696403,29.10.2014,Downside Community & Learning Centre,Consumable Cleaning Materials,8.16,BETA PAK LTD
Revenue,Head of ASC & Community Wellbeing,5105696403,29.10.2014,Downside Community & Learning Centre,Consumable Cleaning Materials,13.42,BETA PAK LTD
Revenue,Head of ASC & Community Wellbeing,5105696403,29.10.2014,Downside Community & Learning Centre,Consumable Cleaning Materials,19.95,BETA PAK LTD
Revenue,Head of ASC & Community Wellbeing,5105693530,10.10.2014,Downside Community & Learning Centre,Consumable Cleaning Materials,8.16,BETA PAK LTD
Revenue,Head of ASC & Community Wellbeing,5105693530,10.10.2014,Downside Community & Learning Centre,Consumable Cleaning Materials,19.97,BETA PAK LTD
Revenue,Head of ASC & Community Wellbeing,5105693530,10.10.2014,Downside Community & Learning Centre,Consumable Cleaning Materials,26.84,BETA PAK LTD
Revenue,Head of ASC & Community Wellbeing,5105693759,10.10.2014,Downside Community & Learning Centre,Consumable Cleaning Materials,5.44,BETA PAK LTD
Revenue,Head of ASC & Community Wellbeing,5105693759,10.10.2014,Downside Community & Learning Centre,Consumable Cleaning Materials,13.42,BETA PAK LTD
Revenue,Head of ASC & Community Wellbeing,5105693759,10.10.2014,Downside Community & Learning Centre,Consumable Cleaning Materials,6.28,BETA PAK LTD
Revenue,Head of ASC & Community Wellbeing,5105693759,10.10.2014,Downside Community & Learning Centre,Consumable Cleaning Materials,19.97,BETA PAK LTD
Revenue,Head of ASC & Community Wellbeing,5105693759,10.10.2014,Downside Community & Learning Centre,Consumable Cleaning Materials,39.90,BETA PAK LTD
Revenue,Head of ASC & Community Wellbeing,5105693889,10.10.2014,Downside Community & Learning Centre,Consumable Cleaning Materials,8.16,BETA PAK LTD
Revenue,Head of ASC & Community Wellbeing,5105693889,10.10.2014,Downside Community & Learning Centre,Consumable Cleaning Materials,19.95,BETA PAK LTD
Revenue,Head of ASC & Community Wellbeing,5105693889,10.10.2014,Downside Community & Learning Centre,Consumable Cleaning Materials,6.28,BETA PAK LTD
Revenue,Head of ASC & Community Wellbeing,5105693889,10.10.2014,Downside Community & Learning Centre,Consumable Cleaning Materials,13.32,BETA PAK LTD
Revenue,Head of ASC & Community Wellbeing,5105693885,15.10.2014,31 Carter Avenue,Operational Equipment,173.23,BETA PAK LTD
Revenue,Head of ASC & Community Wellbeing,5105691372,01.10.2014,31 Carter Avenue,Operational Equipment,53.06,BETA PAK LTD
Revenue,Head of ASC & Community Wellbeing,5105696299,29.10.2014,31 Carter Avenue,Operational Equipment,56.10,BETA PAK LTD
Revenue,Head of ASC & Community Wellbeing,5105692422,08.10.2014,Overbrook,Operational Equipment,7.70,BETA PAK LTD
Revenue,Head of ASC & Community Wellbeing,5105693888,10.10.2014,Seagulls,Operational Equipment,170.86,BETA PAK LTD
Revenue,Head of ASC & Community Wellbeing,5105696279,29.10.2014,Seagulls,Operational Equipment,11.49,BETA PAK LTD
Revenue,Head of ASC & Community Wellbeing,5105694947,22.10.2014,Plean Dene,Operational Equipment,7.59,BETA PAK LTD
Revenue,Head of ASC & Community Wellbeing,5105694947,22.10.2014,Plean Dene,Operational Equipment,68.94,BETA PAK LTD
Revenue,Head of ASC & Community Wellbeing,5105692304,03.10.2014,Plean Dene,Operational Equipment,57.60,BETA PAK LTD
Revenue,Head of ASC & Community Wellbeing,5105692539,08.10.2014,Plean Dene,Operational Equipment,44.45,BETA PAK LTD
Revenue,Head of ASC & Community Wellbeing,5105692054,03.10.2014,Saxonbury,Operational Equipment,201.26,BETA PAK LTD
Revenue,Head of ASC & Community Wellbeing,5105695573,22.10.2014,Saxonbury,Operational Equipment,297.72,BETA PAK LTD
Revenue,Head of ASC & Community Wellbeing,5105694106,15.10.2014,Saxonbury,Operational Equipment,62.00,BETA PAK LTD
Revenue,Head of ASC & Community Wellbeing,5105693340,08.10.2014,Saxonbury,Operational Equipment,81.34,BETA PAK LTD
Revenue,Head of ASC & Community Wellbeing,5105692382,03.10.2014,Saxonbury,Operational Equipment,49.96,BETA PAK LTD
Revenue,Head of ASC & Community Wellbeing,5105692382,03.10.2014,Saxonbury,Operational Equipment,23.08,BETA PAK LTD
Revenue,Head of ASC & Community Wellbeing,5105696198,24.10.2014,Saxonbury,Operational Equipment,2.92,BETA PAK LTD
Revenue,Head of ASC & Community Wellbeing,5105696906,31.10.2014,Highmead,Operational Equipment,22.00,BETA PAK LTD
Revenue,Head of ASC & Community Wellbeing,5105693249,08.10.2014,Highmead,Operational Equipment,177.19,BETA PAK LTD
Revenue,Head of ASC & Community Wellbeing,5105693289,28.10.2014,Highmead,Operational Equipment,3.92,BETA PAK LTD
Revenue,Head of ASC & Community Wellbeing,5105694078,15.10.2014,Highmead,Operational Equipment,75.89,BETA PAK LTD
Revenue,Head of ASC & Community Wellbeing,5105694079,15.10.2014,Highmead,Operational Equipment,-75.89,BETA PAK LTD
Revenue,Head of ASC & Community Wellbeing,5105693840,10.10.2014,The Laurels,Operational Equipment,21.98,BETA PAK LTD
Revenue,Head of ASC & Community Wellbeing,5105692052,03.10.2014,The Laurels,Operational Equipment,2.92,BETA PAK LTD
Revenue,Head of ASC & Community Wellbeing,5105691986,03.10.2014,The Laurels,Operational Equipment,94.74,BETA PAK LTD
Revenue,Head of ASC & Community Wellbeing,5105692534,08.10.2014,The Laurels,Operational Equipment,38.68,BETA PAK LTD
Revenue,Head of ASC & Community Wellbeing,5105692378,03.10.2014,Community Outreach,Operational Equipment,340.69,BETA PAK LTD
Revenue,Head of ASC & Community Wellbeing,5105691855,03.10.2014,Adelaide Resource Centre,Consumable Cleaning Materials,30.54,BETA PAK LTD
Revenue,Head of ASC & Community Wellbeing,5105696086,29.10.2014,Gouldings Resource Centre,Consumable Cleaning Materials,643.51,BETA PAK LTD
Revenue,Head of ASC & Community Wellbeing,5105695423,22.10.2014,Westminster House,Consumable Cleaning Materials,7.64,BETA PAK LTD
Revenue,Head of ASC & Community Wellbeing,5105696494,29.10.2014,Westminster House,Consumable Cleaning Materials,9.56,BETA PAK LTD
Revenue,Head of ASC & Community Wellbeing,5105696389,29.10.2014,Westminster House,Consumable Cleaning Materials,-126.88,BETA PAK LTD
Revenue,Head of ASC & Community Wellbeing,5105696387,29.10.2014,Westminster House,Consumable Cleaning Materials,197.96,BETA PAK LTD
Revenue,Head of ASC & Community Wellbeing,5105696490,29.10.2014,Westminster House,Consumable Cleaning Materials,9.56,BETA PAK LTD
Revenue,Head of ASC & Community Wellbeing,5105694082,15.10.2014,Westminster House,Consumable Cleaning Materials,26.90,BETA PAK LTD
Revenue,Head of ASC & Community Wellbeing,5105694091,15.10.2014,Westminster House,Consumable Cleaning Materials,137.78,BETA PAK LTD
Revenue,Head of ASC & Community Wellbeing,5105694092,15.10.2014,Westminster House,Consumable Cleaning Materials,13.44,BETA PAK LTD
Revenue,Head of ASC & Community Wellbeing,5105694089,15.10.2014,Westminster House,Consumable Cleaning Materials,7.64,BETA PAK LTD
Revenue,Head of ASC & Community Wellbeing,5105694088,15.10.2014,Westminster House,Consumable Cleaning Materials,36.10,BETA PAK LTD
Revenue,Head of ASC & Community Wellbeing,5105694086,15.10.2014,Westminster House,Consumable Cleaning Materials,75.00,BETA PAK LTD
Revenue,Head of ASC & Community Wellbeing,5105694948,22.10.2014,Westminster House,Consumable Cleaning Materials,95.30,BETA PAK LTD
Revenue,Head of ASC & Community Wellbeing,5105694085,15.10.2014,Westminster House,Operational Equipment,89.05,BETA PAK LTD
Revenue,Head of ASC & Community Wellbeing,5105694083,15.10.2014,Westminster House,Operational Equipment,8.00,BETA PAK LTD
Revenue,Head of ASC & Community Wellbeing,5105694087,15.10.2014,Westminster House,Operational Equipment,6.52,BETA PAK LTD
Revenue,Head of ASC & Community Wellbeing,5105695421,22.10.2014,Westminster House,Catering Purchases,15.50,BETA PAK LTD
Revenue,Head of ASC & Community Wellbeing,5105694093,15.10.2014,Westminster House,Clothing & Laundry,86.04,BETA PAK LTD
Revenue,Head of ASC & Community Wellbeing,5105694090,15.10.2014,Westminster House,Clothing & Laundry,43.02,BETA PAK LTD
Revenue,Head of ASC & Community Wellbeing,5105694084,15.10.2014,Westminster House,Clothing & Laundry,86.04,BETA PAK LTD
Revenue,Head of ASC & Community Wellbeing,5105694946,22.10.2014,Westminster House,Clothing & Laundry,212.24,BETA PAK LTD
Revenue,Head of ASC & Community Wellbeing,5105695446,22.10.2014,Westminster House,Clothing & Laundry,-212.24,BETA PAK LTD
Revenue,Head of ASC & Community Wellbeing,5105695422,22.10.2014,Westminster House,Clothing & Laundry,43.02,BETA PAK LTD
Revenue,Director of Childrens Services,5105695456,24.10.2014,Youth Offending Team,Catering Purchases,1.20,BETA PAK LTD
Revenue,Head of ASC & Community Wellbeing,5105694455,15.10.2014,Elderly Frail Homecare,Charges from Independent Providers,"1,417.22",BETTER AT HOME IOW LTD
Revenue,Head of ASC & Community Wellbeing,5105694454,15.10.2014,Elderly Frail Homecare,Charges from Independent Providers,"1,461.74",BETTER AT HOME IOW LTD
Revenue,Head of ASC & Community Wellbeing,5105694460,15.10.2014,Elderly Frail Homecare,Charges from Independent Providers,"1,038.80",BETTER AT HOME IOW LTD
Revenue,Head of ASC & Community Wellbeing,5105694464,15.10.2014,Elderly Frail Homecare,Charges from Independent Providers,727.16,BETTER AT HOME IOW LTD
Revenue,Head of ASC & Community Wellbeing,5105694458,15.10.2014,Elderly Frail Homecare,Charges from Independent Providers,994.28,BETTER AT HOME IOW LTD
Revenue,Head of ASC & Community Wellbeing,5105694456,15.10.2014,Elderly Frail Homecare,Charges from Independent Providers,905.24,BETTER AT HOME IOW LTD
Revenue,Head of ASC & Community Wellbeing,5105694467,15.10.2014,Elderly Frail Homecare,Charges from Independent Providers,727.16,BETTER AT HOME IOW LTD
Revenue,Head of ASC & Community Wellbeing,5105694468,15.10.2014,Elderly Frail Homecare,Charges from Independent Providers,22.26,BETTER AT HOME IOW LTD
Revenue,Head of ASC & Community Wellbeing,5105694457,15.10.2014,Elderly Frail Homecare,Charges from Independent Providers,690.06,BETTER AT HOME IOW LTD
Revenue,Head of ASC & Community Wellbeing,5105694461,15.10.2014,Elderly Frail Homecare,Charges from Independent Providers,415.52,BETTER AT HOME IOW LTD
Revenue,Head of ASC & Community Wellbeing,5105694462,15.10.2014,Elderly Frail Homecare,Charges from Independent Providers,400.68,BETTER AT HOME IOW LTD
Revenue,Head of ASC & Community Wellbeing,5105694463,15.10.2014,Elderly Frail Homecare,Charges from Independent Providers,207.76,BETTER AT HOME IOW LTD
Revenue,Head of ASC & Community Wellbeing,5105694471,15.10.2014,Elderly Frail Homecare,Charges from Independent Providers,623.28,BETTER AT HOME IOW LTD
Revenue,Head of ASC & Community Wellbeing,5105694475,15.10.2014,Elderly Frail Homecare,Charges from Independent Providers,207.76,BETTER AT HOME IOW LTD
Revenue,Head of ASC & Community Wellbeing,5105694465,15.10.2014,Elderly Frail Homecare,Charges from Independent Providers,972.02,BETTER AT HOME IOW LTD
Revenue,Head of ASC & Community Wellbeing,5105694466,15.10.2014,Elderly Frail Homecare,Charges from Independent Providers,415.52,BETTER AT HOME IOW LTD
Revenue,Head of ASC & Community Wellbeing,5105694459,15.10.2014,Elderly Frail Homecare,Charges from Independent Providers,"1,038.80",BETTER AT HOME IOW LTD
Revenue,Head of ASC & Community Wellbeing,5105694473,15.10.2014,Elderly Frail Homecare,Charges from Independent Providers,934.92,BETTER AT HOME IOW LTD
Revenue,Head of ASC & Community Wellbeing,5105694469,15.10.2014,Elderly Frail Homecare,Charges from Independent Providers,207.76,BETTER AT HOME IOW LTD
Revenue,Head of ASC & Community Wellbeing,5105694453,15.10.2014,Elderly Frail Homecare,Charges from Independent Providers,37.10,BETTER AT HOME IOW LTD
Revenue,Head of ASC & Community Wellbeing,5105694482,15.10.2014,Elderly Frail Homecare,Charges from Independent Providers,207.76,BETTER AT HOME IOW LTD
Revenue,Head of ASC & Community Wellbeing,5105694483,15.10.2014,Elderly Frail Homecare,Charges from Independent Providers,415.52,BETTER AT HOME IOW LTD
Revenue,Head of ASC & Community Wellbeing,5105694496,15.10.2014,Elderly Frail Homecare,Charges from Independent Providers,96.46,BETTER AT HOME IOW LTD
Revenue,Head of ASC & Community Wellbeing,5105694486,15.10.2014,Elderly Frail Homecare,Charges from Independent Providers,44.52,BETTER AT HOME IOW LTD
Revenue,Head of ASC & Community Wellbeing,5105694491,15.10.2014,Elderly Frail Homecare,Charges from Independent Providers,215.18,BETTER AT HOME IOW LTD
Revenue,Head of ASC & Community Wellbeing,5105694490,15.10.2014,Elderly Frail Homecare,Charges from Independent Providers,59.36,BETTER AT HOME IOW LTD
Revenue,Head of ASC & Community Wellbeing,5105694516,15.10.2014,Elderly Frail Homecare,Charges from Independent Providers,"1,038.80",BETTER AT HOME IOW LTD
Revenue,Head of ASC & Community Wellbeing,5105695405,22.10.2014,Elderly Frail Homecare,Charges from Independent Providers,779.10,BETTER AT HOME IOW LTD
Revenue,Head of ASC & Community Wellbeing,5105694517,15.10.2014,Elderly Frail Homecare,Charges from Independent Providers,972.02,BETTER AT HOME IOW LTD
Revenue,Head of ASC & Community Wellbeing,5105694493,15.10.2014,Elderly Frail Homecare,Charges from Independent Providers,415.52,BETTER AT HOME IOW LTD
Revenue,Head of ASC & Community Wellbeing,5105694494,15.10.2014,Elderly Frail Homecare,Charges from Independent Providers,207.76,BETTER AT HOME IOW LTD
Revenue,Head of ASC & Community Wellbeing,5105694507,15.10.2014,Elderly Frail Homecare,Charges from Independent Providers,727.16,BETTER AT HOME IOW LTD
Revenue,Head of ASC & Community Wellbeing,5105694508,15.10.2014,Elderly Frail Homecare,Charges from Independent Providers,311.64,BETTER AT HOME IOW LTD
Revenue,Head of ASC & Community Wellbeing,5105694501,15.10.2014,Elderly Frail Homecare,Charges from Independent Providers,408.10,BETTER AT HOME IOW LTD
Revenue,Head of ASC & Community Wellbeing,5105694487,15.10.2014,Elderly Frail Homecare,Charges from Independent Providers,44.52,BETTER AT HOME IOW LTD
Revenue,Head of ASC & Community Wellbeing,5105694489,15.10.2014,Elderly Frail Homecare,Charges from Independent Providers,"1,068.48",BETTER AT HOME IOW LTD
Revenue,Head of ASC & Community Wellbeing,5105694498,15.10.2014,Elderly Frail Homecare,Charges from Independent Providers,207.76,BETTER AT HOME IOW LTD
Revenue,Head of ASC & Community Wellbeing,5105694492,15.10.2014,Elderly Frail Homecare,Charges from Independent Providers,430.36,BETTER AT HOME IOW LTD
Revenue,Head of ASC & Community Wellbeing,5105694499,15.10.2014,Elderly Frail Homecare,Charges from Independent Providers,415.52,BETTER AT HOME IOW LTD
Revenue,Head of ASC & Community Wellbeing,5105694521,15.10.2014,Elderly Frail Homecare,Charges from Independent Providers,103.88,BETTER AT HOME IOW LTD
Revenue,Head of ASC & Community Wellbeing,5105694522,15.10.2014,Elderly Frail Homecare,Charges from Independent Providers,51.94,BETTER AT HOME IOW LTD
Revenue,Head of ASC & Community Wellbeing,5105694480,15.10.2014,Elderly Frail Homecare,Charges from Independent Providers,233.73,BETTER AT HOME IOW LTD
Revenue,Head of ASC & Community Wellbeing,5105694477,15.10.2014,Elderly Frail Homecare,Charges from Independent Providers,474.88,BETTER AT HOME IOW LTD
Revenue,Head of ASC & Community Wellbeing,5105694476,15.10.2014,Elderly Frail Homecare,Charges from Independent Providers,59.36,BETTER AT HOME IOW LTD
Revenue,Head of ASC & Community Wellbeing,5105694478,15.10.2014,Elderly Frail Homecare,Charges from Independent Providers,155.82,BETTER AT HOME IOW LTD
Revenue,Head of ASC & Community Wellbeing,5105694479,15.10.2014,Elderly Frail Homecare,Charges from Independent Providers,608.44,BETTER AT HOME IOW LTD
Revenue,Head of ASC & Community Wellbeing,5105694472,15.10.2014,Elderly Frail Homecare,Charges from Independent Providers,415.52,BETTER AT HOME IOW LTD
Revenue,Head of ASC & Community Wellbeing,5105694474,15.10.2014,Elderly Frail Homecare,Charges from Independent Providers,556.50,BETTER AT HOME IOW LTD
Revenue,Head of ASC & Community Wellbeing,5105694512,15.10.2014,Elderly Frail Homecare,Charges from Independent Providers,274.54,BETTER AT HOME IOW LTD
Revenue,Head of ASC & Community Wellbeing,5105694504,15.10.2014,Elderly Frail Homecare,Charges from Independent Providers,274.54,BETTER AT HOME IOW LTD
Revenue,Head of ASC & Community Wellbeing,5105694519,15.10.2014,Elderly Frail Homecare,Regular Respite Care,29.68,BETTER AT HOME IOW LTD
Revenue,Head of ASC & Community Wellbeing,5105694520,15.10.2014,Elderly Frail Homecare,Regular Respite Care,89.04,BETTER AT HOME IOW LTD
Revenue,Head of ASC & Community Wellbeing,5105694484,15.10.2014,Elderly Frail Homecare,Regular Respite Care,89.04,BETTER AT HOME IOW LTD
Revenue,Head of ASC & Community Wellbeing,5105694485,15.10.2014,Elderly Frail Homecare,Regular Respite Care,118.72,BETTER AT HOME IOW LTD
Revenue,Head of ASC & Community Wellbeing,5105694488,15.10.2014,Elderly Frail Homecare,Regular Respite Care,118.72,BETTER AT HOME IOW LTD
Revenue,Head of ASC & Community Wellbeing,5105694481,15.10.2014,Elderly Frail Homecare,Regular Respite Care,118.72,BETTER AT HOME IOW LTD
Revenue,Head of ASC & Community Wellbeing,5105696920,31.10.2014,Elderly Frail Homecare,Regular Respite Care,74.20,BETTER AT HOME IOW LTD
Revenue,Head of ASC & Community Wellbeing,5105694495,15.10.2014,Elderly Frail Homecare,Regular Respite Care,74.20,BETTER AT HOME IOW LTD
Revenue,Head of ASC & Community Wellbeing,5105694515,15.10.2014,Elderly Frail Homecare,Regular Respite Care,89.04,BETTER AT HOME IOW LTD
Revenue,Head of ASC & Community Wellbeing,5105694506,15.10.2014,Elderly Frail Homecare,Regular Respite Care,237.44,BETTER AT HOME IOW LTD
Revenue,Head of ASC & Community Wellbeing,5105694509,15.10.2014,Elderly Frail Homecare,Regular Respite Care,89.04,BETTER AT HOME IOW LTD
Revenue,Head of ASC & Community Wellbeing,5105694497,15.10.2014,Elderly Mentally Ill Homecare,Charges from Independent Providers,623.28,BETTER AT HOME IOW LTD
Revenue,Head of ASC & Community Wellbeing,5105694513,15.10.2014,Elderly Mentally Ill Homecare,Charges from Independent Providers,"1,869.84",BETTER AT HOME IOW LTD
Revenue,Head of ASC & Community Wellbeing,5105694514,15.10.2014,Elderly Mentally Ill Homecare,Charges from Independent Providers,415.52,BETTER AT HOME IOW LTD
Revenue,Head of ASC & Community Wellbeing,5105694470,15.10.2014,Mental Health Homecare,Charges from Independent Providers,89.04,BETTER AT HOME IOW LTD
Revenue,Head of ASC & Community Wellbeing,5105694503,15.10.2014,Physical Disability Homecare,Charges from Independent Providers,311.64,BETTER AT HOME IOW LTD
Revenue,Head of ASC & Community Wellbeing,5105694505,15.10.2014,Physical Disability Homecare,Charges from Independent Providers,207.76,BETTER AT HOME IOW LTD
Revenue,Head of ASC & Community Wellbeing,5105694500,15.10.2014,Physical Disability Homecare,Charges from Independent Providers,77.91,BETTER AT HOME IOW LTD
Revenue,Head of ASC & Community Wellbeing,5105694502,15.10.2014,Physical Disability Homecare,Charges from Independent Providers,415.52,BETTER AT HOME IOW LTD
Revenue,Head of ASC & Community Wellbeing,5105694510,15.10.2014,Physical Disability Homecare,Regular Respite Care,118.72,BETTER AT HOME IOW LTD
Revenue,Head of ASC & Community Wellbeing,5105694511,15.10.2014,Physical Disability Homecare,Charges from Independent Providers,"1,075.90",BETTER AT HOME IOW LTD
Revenue,Head of ASC & Community Wellbeing,5105694518,15.10.2014,Physical Disability Homecare,Charges from Independent Providers,348.74,BETTER AT HOME IOW LTD
Revenue,Director of Childrens Services,5105693287,28.10.2014,Core Programmes,Training,375.00,BEVAN YOUNG ASSOCIATES
Revenue,Director of Childrens Services,5105693347,08.10.2014,Core Programmes,Training,750.00,BEVAN YOUNG ASSOCIATES
Revenue,Head of Economy & Tourism,5105692332,03.10.2014,Public Libraries Central,Purchase of Books,"4,000.00",BIBLIOGRAPHIC DATA SERVICES LTD
Revenue,Head of Economy & Tourism,5105692350,03.10.2014,Public Libraries Central,Computer Maintenance,"2,808.00",BIBLIOTHECA LTD
Revenue,Head of Economy & Tourism,5105692351,03.10.2014,Public Libraries Central,Computer Maintenance,396.00,BIBLIOTHECA LTD
Revenue,Head of Economy & Tourism,5105696484,29.10.2014,Public Libraries Central,Stationery,164.78,BIBLIOTHECA LTD
Revenue,Head of HR & Organisational Change,5105690880,15.10.2014,"Civic Centre,Sandown","Refuse Collection, Disposal and Recycling Costs",127.72,BIFFA WASTE SERVICES LTD
Revenue,Head of HR & Organisational Change,5105696202,29.10.2014,"Civic Centre,Sandown","Refuse Collection, Disposal and Recycling Costs",115.60,BIFFA WASTE SERVICES LTD
Revenue,Head of HR & Organisational Change,5105696197,29.10.2014,"Civic Centre,Sandown","Refuse Collection, Disposal and Recycling Costs",59.65,BIFFA WASTE SERVICES LTD
Revenue,Head of HR & Organisational Change,5105695279,17.10.2014,"Bugle House,Newport","Refuse Collection, Disposal and Recycling Costs",189.55,BIFFA WASTE SERVICES LTD
Revenue,Head of HR & Organisational Change,5105695279,17.10.2014,"Westridge, Ryde","Refuse Collection, Disposal and Recycling Costs",60.00,BIFFA WASTE SERVICES LTD
Revenue,Head of ASC & Community Wellbeing,5105695279,17.10.2014,S75 Integrated Community Equipment Store,"Refuse Collection, Disposal and Recycling Costs",78.88,BIFFA WASTE SERVICES LTD
Revenue,Head of ASC & Community Wellbeing,5105695279,17.10.2014,31 Carter Avenue,"Refuse Collection, Disposal and Recycling Costs",103.25,BIFFA WASTE SERVICES LTD
Revenue,Head of ASC & Community Wellbeing,5105695279,17.10.2014,Overbrook,"Refuse Collection, Disposal and Recycling Costs",114.50,BIFFA WASTE SERVICES LTD
Revenue,Head of ASC & Community Wellbeing,5105695279,17.10.2014,Seagulls,"Refuse Collection, Disposal and Recycling Costs",83.79,BIFFA WASTE SERVICES LTD
Revenue,Head of ASC & Community Wellbeing,5105695279,17.10.2014,Plean Dene,"Refuse Collection, Disposal and Recycling Costs",200.55,BIFFA WASTE SERVICES LTD
Revenue,Head of ASC & Community Wellbeing,5105695279,17.10.2014,Saxonbury,"Refuse Collection, Disposal and Recycling Costs",97.75,BIFFA WASTE SERVICES LTD
Revenue,Head of ASC & Community Wellbeing,5105695279,17.10.2014,40 Venner Avenue,"Refuse Collection, Disposal and Recycling Costs",5.95,BIFFA WASTE SERVICES LTD
Revenue,Head of ASC & Community Wellbeing,5105695279,17.10.2014,Highmead,"Refuse Collection, Disposal and Recycling Costs",64.33,BIFFA WASTE SERVICES LTD
Revenue,Head of ASC & Community Wellbeing,5105695279,17.10.2014,The Laurels,"Refuse Collection, Disposal and Recycling Costs",64.33,BIFFA WASTE SERVICES LTD
Revenue,Head of ASC & Community Wellbeing,5105695819,22.10.2014,Gouldings Resource Centre,"Refuse Collection, Disposal and Recycling Costs",355.20,BIFFA WASTE SERVICES LTD
Revenue,Head of ASC & Community Wellbeing,5105695820,22.10.2014,Gouldings Resource Centre,"Refuse Collection, Disposal and Recycling Costs",114.50,BIFFA WASTE SERVICES LTD
Revenue,Head of ASC & Community Wellbeing,5105695816,22.10.2014,Gouldings Resource Centre,"Refuse Collection, Disposal and Recycling Costs",284.16,BIFFA WASTE SERVICES LTD
Revenue,Head of ASC & Community Wellbeing,5105695817,22.10.2014,Gouldings Resource Centre,"Refuse Collection, Disposal and Recycling Costs",91.60,BIFFA WASTE SERVICES LTD
Revenue,Head of ASC & Community Wellbeing,5105695279,17.10.2014,Westminster House,"Refuse Collection, Disposal and Recycling Costs",54.60,BIFFA WASTE SERVICES LTD
Revenue,Head of Economy & Tourism,5105695279,17.10.2014,Leisure Management & Admin,"Refuse Collection, Disposal and Recycling Costs",189.55,BIFFA WASTE SERVICES LTD
Revenue,Head of Economy & Tourism,5105695279,17.10.2014,Public Libraries Central,"Refuse Collection, Disposal and Recycling Costs",576.10,BIFFA WASTE SERVICES LTD
Revenue,Director of Childrens Services,5105695279,17.10.2014,Learning & Development Running Costs,"Refuse Collection, Disposal and Recycling Costs",42.67,BIFFA WASTE SERVICES LTD
Revenue,Head of Economy & Tourism,5105695279,17.10.2014,Cothey Bottom Store RYDE,"Refuse Collection, Disposal and Recycling Costs",30.01,BIFFA WASTE SERVICES LTD
Revenue,Head of Economy & Tourism,5105695279,17.10.2014,Dinosaur Isle Museum (Sandown Geology),"Refuse Collection, Disposal and Recycling Costs",55.08,BIFFA WASTE SERVICES LTD
Revenue,Head of Economy & Tourism,5105695279,17.10.2014,The Heights,"Refuse Collection, Disposal and Recycling Costs",427.75,BIFFA WASTE SERVICES LTD
Revenue,Head of Economy & Tourism,5105695279,17.10.2014,Medina Leisure Centre,"Refuse Collection, Disposal and Recycling Costs",291.69,BIFFA WASTE SERVICES LTD
Revenue,Head of Economy & Tourism,5105695279,17.10.2014,Westridge Squash Courts,"Refuse Collection, Disposal and Recycling Costs",30.01,BIFFA WASTE SERVICES LTD
Revenue,Head of Economy & Tourism,5105695279,17.10.2014,Ryde Harbour,"Refuse Collection, Disposal and Recycling Costs",230.66,BIFFA WASTE SERVICES LTD
Revenue,Head of Economy & Tourism,5105695279,17.10.2014,Seaclose Amusements,"Refuse Collection, Disposal and Recycling Costs",19.44,BIFFA WASTE SERVICES LTD
Revenue,Director of Childrens Services,5105695279,17.10.2014,Family Information Zone,"Refuse Collection, Disposal and Recycling Costs",20.80,BIFFA WASTE SERVICES LTD
Revenue,Director of Childrens Services,5105695279,17.10.2014,Youth Offending Team,"Refuse Collection, Disposal and Recycling Costs",448.00,BIFFA WASTE SERVICES LTD
Revenue,Director of Childrens Services,5105695279,17.10.2014,Specialist Service Business Admin,"Refuse Collection, Disposal and Recycling Costs",195.50,BIFFA WASTE SERVICES LTD
Revenue,Director of Childrens Services,5105695279,17.10.2014,Beaulieu House,"Refuse Collection, Disposal and Recycling Costs",211.50,BIFFA WASTE SERVICES LTD
Revenue,Director of Childrens Services,5105695279,17.10.2014,Parent Partnership,"Refuse Collection, Disposal and Recycling Costs",20.80,BIFFA WASTE SERVICES LTD
Revenue,Director of Childrens Services,5105695279,17.10.2014,Education Participation Team,"Refuse Collection, Disposal and Recycling Costs",65.73,BIFFA WASTE SERVICES LTD
Revenue,Head of Economy & Tourism,5105695279,17.10.2014,Ferry Management,"Refuse Collection, Disposal and Recycling Costs",103.25,BIFFA WASTE SERVICES LTD
Revenue,Head of Economy & Tourism,5105694152,15.10.2014,Countryside Management,"Refuse Collection, Disposal and Recycling Costs",20.17,BIFFA WASTE SERVICES LTD
Revenue,Head of Economy & Tourism,5105694152,15.10.2014,Countryside Management,"Refuse Collection, Disposal and Recycling Costs",19.37,BIFFA WASTE SERVICES LTD
Revenue,Head of Economy & Tourism,5105694154,15.10.2014,Countryside Management,"Refuse Collection, Disposal and Recycling Costs",19.35,BIFFA WASTE SERVICES LTD
Revenue,Head of Economy & Tourism,5105694154,15.10.2014,Countryside Management,"Refuse Collection, Disposal and Recycling Costs",18.59,BIFFA WASTE SERVICES LTD
Revenue,Head of Economy & Tourism,5105695279,17.10.2014,Fort Victoria,"Refuse Collection, Disposal and Recycling Costs",171.19,BIFFA WASTE SERVICES LTD
Revenue,Head of Economy & Tourism,5105695279,17.10.2014,Newport Harbour Account,"Refuse Collection, Disposal and Recycling Costs",564.66,BIFFA WASTE SERVICES LTD
Revenue,Head of Economy & Tourism,5105695279,17.10.2014,Newport Harbour Account,"Refuse Collection, Disposal and Recycling Costs",122.71,BIFFA WASTE SERVICES LTD
Revenue,Chief Fire Officer,5105696199,29.10.2014,Fire Operations,"Refuse Collection, Disposal and Recycling Costs",28.80,BIFFA WASTE SERVICES LTD
Revenue,Chief Fire Officer,5105696200,29.10.2014,Fire Operations,"Refuse Collection, Disposal and Recycling Costs",53.50,BIFFA WASTE SERVICES LTD
Revenue,Chief Fire Officer,5105696201,29.10.2014,Fire Operations,"Refuse Collection, Disposal and Recycling Costs",134.75,BIFFA WASTE SERVICES LTD
Revenue,Head of Planning & Regulatory Services,5105695279,17.10.2014,Planning Business Support,"Refuse Collection, Disposal and Recycling Costs",195.50,BIFFA WASTE SERVICES LTD
Revenue,Head of Planning & Regulatory Services,5105695279,17.10.2014,Regulatory Management & Admin Support,"Refuse Collection, Disposal and Recycling Costs",116.11,BIFFA WASTE SERVICES LTD
Revenue,Head of Economy & Tourism,5105695279,17.10.2014,Crematorium,"Refuse Collection, Disposal and Recycling Costs",116.11,BIFFA WASTE SERVICES LTD
Revenue,Chief Fire Officer,5105692312,08.10.2014,LIFE Project,Operational Equipment,219.45,BIG WIGHT T-SHIRT CO
Revenue,Chief Fire Officer,5105692312,08.10.2014,LIFE Project,Operational Equipment,121.20,BIG WIGHT T-SHIRT CO
Revenue,Director of Childrens Services,5105693694,10.10.2014,Leaving Care Costs,Support Children,65.00,REDACTED PERSONAL DATA
Revenue,Director of Childrens Services,5105695109,17.10.2014,Leaving Care Costs,Support Children,65.00,REDACTED PERSONAL DATA
Revenue,Director of Childrens Services,5105692211,03.10.2014,Leaving Care Costs,Support Children,65.00,REDACTED PERSONAL DATA
Revenue,Director of Childrens Services,5105696006,24.10.2014,Leaving Care Costs,Support Children,65.00,REDACTED PERSONAL DATA
Revenue,Director of Childrens Services,5105696746,31.10.2014,Leaving Care Costs,Support Children,65.00,REDACTED PERSONAL DATA
Revenue,Head of Economy & Tourism,5105696802,31.10.2014,Play Development,Operational Equipment,167.75,BISHOP SPORTS & LEISURE LTD
Revenue,Head of Economy & Tourism,5105696802,31.10.2014,Play Development,Operational Equipment,109.50,BISHOP SPORTS & LEISURE LTD
Revenue,Head of Economy & Tourism,5105696802,31.10.2014,Play Development,Operational Equipment,9.95,BISHOP SPORTS & LEISURE LTD
Revenue,Head of Economy & Tourism,5105696802,31.10.2014,Play Development,Operational Equipment,13.50,BISHOP SPORTS & LEISURE LTD
Revenue,Head of Economy & Tourism,5105696802,31.10.2014,Play Development,Operational Equipment,13.50,BISHOP SPORTS & LEISURE LTD
Revenue,Head of Economy & Tourism,5105696802,31.10.2014,Play Development,Operational Equipment,18.50,BISHOP SPORTS & LEISURE LTD
Revenue,Head of Economy & Tourism,5105696802,31.10.2014,Play Development,Operational Equipment,4.99,BISHOP SPORTS & LEISURE LTD
Revenue,Head of Economy & Tourism,5105696802,31.10.2014,Play Development,Operational Equipment,20.60,BISHOP SPORTS & LEISURE LTD
Revenue,Head of Economy & Tourism,5105696802,31.10.2014,Play Development,Operational Equipment,11.02,BISHOP SPORTS & LEISURE LTD
Revenue,Head of ASC & Community Wellbeing,5105692540,29.10.2014,Community Outreach,Vehicle Maintenance Costs,15.00,REDACTED PERSONAL DATA
Revenue,Head of ASC & Community Wellbeing,5105692540,29.10.2014,Community Outreach,Vehicle Maintenance Costs,5.00,REDACTED PERSONAL DATA
Revenue,Head of ASC & Community Wellbeing,5105692540,29.10.2014,Community Outreach,Vehicle Maintenance Costs,5.00,REDACTED PERSONAL DATA
Revenue,Head of ASC & Community Wellbeing,5105692540,29.10.2014,Community Outreach,Vehicle Maintenance Costs,10.00,REDACTED PERSONAL DATA
Revenue,Head of ASC & Community Wellbeing,5105692540,29.10.2014,Community Outreach,Vehicle Maintenance Costs,5.00,REDACTED PERSONAL DATA
Revenue,Head of ASC & Community Wellbeing,5105692540,29.10.2014,Community Outreach,Vehicle Maintenance Costs,5.00,REDACTED PERSONAL DATA
Revenue,Head of ASC & Community Wellbeing,5105692540,29.10.2014,Community Outreach,Vehicle Maintenance Costs,10.00,REDACTED PERSONAL DATA
Revenue,Head of ASC & Community Wellbeing,5105692540,29.10.2014,Community Outreach,Vehicle Maintenance Costs,10.00,REDACTED PERSONAL DATA
Revenue,Head of ASC & Community Wellbeing,5105692540,29.10.2014,Community Outreach,Vehicle Maintenance Costs,10.00,REDACTED PERSONAL DATA
Revenue,Head of ASC & Community Wellbeing,5105692540,29.10.2014,Community Outreach,Vehicle Maintenance Costs,10.00,REDACTED PERSONAL DATA
Revenue,Head of ASC & Community Wellbeing,5105693345,08.10.2014,Community Outreach,Vehicle Maintenance Costs,10.00,REDACTED PERSONAL DATA
Revenue,Head of ASC & Community Wellbeing,5105693345,08.10.2014,Community Outreach,Vehicle Maintenance Costs,5.00,REDACTED PERSONAL DATA
Revenue,Head of ASC & Community Wellbeing,5105693354,08.10.2014,Community Outreach,Vehicle Maintenance Costs,5.00,REDACTED PERSONAL DATA
Revenue,Head of ASC & Community Wellbeing,5105693378,29.10.2014,Community Outreach,Vehicle Maintenance Costs,15.00,REDACTED PERSONAL DATA
Revenue,Head of ASC & Community Wellbeing,5105693378,29.10.2014,Community Outreach,Vehicle Maintenance Costs,5.00,REDACTED PERSONAL DATA
Revenue,Head of ASC & Community Wellbeing,5105693345,08.10.2014,Community Outreach,Vehicle Maintenance Costs,10.00,REDACTED PERSONAL DATA
Revenue,Head of ASC & Community Wellbeing,5105693345,08.10.2014,Community Outreach,Vehicle Maintenance Costs,15.00,REDACTED PERSONAL DATA
Revenue,Head of ASC & Community Wellbeing,5105693378,29.10.2014,Community Outreach,Vehicle Maintenance Costs,15.00,REDACTED PERSONAL DATA
Revenue,Head of ASC & Community Wellbeing,5105693354,08.10.2014,Community Outreach,Vehicle Maintenance Costs,5.00,REDACTED PERSONAL DATA
Revenue,Head of ASC & Community Wellbeing,5105693354,08.10.2014,Community Outreach,Vehicle Maintenance Costs,15.00,REDACTED PERSONAL DATA
Revenue,Head of ASC & Community Wellbeing,5105693378,29.10.2014,Community Outreach,Vehicle Maintenance Costs,10.00,REDACTED PERSONAL DATA
Revenue,Head of ASC & Community Wellbeing,5105693378,29.10.2014,Community Outreach,Vehicle Maintenance Costs,10.00,REDACTED PERSONAL DATA
Revenue,Head of ASC & Community Wellbeing,5105693378,29.10.2014,Community Outreach,Vehicle Maintenance Costs,10.00,REDACTED PERSONAL DATA
Revenue,Head of ASC & Community Wellbeing,5105693378,29.10.2014,Community Outreach,Vehicle Maintenance Costs,5.00,REDACTED PERSONAL DATA
Revenue,Head of ASC & Community Wellbeing,5105693378,29.10.2014,Community Outreach,Vehicle Maintenance Costs,5.00,REDACTED PERSONAL DATA
Revenue,Head of ASC & Community Wellbeing,5105693354,08.10.2014,Community Outreach,Vehicle Maintenance Costs,10.00,REDACTED PERSONAL DATA
Revenue,Head of ASC & Community Wellbeing,5105693345,08.10.2014,Community Outreach,Vehicle Maintenance Costs,10.00,REDACTED PERSONAL DATA
Revenue,Head of ASC & Community Wellbeing,5105693354,08.10.2014,Community Outreach,Vehicle Maintenance Costs,5.00,REDACTED PERSONAL DATA
Revenue,Head of ASC & Community Wellbeing,5105693378,29.10.2014,Community Outreach,Vehicle Maintenance Costs,5.00,REDACTED PERSONAL DATA
Revenue,Head of ASC & Community Wellbeing,5105693378,29.10.2014,Community Outreach,Vehicle Maintenance Costs,15.00,REDACTED PERSONAL DATA
Revenue,Head of ASC & Community Wellbeing,5105693354,08.10.2014,Community Outreach,Vehicle Maintenance Costs,20.00,REDACTED PERSONAL DATA
Revenue,Head of ASC & Community Wellbeing,5105693345,08.10.2014,Community Outreach,Vehicle Maintenance Costs,10.00,REDACTED PERSONAL DATA
Revenue,Head of ASC & Community Wellbeing,5105693354,08.10.2014,Community Outreach,Vehicle Maintenance Costs,10.00,REDACTED PERSONAL DATA
Revenue,Head of ASC & Community Wellbeing,5105693345,08.10.2014,Community Outreach,Professional Services,10.00,REDACTED PERSONAL DATA
Revenue,Head of ASC & Community Wellbeing,5105692540,29.10.2014,Community Outreach,Professional Services,10.00,REDACTED PERSONAL DATA
Revenue,Director of Childrens Services,5105693878,15.10.2014,Purchased Fostering,Charges from Independent Providers,"3,230.51",BLUE SKY FOSTERING LTD
Revenue,Director of Childrens Services,5105693850,15.10.2014,Purchased Fostering,Charges from Independent Providers,"3,230.51",BLUE SKY FOSTERING LTD
Revenue,Director of Childrens Services,5105693442,15.10.2014,Purchased Fostering,Charges from Independent Providers,"3,230.51",BLUE SKY FOSTERING LTD
Revenue,Director of Childrens Services,5105693296,08.10.2014,Beaulieu House,General Materials,33.50,BOC LTD
Revenue,Director of Childrens Services,5105695366,17.10.2014,Short Breaks,Charges from Independent Providers,390.00,BODSTER EQUINE ASSISTED LEARN CIC
Revenue,Head of ASC & Community Wellbeing,5105696351,29.10.2014,Overbrook,Catering Purchases,11.99,BOOKER CASH & CARRY LTD
Revenue,Head of ASC & Community Wellbeing,5105696351,29.10.2014,Overbrook,Catering Purchases,100.89,BOOKER CASH & CARRY LTD
Revenue,Head of ASC & Community Wellbeing,5105693802,10.10.2014,Overbrook,Catering Purchases,54.59,BOOKER CASH & CARRY LTD
Revenue,Head of ASC & Community Wellbeing,5105692067,03.10.2014,Plean Dene,Catering Purchases,19.18,BOOKER CASH & CARRY LTD
Revenue,Head of ASC & Community Wellbeing,5105692320,03.10.2014,Plean Dene,Catering Purchases,9.58,BOOKER CASH & CARRY LTD
Revenue,Head of ASC & Community Wellbeing,5105692402,03.10.2014,Plean Dene,Catering Purchases,6.25,BOOKER CASH & CARRY LTD
Revenue,Head of ASC & Community Wellbeing,5105692431,03.10.2014,Plean Dene,Catering Purchases,8.89,BOOKER CASH & CARRY LTD
Revenue,Head of ASC & Community Wellbeing,5105692427,03.10.2014,Plean Dene,Catering Purchases,43.46,BOOKER CASH & CARRY LTD
Revenue,Head of ASC & Community Wellbeing,5105692455,08.10.2014,Plean Dene,Catering Purchases,191.07,BOOKER CASH & CARRY LTD
Revenue,Head of ASC & Community Wellbeing,5105692455,08.10.2014,Plean Dene,Catering Purchases,48.36,BOOKER CASH & CARRY LTD
Revenue,Head of ASC & Community Wellbeing,5105692427,03.10.2014,Plean Dene,Catering Purchases,9.98,BOOKER CASH & CARRY LTD
Revenue,Head of ASC & Community Wellbeing,5105693767,22.10.2014,Plean Dene,Catering Purchases,7.85,BOOKER CASH & CARRY LTD
Revenue,Head of ASC & Community Wellbeing,5105693755,22.10.2014,Plean Dene,Catering Purchases,30.93,BOOKER CASH & CARRY LTD
Revenue,Head of ASC & Community Wellbeing,5105693806,22.10.2014,Plean Dene,Catering Purchases,188.01,BOOKER CASH & CARRY LTD
Revenue,Head of ASC & Community Wellbeing,5105693786,22.10.2014,Plean Dene,Catering Purchases,20.45,BOOKER CASH & CARRY LTD
Revenue,Head of ASC & Community Wellbeing,5105693806,22.10.2014,Plean Dene,Catering Purchases,32.91,BOOKER CASH & CARRY LTD
Revenue,Head of ASC & Community Wellbeing,5105696331,29.10.2014,Plean Dene,Catering Purchases,13.99,BOOKER CASH & CARRY LTD
Revenue,Head of ASC & Community Wellbeing,5105696174,24.10.2014,Plean Dene,Catering Purchases,171.27,BOOKER CASH & CARRY LTD
Revenue,Head of ASC & Community Wellbeing,5105696174,24.10.2014,Plean Dene,Catering Purchases,60.63,BOOKER CASH & CARRY LTD
Revenue,Head of ASC & Community Wellbeing,5105696844,31.10.2014,Plean Dene,Catering Purchases,9.49,BOOKER CASH & CARRY LTD
Revenue,Head of ASC & Community Wellbeing,5105696518,29.10.2014,Plean Dene,Catering Purchases,128.76,BOOKER CASH & CARRY LTD
Revenue,Head of ASC & Community Wellbeing,5105695835,29.10.2014,Plean Dene,Catering Purchases,17.78,BOOKER CASH & CARRY LTD
Revenue,Head of ASC & Community Wellbeing,5105694613,22.10.2014,Plean Dene,Catering Purchases,6.20,BOOKER CASH & CARRY LTD
Revenue,Head of ASC & Community Wellbeing,5105695323,22.10.2014,Plean Dene,Catering Purchases,43.64,BOOKER CASH & CARRY LTD
Revenue,Head of ASC & Community Wellbeing,5105695323,22.10.2014,Plean Dene,Catering Purchases,2.98,BOOKER CASH & CARRY LTD
Revenue,Head of ASC & Community Wellbeing,5400001890,31.10.2014,Plean Dene,Catering Purchases,0.10,BOOKER CASH & CARRY LTD
Revenue,Managing Director & Head of Paid Service,5105694957,17.10.2014,STI Tests & Treatment,Payment to Private Contractors,"1,854.55",BOOTS THE CHEMIST LTD (Ryde)
Revenue,Managing Director & Head of Paid Service,5105694960,17.10.2014,Drug Misuse - Adults,Payment to Private Contractors,136.50,BOOTS UK LTD (107 HIGH ST SANDOWN)
Revenue,Managing Director & Head of Paid Service,5105694960,17.10.2014,Drug Misuse - Adults,Payment to Private Contractors,30.00,BOOTS UK LTD (107 HIGH ST SANDOWN)
Revenue,Managing Director & Head of Paid Service,5105694935,17.10.2014,Contraception,Payment to Private Contractors,21.50,BOOTS UK LTD (COWES)
Revenue,Managing Director & Head of Paid Service,5105694935,17.10.2014,Contraception,Payment to Private Contractors,5.20,BOOTS UK LTD (COWES)
Revenue,Managing Director & Head of Paid Service,5105694935,17.10.2014,Drug Misuse - Adults,Payment to Private Contractors,73.50,BOOTS UK LTD (COWES)
Revenue,Managing Director & Head of Paid Service,5105694935,17.10.2014,Drug Misuse - Adults,Payment to Private Contractors,194.00,BOOTS UK LTD (COWES)
Revenue,Managing Director & Head of Paid Service,5105694935,17.10.2014,Drug Misuse - Adults,Payment to Private Contractors,30.00,BOOTS UK LTD (COWES)
Revenue,Managing Director & Head of Paid Service,5105695269,17.10.2014,Drug Misuse - Adults,Payment to Private Contractors,30.00,BOOTS UK LTD (FRESHWATER)
Revenue,Managing Director & Head of Paid Service,5105694915,15.10.2014,Contraception,Payment to Private Contractors,494.50,BOOTS UK LTD (NEWPORT)
Revenue,Managing Director & Head of Paid Service,5105694915,15.10.2014,Contraception,Payment to Private Contractors,119.60,BOOTS UK LTD (NEWPORT)
Revenue,Managing Director & Head of Paid Service,5105694915,15.10.2014,Drug Misuse - Adults,Payment to Private Contractors,30.00,BOOTS UK LTD (NEWPORT)
Revenue,Managing Director & Head of Paid Service,5105695268,17.10.2014,Contraception,Payment to Private Contractors,64.50,BOOTS UK LTD (SANDOWN LARGE STORE)
Revenue,Managing Director & Head of Paid Service,5105695268,17.10.2014,Contraception,Payment to Private Contractors,15.60,BOOTS UK LTD (SANDOWN LARGE STORE)
Revenue,Managing Director & Head of Paid Service,5105695268,17.10.2014,Drug Misuse - Adults,Payment to Private Contractors,129.50,BOOTS UK LTD (SANDOWN LARGE STORE)
Revenue,Managing Director & Head of Paid Service,5105695268,17.10.2014,Drug Misuse - Adults,Payment to Private Contractors,40.00,BOOTS UK LTD (SANDOWN LARGE STORE)
Revenue,Managing Director & Head of Paid Service,5105695268,17.10.2014,Drug Misuse - Adults,Payment to Private Contractors,30.00,BOOTS UK LTD (SANDOWN LARGE STORE)
Revenue,Managing Director & Head of Paid Service,5105694914,22.10.2014,STI Tests & Treatment,Payment to Private Contractors,323.40,BOOTS UK LTD (SHANKLIN)
Revenue,Managing Director & Head of Paid Service,5105694955,17.10.2014,Contraception,Payment to Private Contractors,64.50,BOOTS UK LTD (TOWER HOUSE)
Revenue,Managing Director & Head of Paid Service,5105694955,17.10.2014,Contraception,Payment to Private Contractors,15.60,BOOTS UK LTD (TOWER HOUSE)
Revenue,Managing Director & Head of Paid Service,5105694955,17.10.2014,Drug Misuse - Adults,Payment to Private Contractors,30.00,BOOTS UK LTD (TOWER HOUSE)
Revenue,Managing Director & Head of Paid Service,5105694955,17.10.2014,Drug Misuse - Adults,Payment to Private Contractors,30.00,BOOTS UK LTD (TOWER HOUSE)
Revenue,Managing Director & Head of Paid Service,5105694937,17.10.2014,Drug Misuse - Adults,Payment to Private Contractors,143.50,BOOTS UK LTD
Revenue,Managing Director & Head of Paid Service,5105694937,17.10.2014,Drug Misuse - Adults,Payment to Private Contractors,42.00,BOOTS UK LTD
Revenue,Managing Director & Head of Paid Service,5105694937,17.10.2014,Drug Misuse - Adults,Payment to Private Contractors,30.00,BOOTS UK LTD
Revenue,Managing Director & Head of Paid Service,5105694959,17.10.2014,STI Tests & Treatment,Payment to Private Contractors,131.60,BOOTS UK LTD (YLB BEMBRIDGE)
Revenue,Head of Economy & Tourism,5105692285,03.10.2014,The Heights,Stock Purchases,141.72,BRAKE BROS LTD
Revenue,Head of Economy & Tourism,5105695770,22.10.2014,The Heights,Stock Purchases,85.26,BRAKE BROS LTD
Revenue,Head of Economy & Tourism,5105693261,08.10.2014,The Heights,Stock Purchases,145.95,BRAKE BROS LTD
Revenue,Head of Economy & Tourism,5105693268,15.10.2014,The Heights,Stock Purchases,-145.95,BRAKE BROS LTD
Revenue,Head of Economy & Tourism,5105693270,15.10.2014,The Heights,Stock Purchases,145.95,BRAKE BROS LTD
Revenue,Head of ASC & Community Wellbeing,5105695612,22.10.2014,Leaseholds by LA,Accommodation Costs - Leaseholder Payments,588.38,BRAMBLE LETTINGS
Revenue,Head of ASC & Community Wellbeing,5105695612,22.10.2014,Leaseholds by LA,Accommodation Costs - Leaseholder Payments,746.81,BRAMBLE LETTINGS
Revenue,Head of ASC & Community Wellbeing,5105695612,22.10.2014,Leaseholds by LA,Accommodation Costs - Leaseholder Payments,769.43,BRAMBLE LETTINGS
Revenue,Head of ASC & Community Wellbeing,5105695612,22.10.2014,Leaseholds by LA,Accommodation Costs - Leaseholder Payments,746.81,BRAMBLE LETTINGS
Revenue,Head of ASC & Community Wellbeing,5105695612,22.10.2014,Leaseholds by LA,Accommodation Costs - Leaseholder Payments,746.81,BRAMBLE LETTINGS
Revenue,Head of ASC & Community Wellbeing,5105695612,22.10.2014,Leaseholds by LA,Accommodation Costs - Leaseholder Payments,746.81,BRAMBLE LETTINGS
Revenue,Head of ASC & Community Wellbeing,5105695612,22.10.2014,Leaseholds by LA,Accommodation Costs - Leaseholder Payments,746.81,BRAMBLE LETTINGS
Revenue,Head of ASC & Community Wellbeing,5105695612,22.10.2014,Leaseholds by LA,Accommodation Costs - Leaseholder Payments,746.81,BRAMBLE LETTINGS
Revenue,Head of ASC & Community Wellbeing,5105695612,22.10.2014,Leaseholds by LA,Accommodation Costs - Leaseholder Payments,746.81,BRAMBLE LETTINGS
Revenue,Head of ASC & Community Wellbeing,5105695612,22.10.2014,Leaseholds by LA,Accommodation Costs - Leaseholder Payments,746.81,BRAMBLE LETTINGS
Revenue,Head of ASC & Community Wellbeing,5105695612,22.10.2014,Leaseholds by LA,Accommodation Costs - Leaseholder Payments,746.81,BRAMBLE LETTINGS
Revenue,Head of ASC & Community Wellbeing,5105695612,22.10.2014,Leaseholds by LA,Accommodation Costs - Leaseholder Payments,588.38,BRAMBLE LETTINGS
Revenue,Head of ASC & Community Wellbeing,5105695612,22.10.2014,Leaseholds by LA,Accommodation Costs - Leaseholder Payments,588.38,BRAMBLE LETTINGS
Revenue,Head of ASC & Community Wellbeing,5105695612,22.10.2014,Leaseholds by LA,Accommodation Costs - Leaseholder Payments,588.38,BRAMBLE LETTINGS
Revenue,Head of ASC & Community Wellbeing,5105695612,22.10.2014,Leaseholds by LA,Accommodation Costs - Leaseholder Payments,588.38,BRAMBLE LETTINGS
Revenue,Head of ASC & Community Wellbeing,5105695612,22.10.2014,Leaseholds by LA,Accommodation Costs - Leaseholder Payments,746.81,BRAMBLE LETTINGS
Revenue,Head of ASC & Community Wellbeing,5105695612,22.10.2014,Leaseholds by LA,Accommodation Costs - Leaseholder Payments,746.81,BRAMBLE LETTINGS
Revenue,Head of ASC & Community Wellbeing,5105695612,22.10.2014,Leaseholds by LA,Accommodation Costs - Leaseholder Payments,746.81,BRAMBLE LETTINGS
Revenue,Head of ASC & Community Wellbeing,5105695612,22.10.2014,Leaseholds by LA,Accommodation Costs - Leaseholder Payments,746.81,BRAMBLE LETTINGS
Revenue,Head of ASC & Community Wellbeing,5105695612,22.10.2014,Leaseholds by LA,Accommodation Costs - Leaseholder Payments,746.81,BRAMBLE LETTINGS
Revenue,Head of ASC & Community Wellbeing,5105695612,22.10.2014,Leaseholds by LA,Accommodation Costs - Leaseholder Payments,746.81,BRAMBLE LETTINGS
Revenue,Head of ASC & Community Wellbeing,5105695612,22.10.2014,Leaseholds by LA,Accommodation Costs - Leaseholder Payments,588.38,BRAMBLE LETTINGS
Revenue,Managing Director & Head of Paid Service,5105696348,29.10.2014,Strengthening Families,Payments to Voluntary and Other Associations,100.00,BRAVEHEART SOCIAL ENTERPRISES LTD
Revenue,Managing Director & Head of Paid Service,5105692024,03.10.2014,Strengthening Families,Payments to Voluntary and Other Associations,100.00,BRAVEHEART SOCIAL ENTERPRISES LTD
Revenue,Chief Fire Officer,5105692023,03.10.2014,Community Safety,Operational Equipment,60.00,BRAVEHEART SOCIAL ENTERPRISES LTD
Revenue,Head of ASC & Community Wellbeing,5105693096,08.10.2014,Elderly Frail Residential Care,Charges from Independent Providers,"2,048.76",BRENDONCARE FOUNDATION
Revenue,Head of ASC & Community Wellbeing,5105692601,08.10.2014,Elderly Frail Residential Care,Charges from Independent Providers,"2,093.84",BRIGHSTONE CARE LTD
Revenue,Head of ASC & Community Wellbeing,5105692601,08.10.2014,Elderly Frail Residential Care,Charges from Independent Providers,"1,700.44",BRIGHSTONE CARE LTD
Revenue,Head of ASC & Community Wellbeing,5105692601,08.10.2014,Elderly Mentally Ill Residential Care,Charges from Independent Providers,"2,093.84",BRIGHSTONE CARE LTD
Revenue,Head of ASC & Community Wellbeing,5105692601,08.10.2014,Elderly Mentally Ill Residential Care,Charges from Independent Providers,"1,781.36",BRIGHSTONE CARE LTD
Revenue,Head of ASC & Community Wellbeing,5105692601,08.10.2014,Elderly Mentally Ill Residential Care,Charges from Independent Providers,"1,781.36",BRIGHSTONE CARE LTD
Revenue,Head of ASC & Community Wellbeing,5105692601,08.10.2014,Elderly Mentally Ill Residential Care,Charges from Independent Providers,747.80,BRIGHSTONE CARE LTD
Revenue,Head of ASC & Community Wellbeing,5105692601,08.10.2014,REDACTED PERSONAL DATA,Order Settlement to Bal Sht GL,657.72,BRIGHSTONE CARE LTD
Revenue,Head of ASC & Community Wellbeing,5105692601,08.10.2014,REDACTED PERSONAL DATA,Order Settlement to Bal Sht GL,"1,781.36",BRIGHSTONE CARE LTD
Revenue,Head of ASC & Community Wellbeing,5105695569,24.10.2014,Overbrook,Grounds Maintenance,48.00,BRIGHSTONE LANDSCAPING LTD
Revenue,Head of ASC & Community Wellbeing,5105695569,24.10.2014,Seagulls,Grounds Maintenance,48.00,BRIGHSTONE LANDSCAPING LTD
Revenue,Head of ASC & Community Wellbeing,5105695569,24.10.2014,Plean Dene,Grounds Maintenance,387.49,BRIGHSTONE LANDSCAPING LTD
Revenue,Head of ASC & Community Wellbeing,5105695569,24.10.2014,Saxonbury,Grounds Maintenance,48.00,BRIGHSTONE LANDSCAPING LTD
Revenue,Head of ASC & Community Wellbeing,5105695569,24.10.2014,40 Venner Avenue,Grounds Maintenance,48.00,BRIGHSTONE LANDSCAPING LTD
Revenue,Head of ASC & Community Wellbeing,5105695569,24.10.2014,Highmead,Grounds Maintenance,126.00,BRIGHSTONE LANDSCAPING LTD
Revenue,Head of ASC & Community Wellbeing,5105695569,24.10.2014,The Laurels,Grounds Maintenance,126.00,BRIGHSTONE LANDSCAPING LTD
Revenue,Head of Economy & Tourism,5105692330,03.10.2014,Beach Cleaning,Payment to Private Contractors,275.00,BRIGHSTONE LANDSCAPING LTD
Revenue,Head of Economy & Tourism,5105693553,10.10.2014,Beach Cleaning,Payment to Private Contractors,50.00,BRIGHSTONE LANDSCAPING LTD
Revenue,Head of Economy & Tourism,5105692051,03.10.2014,Beach Cleaning,Payment to Private Contractors,"1,387.16",BRIGHSTONE LANDSCAPING LTD
Revenue,Head of Economy & Tourism,5105693774,10.10.2014,Beach Cleaning,Payment to Private Contractors,50.00,BRIGHSTONE LANDSCAPING LTD
Revenue,Head of Economy & Tourism,5105695546,22.10.2014,Beach Cleaning,Payment to Private Contractors,120.00,BRIGHSTONE LANDSCAPING LTD
Revenue,Head of Economy & Tourism,5105695508,22.10.2014,Beach Cleaning,Beach Cleansing Contractors,"23,490.77",BRIGHSTONE LANDSCAPING LTD
Revenue,Head of Economy & Tourism,5105692051,03.10.2014,Beach Safety & Inspection / Beach Awards,Payment to Private Contractors,594.20,BRIGHSTONE LANDSCAPING LTD
Revenue,Head of Economy & Tourism,5105692051,03.10.2014,Public Shelters - Ryde,Payment to Private Contractors,89.03,BRIGHSTONE LANDSCAPING LTD
Revenue,Head of Economy & Tourism,5105695514,22.10.2014,Newport Harbour Account,Payment to Private Contractors,67.24,BRIGHSTONE LANDSCAPING LTD
Revenue,Chief Fire Officer,5105693551,15.10.2014,Fire Operations,Grounds Maintenance,806.25,BRIGHSTONE LANDSCAPING LTD
Revenue,Chief Fire Officer,5105692016,01.10.2014,Fire Operations,Grounds Maintenance,806.25,BRIGHSTONE LANDSCAPING LTD
Revenue,Head of Corp Gov & Monitoring Officer,5105695276,17.10.2014,Elections,Stationery,100.00,BRIGHSTONE & DISTRICT HORTICULTURAL SOCIETY
Revenue,Head of Exchequer Services,5105695791,22.10.2014,Fraud Section,Sundry Office Expenses,10.00,BRIGHTON AND HOVE CITY COUNCIL
Revenue,Head of Exchequer Services,5105695791,22.10.2014,Fraud Section,Sundry Office Expenses,135.51,BRIGHTON AND HOVE CITY COUNCIL
Revenue,Head of Exchequer Services,5105695791,22.10.2014,Fraud Section,Sundry Office Expenses,7.62,BRIGHTON AND HOVE CITY COUNCIL
Revenue,Head of Exchequer Services,5105695747,29.10.2014,Fraud Section,Professional Subscriptions,222.34,BRIGHTON AND HOVE CITY COUNCIL
Revenue,Director of Childrens Services,5105696964,31.10.2014,Adult Community Learning,Licences,253.00,BRITISH COMPUTER SOCIETY
Revenue,Director of Childrens Services,5105696964,31.10.2014,Adult Community Learning,Licences,222.00,BRITISH COMPUTER SOCIETY
Revenue,Head of Economy & Tourism,5105692509,15.10.2014,Dinosaur Isle Museum (Sandown Geology),Stock Purchases,257.27,BRITISH FOSSILS/GIFTSTONES LIMITED
Revenue,Head of Economy & Tourism,5105696465,29.10.2014,Museums & Collections Management,Heritage Acquisitions,500.00,BRITISH MUSEUM GREAT COURT LTD
Revenue,Head of Economy & Tourism,5105692401,08.10.2014,Parking Management,Professional Services,857.00,BRITISH PARKING ASSOCIATION
Revenue,Head of Economy & Tourism,5105695555,22.10.2014,IW Festival of Cycling,Professional Services,100.00,BRITISH RED CROSS SOCIETY
Revenue,Head of ASC & Community Wellbeing,5105693399,08.10.2014,S75 Integrated Community Equipment Store,Payments to Voluntary and Other Associations,"55,000.00",BRITISH RED CROSS SOCIETY
Revenue,Head of Economy & Tourism,5105693327,08.10.2014,IW Festival of Cycling,Hire of facilities,60.00,BROADLEA  PRIMARY SCHOOL
Revenue,Managing Director & Head of Paid Service,5105695255,17.10.2014,Drug Misuse - Adults,Payment to Private Contractors,"1,442.50",BROADREACH HOUSE
Revenue,Head of Economy & Tourism,5105695478,22.10.2014,Transport Fleet Administration,Vehicle Fuel Costs,497.49,BROADWAY GARAGE
Revenue,Chief Fire Officer,5105693818,22.10.2014,Fire Technical Support,Vehicle Fuel Costs,287.99,BROADWAY GARAGE
Revenue,Managing Director & Head of Paid Service,5105696869,31.10.2014,NHS Health Check Programme,Payment to Private Contractors,"1,450.00",BROOKSIDE HEALTH CENTRE
Revenue,Managing Director & Head of Paid Service,5105696869,31.10.2014,STI Tests & Treatment,Payment to Private Contractors,5.00,BROOKSIDE HEALTH CENTRE
Revenue,Managing Director & Head of Paid Service,5105696869,31.10.2014,Stop Smoking Services & Interventions,Payment to Private Contractors,"1,200.00",BROOKSIDE HEALTH CENTRE
Revenue,Director of Childrens Services,5105692391,03.10.2014,Youth Offending Team,Fixed Telephones,136.41,BT FINANCE
Revenue,Chief Fire Officer,5105694632,15.10.2014,Deputy Chief Fire Office,Professional Subscriptions,"1,725.00",BUCKINGHAMSHIRE & MILTON KEYNES
Revenue,Head of ASC & Community Wellbeing,5105692622,08.10.2014,Elderly Frail Residential Care,Charges from Independent Providers,"2,093.84",BUCKLAND CARE LTD
Revenue,Head of ASC & Community Wellbeing,5105692622,08.10.2014,Elderly Frail Residential Care,Charges from Independent Providers,"2,093.84",BUCKLAND CARE LTD
Revenue,Head of ASC & Community Wellbeing,5105692622,08.10.2014,Elderly Frail Residential Care,Charges from Independent Providers,"2,093.84",BUCKLAND CARE LTD
Revenue,Head of ASC & Community Wellbeing,5105692622,08.10.2014,Elderly Frail Residential Care,Charges from Independent Providers,"2,093.84",BUCKLAND CARE LTD
Revenue,Head of ASC & Community Wellbeing,5105692622,08.10.2014,Elderly Frail Residential Care,Charges from Independent Providers,"1,700.44",BUCKLAND CARE LTD
Revenue,Head of ASC & Community Wellbeing,5105692622,08.10.2014,Elderly Frail Residential Care,Charges from Independent Providers,"1,700.44",BUCKLAND CARE LTD
Revenue,Head of ASC & Community Wellbeing,5105692622,08.10.2014,Elderly Frail Residential Care,Charges from Independent Providers,"1,700.44",BUCKLAND CARE LTD
Revenue,Head of ASC & Community Wellbeing,5105692622,08.10.2014,Elderly Frail Residential Care,Charges from Independent Providers,"1,700.44",BUCKLAND CARE LTD
Revenue,Head of ASC & Community Wellbeing,5105692622,08.10.2014,Elderly Frail Residential Care,Charges from Independent Providers,"1,700.44",BUCKLAND CARE LTD
Revenue,Head of ASC & Community Wellbeing,5105692622,08.10.2014,Elderly Frail Residential Care,Charges from Independent Providers,"2,093.84",BUCKLAND CARE LTD
Revenue,Head of ASC & Community Wellbeing,5105693563,10.10.2014,Elderly Frail Residential Care,Regular Respite Care,"1,121.70",BUCKLAND CARE LTD
Revenue,Head of ASC & Community Wellbeing,5105692622,08.10.2014,Elderly Mentally Ill Residential Care,Charges from Independent Providers,"1,781.36",BUCKLAND CARE LTD
Revenue,Head of ASC & Community Wellbeing,5105692622,08.10.2014,Elderly Mentally Ill Residential Care,Charges from Independent Providers,"1,781.36",BUCKLAND CARE LTD
Revenue,Head of ASC & Community Wellbeing,5105692622,08.10.2014,Elderly Mentally Ill Residential Care,Charges from Independent Providers,"2,093.84",BUCKLAND CARE LTD
Revenue,Head of ASC & Community Wellbeing,5105692622,08.10.2014,Elderly Mentally Ill Residential Care,Charges from Independent Providers,"2,093.84",BUCKLAND CARE LTD
Revenue,Head of ASC & Community Wellbeing,5105692622,08.10.2014,Elderly Mentally Ill Residential Care,Charges from Independent Providers,"2,093.84",BUCKLAND CARE LTD
Revenue,Head of ASC & Community Wellbeing,5105692622,08.10.2014,Elderly Mentally Ill Residential Care,Charges from Independent Providers,"1,781.36",BUCKLAND CARE LTD
Revenue,Head of ASC & Community Wellbeing,5105692622,08.10.2014,Elderly Mentally Ill Residential Care,Charges from Independent Providers,"2,093.84",BUCKLAND CARE LTD
Revenue,Head of ASC & Community Wellbeing,5105692622,08.10.2014,Elderly Mentally Ill Residential Care,Charges from Independent Providers,"1,781.36",BUCKLAND CARE LTD
Revenue,Head of ASC & Community Wellbeing,5105692622,08.10.2014,Elderly Mentally Ill Residential Care,Charges from Independent Providers,"2,093.84",BUCKLAND CARE LTD
Revenue,Head of ASC & Community Wellbeing,5105692622,08.10.2014,Elderly Mentally Ill Residential Care,Charges from Independent Providers,"1,781.36",BUCKLAND CARE LTD
Revenue,Head of ASC & Community Wellbeing,5105692622,08.10.2014,REDACTED PERSONAL DATA,Order Settlement to Bal Sht GL,"1,781.36",BUCKLAND CARE LTD
Revenue,Head of ASC & Community Wellbeing,5105692608,08.10.2014,Elderly Frail Nursing Island,Charges from Independent Providers,"2,780.40",BUCKLAND CARE LTD
Revenue,Head of ASC & Community Wellbeing,5105692608,08.10.2014,Elderly Frail Nursing Island,Charges from Independent Providers,"2,780.40",BUCKLAND CARE LTD
Revenue,Head of ASC & Community Wellbeing,5105692608,08.10.2014,Elderly Frail Nursing Island,Charges from Independent Providers,"2,780.40",BUCKLAND CARE LTD
Revenue,Head of ASC & Community Wellbeing,5105692608,08.10.2014,Elderly Frail Nursing Island,Charges from Independent Providers,"2,780.40",BUCKLAND CARE LTD
Revenue,Head of ASC & Community Wellbeing,5105692608,08.10.2014,Elderly Frail Nursing Island,Charges from Independent Providers,"2,780.40",BUCKLAND CARE LTD
Revenue,Head of ASC & Community Wellbeing,5105692608,08.10.2014,Elderly Frail Nursing Island,Charges from Independent Providers,"2,780.40",BUCKLAND CARE LTD
Revenue,Head of ASC & Community Wellbeing,5105692608,08.10.2014,Elderly Frail Nursing Island,Charges from Independent Providers,"2,780.40",BUCKLAND CARE LTD
Revenue,Head of ASC & Community Wellbeing,5105692608,08.10.2014,Elderly Frail Nursing Island,Charges from Independent Providers,"2,780.40",BUCKLAND CARE LTD
Revenue,Head of ASC & Community Wellbeing,5105692608,08.10.2014,Elderly Frail Nursing Island,Charges from Independent Providers,"2,780.40",BUCKLAND CARE LTD
Revenue,Head of ASC & Community Wellbeing,5105692608,08.10.2014,Elderly Frail Nursing Island,Charges from Independent Providers,"2,780.40",BUCKLAND CARE LTD
Revenue,Head of ASC & Community Wellbeing,5105692608,08.10.2014,Elderly Frail Nursing Island,Charges from Independent Providers,"2,780.40",BUCKLAND CARE LTD
Revenue,Head of ASC & Community Wellbeing,5105695385,22.10.2014,Elderly Frail Nursing Island,Charges from Independent Providers,"2,482.50",BUCKLAND CARE LTD
Revenue,Head of ASC & Community Wellbeing,5105692608,08.10.2014,Elderly Mentally Ill Nursing Island,Charges from Independent Providers,"2,780.40",BUCKLAND CARE LTD
Revenue,Head of ASC & Community Wellbeing,5105692608,08.10.2014,Elderly Mentally Ill Nursing Island,Regular Respite Care,"2,780.40",BUCKLAND CARE LTD
Revenue,Head of ASC & Community Wellbeing,5105694660,15.10.2014,Physical Disability Nursing Island,Charges from Independent Providers,297.90,BUCKLAND CARE LTD
Revenue,Head of ASC & Community Wellbeing,5105694660,15.10.2014,Physical Disability Nursing Island,Charges from Independent Providers,"2,780.40",BUCKLAND CARE LTD
Revenue,Head of ASC & Community Wellbeing,5105692608,08.10.2014,Funded Nursing Care Island,Charges from Independent Providers,443.80,BUCKLAND CARE LTD
Revenue,Head of ASC & Community Wellbeing,5105692608,08.10.2014,Funded Nursing Care Island,Charges from Independent Providers,443.80,BUCKLAND CARE LTD
Revenue,Head of ASC & Community Wellbeing,5105692608,08.10.2014,Funded Nursing Care Island,Charges from Independent Providers,443.80,BUCKLAND CARE LTD
Revenue,Head of ASC & Community Wellbeing,5105692608,08.10.2014,Funded Nursing Care Island,Charges from Independent Providers,443.80,BUCKLAND CARE LTD
Revenue,Head of ASC & Community Wellbeing,5105692608,08.10.2014,Funded Nursing Care Island,Charges from Independent Providers,443.80,BUCKLAND CARE LTD
Revenue,Head of ASC & Community Wellbeing,5105692608,08.10.2014,Funded Nursing Care Island,Charges from Independent Providers,443.80,BUCKLAND CARE LTD
Revenue,Head of ASC & Community Wellbeing,5105692608,08.10.2014,Funded Nursing Care Island,Charges from Independent Providers,443.80,BUCKLAND CARE LTD
Revenue,Head of ASC & Community Wellbeing,5105692608,08.10.2014,Funded Nursing Care Island,Charges from Independent Providers,443.80,BUCKLAND CARE LTD
Revenue,Head of ASC & Community Wellbeing,5105692608,08.10.2014,Funded Nursing Care Island,Charges from Independent Providers,443.80,BUCKLAND CARE LTD
Revenue,Head of ASC & Community Wellbeing,5105692608,08.10.2014,Funded Nursing Care Island,Charges from Independent Providers,443.80,BUCKLAND CARE LTD
Revenue,Head of ASC & Community Wellbeing,5105692608,08.10.2014,Funded Nursing Care Island,Charges from Independent Providers,443.80,BUCKLAND CARE LTD
Revenue,Head of ASC & Community Wellbeing,5105694215,15.10.2014,Funded Nursing Care Island,Charges from Independent Providers,301.15,BUCKLAND CARE LTD
Revenue,Head of ASC & Community Wellbeing,5105694215,15.10.2014,Funded Nursing Care Island,Charges from Independent Providers,443.80,BUCKLAND CARE LTD
Revenue,Head of ASC & Community Wellbeing,5105692608,08.10.2014,REDACTED PERSONAL DATA,Order Settlement to Bal Sht GL,"2,336.60",BUCKLAND CARE LTD
Revenue,Head of ASC & Community Wellbeing,5105692608,08.10.2014,REDACTED PERSONAL DATA,Order Settlement to Bal Sht GL,"2,336.60",BUCKLAND CARE LTD
Revenue,Head of ASC & Community Wellbeing,5105694603,15.10.2014,Plean Dene,Consumable Cleaning Materials,200.16,BUNZL CLEANING & HYGIENE SUPPLIES LTD
Revenue,Head of ASC & Community Wellbeing,5105691970,03.10.2014,Plean Dene,Consumable Cleaning Materials,153.14,BUNZL CLEANING & HYGIENE SUPPLIES LTD
Revenue,Head of ASC & Community Wellbeing,5105692928,08.10.2014,Elderly Frail Nursing Mainland,Charges from Independent Providers,"1,841.84",BUPA CARE HOME (BNH) LTD
Revenue,Head of Finance & S151 Officer,5105693470,10.10.2014,Project Manager Waste Strategy,Consultants Fees,"2,111.50",BURGES SALMON LLP
Revenue,Head of Economy & Tourism,5105694199,15.10.2014,Archives,Professional Subscriptions,110.00,BUSINESS ARCHIVE COUNCIL
Revenue,Director of Childrens Services,5105690518,22.10.2014,Purchased Fostering,Charges from Independent Providers,"4,320.00",BY THE BRIDGE LTD
Revenue,Director of Childrens Services,5105693862,22.10.2014,Purchased Fostering,Charges from Independent Providers,"-2,448.00",BY THE BRIDGE LTD
Revenue,Head of HR & Organisational Change,5105696243,29.10.2014,"Enterprise House, Newport",Grounds Maintenance,150.00,C & J GROUND MAINTENANCE
Revenue,Head of HR & Organisational Change,5105696195,24.10.2014,"Civic Centre,Sandown",Grounds Maintenance,360.00,C & J GROUND MAINTENANCE
Revenue,Head of HR & Organisational Change,5105696193,29.10.2014,Somerton Industrial Park,Grounds Maintenance,400.00,C & J GROUND MAINTENANCE
Revenue,Head of HR & Organisational Change,5105695487,22.10.2014,Somerton Industrial Park,Grounds Maintenance,180.85,C & J GROUND MAINTENANCE
Revenue,Head of Economy & Tourism,5105695494,22.10.2014,Properties  - Other Properties,Grounds Maintenance,150.00,C & J GROUND MAINTENANCE
Revenue,Head of Economy & Tourism,5105695501,22.10.2014,Properties  - Other Properties,Grounds Maintenance,120.00,C & J GROUND MAINTENANCE
Revenue,Head of Economy & Tourism,5105695473,22.10.2014,Properties  - Other Properties,Grounds Maintenance,"1,410.00",C & J GROUND MAINTENANCE
Revenue,Head of Economy & Tourism,5105696176,29.10.2014,Properties  - Other Properties,Grounds Maintenance,"5,142.15",C & J GROUND MAINTENANCE
Revenue,Head of HR & Organisational Change,5105695511,22.10.2014,"Westridge, Ryde",Grounds Maintenance,645.00,C & J GROUND MAINTENANCE
Revenue,Head of ASC & Community Wellbeing,5105696233,31.10.2014,Mental Health Day Services,Professional Services,140.00,C & J GROUND MAINTENANCE
Revenue,Head of ASC & Community Wellbeing,5105692388,03.10.2014,Mental Health Day Services,Professional Services,140.00,C & J GROUND MAINTENANCE
Revenue,Head of Planning & Regulatory Services,5105696552,29.10.2014,Trading Standards,Professional Services,50.40,C & J GROUND MAINTENANCE
Revenue,Director of Childrens Services,5105692195,03.10.2014,In-house Fostering,Boarding Out Allowances,16.50,REDACTED PERSONAL DATA
Revenue,Director of Childrens Services,5105693678,10.10.2014,In-house Fostering,Boarding Out Allowances,16.50,REDACTED PERSONAL DATA
Revenue,Director of Childrens Services,5105695092,17.10.2014,In-house Fostering,Boarding Out Allowances,16.50,REDACTED PERSONAL DATA
Revenue,Director of Childrens Services,5105695989,24.10.2014,In-house Fostering,Boarding Out Allowances,16.50,REDACTED PERSONAL DATA
Revenue,Director of Childrens Services,5105696729,31.10.2014,In-house Fostering,Boarding Out Allowances,16.50,REDACTED PERSONAL DATA
Revenue,Director of Childrens Services,5105693653,10.10.2014,Children placed with Family&Friends,Boarding Out Allowances,278.50,REDACTED PERSONAL DATA
Revenue,Director of Childrens Services,5105696704,31.10.2014,Children placed with Family&Friends,Boarding Out Allowances,278.50,REDACTED PERSONAL DATA
Revenue,Director of Childrens Services,5105692170,03.10.2014,Children placed with Family&Friends,Boarding Out Allowances,278.50,REDACTED PERSONAL DATA
Revenue,Director of Childrens Services,5105695964,24.10.2014,Children placed with Family&Friends,Boarding Out Allowances,278.50,REDACTED PERSONAL DATA
Revenue,Director of Childrens Services,5105695067,17.10.2014,Children placed with Family&Friends,Boarding Out Allowances,278.50,REDACTED PERSONAL DATA
Revenue,Director of Childrens Services,5105695044,17.10.2014,Special Guardianship Order Costs,Support Children,125.79,REDACTED PERSONAL DATA
Revenue,Director of Childrens Services,5105693630,10.10.2014,Special Guardianship Order Costs,Support Children,125.79,REDACTED PERSONAL DATA
Revenue,Director of Childrens Services,5105692147,03.10.2014,Special Guardianship Order Costs,Support Children,125.79,REDACTED PERSONAL DATA
Revenue,Director of Childrens Services,5105695941,24.10.2014,Special Guardianship Order Costs,Support Children,125.79,REDACTED PERSONAL DATA
Revenue,Director of Childrens Services,5105696681,31.10.2014,Special Guardianship Order Costs,Support Children,125.79,REDACTED PERSONAL DATA
Revenue,Head of ASC & Community Wellbeing,5105694609,15.10.2014,Adelaide Resource Centre,Prop Svs only - Day to day mtce,38.70,C BREWER & SONS LTD
Revenue,Director of Childrens Services,5105696735,31.10.2014,Leaving Care Costs,Transport of Clients,6.00,REDACTED PERSONAL DATA
Revenue,Director of Childrens Services,5105695995,24.10.2014,Leaving Care Costs,Transport of Clients,6.00,REDACTED PERSONAL DATA
Revenue,Director of Childrens Services,5105692201,03.10.2014,Leaving Care Costs,Transport of Clients,6.00,REDACTED PERSONAL DATA
Revenue,Director of Childrens Services,5105693684,10.10.2014,Leaving Care Costs,Transport of Clients,6.00,REDACTED PERSONAL DATA
Revenue,Director of Childrens Services,5105695098,17.10.2014,Leaving Care Costs,Transport of Clients,6.00,REDACTED PERSONAL DATA
Revenue,Director of Childrens Services,5105693684,10.10.2014,Children placed with Family&Friends,Boarding Out Allowances,140.33,REDACTED PERSONAL DATA
Revenue,Director of Childrens Services,5105696735,31.10.2014,Children placed with Family&Friends,Boarding Out Allowances,140.33,REDACTED PERSONAL DATA
Revenue,Director of Childrens Services,5105692201,03.10.2014,Children placed with Family&Friends,Boarding Out Allowances,140.33,REDACTED PERSONAL DATA
Revenue,Director of Childrens Services,5105695995,24.10.2014,Children placed with Family&Friends,Boarding Out Allowances,140.33,REDACTED PERSONAL DATA
Revenue,Director of Childrens Services,5105695098,17.10.2014,Children placed with Family&Friends,Boarding Out Allowances,140.33,REDACTED PERSONAL DATA
Revenue,Head of ASC & Community Wellbeing,5105693437,08.10.2014,No-Barriers,Training,240.00,REDACTED PERSONAL DATA
Revenue,Director of Childrens Services,5105695079,17.10.2014,Adoption Costs,Support Children,125.79,REDACTED PERSONAL DATA
Revenue,Director of Childrens Services,5105695079,17.10.2014,Adoption Costs,Support Children,132.69,REDACTED PERSONAL DATA
Revenue,Director of Childrens Services,5105692182,03.10.2014,Adoption Costs,Support Children,125.79,REDACTED PERSONAL DATA
Revenue,Director of Childrens Services,5105692182,03.10.2014,Adoption Costs,Support Children,132.69,REDACTED PERSONAL DATA
Revenue,Director of Childrens Services,5105693665,10.10.2014,Adoption Costs,Support Children,125.79,REDACTED PERSONAL DATA
Revenue,Director of Childrens Services,5105693665,10.10.2014,Adoption Costs,Support Children,132.69,REDACTED PERSONAL DATA
Revenue,Director of Childrens Services,5105696716,31.10.2014,Adoption Costs,Support Children,125.79,REDACTED PERSONAL DATA
Revenue,Director of Childrens Services,5105696716,31.10.2014,Adoption Costs,Support Children,132.69,REDACTED PERSONAL DATA
Revenue,Director of Childrens Services,5105695976,24.10.2014,Adoption Costs,Support Children,125.79,REDACTED PERSONAL DATA
Revenue,Director of Childrens Services,5105695976,24.10.2014,Adoption Costs,Support Children,132.69,REDACTED PERSONAL DATA
Revenue,Head of Exchequer Services,5105695658,22.10.2014,Staff Benefits,Payment to Private Contractors,148.72,REDACTED PERSONAL DATA
Revenue,Director of Childrens Services,5105695131,17.10.2014,Children placed with Family&Friends,Boarding Out Allowances,199.00,REDACTED PERSONAL DATA
Revenue,Director of Childrens Services,5105693716,10.10.2014,Children placed with Family&Friends,Boarding Out Allowances,199.00,REDACTED PERSONAL DATA
Revenue,Director of Childrens Services,5105692232,03.10.2014,Children placed with Family&Friends,Boarding Out Allowances,199.00,REDACTED PERSONAL DATA
Revenue,Director of Childrens Services,5105696767,31.10.2014,Children placed with Family&Friends,Boarding Out Allowances,199.00,REDACTED PERSONAL DATA
Revenue,Director of Childrens Services,5105696028,24.10.2014,Children placed with Family&Friends,Boarding Out Allowances,199.00,REDACTED PERSONAL DATA
Revenue,Director of Childrens Services,5105695059,17.10.2014,Special Guardianship Order Costs,Support Children,125.79,REDACTED PERSONAL DATA
Revenue,Director of Childrens Services,5105693645,10.10.2014,Special Guardianship Order Costs,Support Children,125.79,REDACTED PERSONAL DATA
Revenue,Director of Childrens Services,5105692162,03.10.2014,Special Guardianship Order Costs,Support Children,125.79,REDACTED PERSONAL DATA
Revenue,Director of Childrens Services,5105695956,24.10.2014,Special Guardianship Order Costs,Support Children,125.79,REDACTED PERSONAL DATA
Revenue,Director of Childrens Services,5105696696,31.10.2014,Special Guardianship Order Costs,Support Children,125.79,REDACTED PERSONAL DATA
Revenue,Director of Childrens Services,5105691879,01.10.2014,Court Work & Consultancy Services,Legal Fees - Other Parties,"1,860.00",14 GRAY'S INN SQUARE CHAMBERS
Revenue,Director of Childrens Services,5105695048,17.10.2014,Adoption Costs,Support Children,168.39,REDACTED PERSONAL DATA
Revenue,Director of Childrens Services,5105695048,17.10.2014,Adoption Costs,Support Children,168.39,REDACTED PERSONAL DATA
Revenue,Director of Childrens Services,5105692151,03.10.2014,Adoption Costs,Support Children,168.39,REDACTED PERSONAL DATA
Revenue,Director of Childrens Services,5105692151,03.10.2014,Adoption Costs,Support Children,168.39,REDACTED PERSONAL DATA
Revenue,Director of Childrens Services,5105693634,10.10.2014,Adoption Costs,Support Children,168.39,REDACTED PERSONAL DATA
Revenue,Director of Childrens Services,5105693634,10.10.2014,Adoption Costs,Support Children,168.39,REDACTED PERSONAL DATA
Revenue,Director of Childrens Services,5105696685,31.10.2014,Adoption Costs,Support Children,168.39,REDACTED PERSONAL DATA
Revenue,Director of Childrens Services,5105696685,31.10.2014,Adoption Costs,Support Children,168.39,REDACTED PERSONAL DATA
Revenue,Director of Childrens Services,5105695945,24.10.2014,Adoption Costs,Support Children,168.39,REDACTED PERSONAL DATA
Revenue,Director of Childrens Services,5105695945,24.10.2014,Adoption Costs,Support Children,168.39,REDACTED PERSONAL DATA
Revenue,Director of Childrens Services,5105695119,17.10.2014,Special Guardianship Order Costs,Support Children,116.80,REDACTED PERSONAL DATA
Revenue,Director of Childrens Services,5105693704,10.10.2014,Special Guardianship Order Costs,Support Children,116.80,REDACTED PERSONAL DATA
Revenue,Director of Childrens Services,5105692220,03.10.2014,Special Guardianship Order Costs,Support Children,116.80,REDACTED PERSONAL DATA
Revenue,Director of Childrens Services,5105696756,31.10.2014,Special Guardianship Order Costs,Support Children,116.80,REDACTED PERSONAL DATA
Revenue,Director of Childrens Services,5105696016,24.10.2014,Special Guardianship Order Costs,Support Children,116.80,REDACTED PERSONAL DATA
Revenue,Director of Childrens Services,5105692144,03.10.2014,In-house Fostering,Boarding Out Allowances,199.00,REDACTED PERSONAL DATA
Revenue,Director of Childrens Services,5105692144,03.10.2014,In-house Fostering,Boarding Out Allowances,245.00,REDACTED PERSONAL DATA
Revenue,Director of Childrens Services,5105692144,03.10.2014,In-house Fostering,Boarding Out Allowances,10.00,REDACTED PERSONAL DATA
Revenue,Director of Childrens Services,5105693627,10.10.2014,In-house Fostering,Boarding Out Allowances,199.00,REDACTED PERSONAL DATA
Revenue,Director of Childrens Services,5105693627,10.10.2014,In-house Fostering,Boarding Out Allowances,245.00,REDACTED PERSONAL DATA
Revenue,Director of Childrens Services,5105693627,10.10.2014,In-house Fostering,Boarding Out Allowances,10.00,REDACTED PERSONAL DATA
Revenue,Director of Childrens Services,5105695041,17.10.2014,In-house Fostering,Boarding Out Allowances,10.00,REDACTED PERSONAL DATA
Revenue,Director of Childrens Services,5105695041,17.10.2014,In-house Fostering,Boarding Out Allowances,199.00,REDACTED PERSONAL DATA
Revenue,Director of Childrens Services,5105695041,17.10.2014,In-house Fostering,Boarding Out Allowances,245.00,REDACTED PERSONAL DATA
Revenue,Director of Childrens Services,5105695938,24.10.2014,In-house Fostering,Boarding Out Allowances,10.00,REDACTED PERSONAL DATA
Revenue,Director of Childrens Services,5105695938,24.10.2014,In-house Fostering,Boarding Out Allowances,199.00,REDACTED PERSONAL DATA
Revenue,Director of Childrens Services,5105695938,24.10.2014,In-house Fostering,Boarding Out Allowances,245.00,REDACTED PERSONAL DATA
Revenue,Director of Childrens Services,5105696678,31.10.2014,In-house Fostering,Boarding Out Allowances,199.00,REDACTED PERSONAL DATA
Revenue,Director of Childrens Services,5105696678,31.10.2014,In-house Fostering,Boarding Out Allowances,245.00,REDACTED PERSONAL DATA
Revenue,Director of Childrens Services,5105696678,31.10.2014,In-house Fostering,Boarding Out Allowances,10.00,REDACTED PERSONAL DATA
Revenue,Director of Childrens Services,5105692121,03.10.2014,In-house Fostering,Boarding Out Allowances,140.33,REDACTED PERSONAL DATA
Revenue,Director of Childrens Services,5105692121,03.10.2014,In-house Fostering,Boarding Out Allowances,242.08,REDACTED PERSONAL DATA
Revenue,Director of Childrens Services,5105692121,03.10.2014,In-house Fostering,Boarding Out Allowances,199.00,REDACTED PERSONAL DATA
Revenue,Director of Childrens Services,5105692121,03.10.2014,In-house Fostering,Boarding Out Allowances,15.00,REDACTED PERSONAL DATA
Revenue,Director of Childrens Services,5105693604,10.10.2014,In-house Fostering,Boarding Out Allowances,140.33,REDACTED PERSONAL DATA
Revenue,Director of Childrens Services,5105693604,10.10.2014,In-house Fostering,Boarding Out Allowances,242.08,REDACTED PERSONAL DATA
Revenue,Director of Childrens Services,5105693604,10.10.2014,In-house Fostering,Boarding Out Allowances,15.00,REDACTED PERSONAL DATA
Revenue,Director of Childrens Services,5105693604,10.10.2014,In-house Fostering,Boarding Out Allowances,199.00,REDACTED PERSONAL DATA
Revenue,Director of Childrens Services,5105695018,17.10.2014,In-house Fostering,Boarding Out Allowances,15.00,REDACTED PERSONAL DATA
Revenue,Director of Childrens Services,5105695018,17.10.2014,In-house Fostering,Boarding Out Allowances,140.33,REDACTED PERSONAL DATA
Revenue,Director of Childrens Services,5105695018,17.10.2014,In-house Fostering,Boarding Out Allowances,242.08,REDACTED PERSONAL DATA
Revenue,Director of Childrens Services,5105695018,17.10.2014,In-house Fostering,Boarding Out Allowances,199.00,REDACTED PERSONAL DATA
Revenue,Director of Childrens Services,5105695914,24.10.2014,In-house Fostering,Boarding Out Allowances,15.00,REDACTED PERSONAL DATA
Revenue,Director of Childrens Services,5105695914,24.10.2014,In-house Fostering,Boarding Out Allowances,140.33,REDACTED PERSONAL DATA
Revenue,Director of Childrens Services,5105695914,24.10.2014,In-house Fostering,Boarding Out Allowances,242.08,REDACTED PERSONAL DATA
Revenue,Director of Childrens Services,5105695914,24.10.2014,In-house Fostering,Boarding Out Allowances,199.00,REDACTED PERSONAL DATA
Revenue,Director of Childrens Services,5105696654,31.10.2014,In-house Fostering,Boarding Out Allowances,199.00,REDACTED PERSONAL DATA
Revenue,Director of Childrens Services,5105696654,31.10.2014,In-house Fostering,Boarding Out Allowances,140.33,REDACTED PERSONAL DATA
Revenue,Director of Childrens Services,5105696654,31.10.2014,In-house Fostering,Boarding Out Allowances,242.08,REDACTED PERSONAL DATA
Revenue,Director of Childrens Services,5105696654,31.10.2014,In-house Fostering,Boarding Out Allowances,15.00,REDACTED PERSONAL DATA
Revenue,Director of Childrens Services,5105695036,17.10.2014,Children placed with Family&Friends,Boarding Out Allowances,199.00,REDACTED PERSONAL DATA
Revenue,Director of Childrens Services,5105695036,17.10.2014,Children placed with Family&Friends,Boarding Out Allowances,100.00,REDACTED PERSONAL DATA
Revenue,Director of Childrens Services,5105693622,10.10.2014,Children placed with Family&Friends,Boarding Out Allowances,199.00,REDACTED PERSONAL DATA
Revenue,Director of Childrens Services,5105693622,10.10.2014,Children placed with Family&Friends,Boarding Out Allowances,100.00,REDACTED PERSONAL DATA
Revenue,Director of Childrens Services,5105696673,31.10.2014,Children placed with Family&Friends,Boarding Out Allowances,199.00,REDACTED PERSONAL DATA
Revenue,Director of Childrens Services,5105696673,31.10.2014,Children placed with Family&Friends,Boarding Out Allowances,100.00,REDACTED PERSONAL DATA
Revenue,Director of Childrens Services,5105692139,03.10.2014,Children placed with Family&Friends,Boarding Out Allowances,199.00,REDACTED PERSONAL DATA
Revenue,Director of Childrens Services,5105692139,03.10.2014,Children placed with Family&Friends,Boarding Out Allowances,100.00,REDACTED PERSONAL DATA
Revenue,Director of Childrens Services,5105695933,24.10.2014,Children placed with Family&Friends,Boarding Out Allowances,199.00,REDACTED PERSONAL DATA
Revenue,Director of Childrens Services,5105695933,24.10.2014,Children placed with Family&Friends,Boarding Out Allowances,100.00,REDACTED PERSONAL DATA
Revenue,Head of Economy & Tourism,5105695465,22.10.2014,Other Grounds Maintenance,Payment to Private Contractors,784.62,C N SERVICES
Revenue,Head of Economy & Tourism,5105696375,29.10.2014,Play Areas Health & Safety work,Payment to Private Contractors,"1,260.00",C N SERVICES
Capital,Head of Economy & Tourism,5105696492,29.10.2014,Cemeteries,Payment to Contractors - Capital,370.00,C N SERVICES
Revenue,Director of Childrens Services,5105692153,03.10.2014,In-house Fostering,Boarding Out Allowances,10.00,REDACTED PERSONAL DATA
Revenue,Director of Childrens Services,5105692153,03.10.2014,In-house Fostering,Boarding Out Allowances,140.33,REDACTED PERSONAL DATA
Revenue,Director of Childrens Services,5105693636,10.10.2014,In-house Fostering,Boarding Out Allowances,140.33,REDACTED PERSONAL DATA
Revenue,Director of Childrens Services,5105693636,10.10.2014,In-house Fostering,Boarding Out Allowances,10.00,REDACTED PERSONAL DATA
Revenue,Director of Childrens Services,5105695050,17.10.2014,In-house Fostering,Boarding Out Allowances,140.33,REDACTED PERSONAL DATA
Revenue,Director of Childrens Services,5105695050,17.10.2014,In-house Fostering,Boarding Out Allowances,10.00,REDACTED PERSONAL DATA
Revenue,Director of Childrens Services,5105695947,24.10.2014,In-house Fostering,Boarding Out Allowances,140.33,REDACTED PERSONAL DATA
Revenue,Director of Childrens Services,5105695947,24.10.2014,In-house Fostering,Boarding Out Allowances,10.00,REDACTED PERSONAL DATA
Revenue,Director of Childrens Services,5105696687,31.10.2014,In-house Fostering,Boarding Out Allowances,140.33,REDACTED PERSONAL DATA
Revenue,Director of Childrens Services,5105696687,31.10.2014,In-house Fostering,Boarding Out Allowances,10.00,REDACTED PERSONAL DATA
Revenue,Director of Childrens Services,5105695124,17.10.2014,Children placed with Family&Friends,Boarding Out Allowances,199.00,REDACTED PERSONAL DATA
Revenue,Director of Childrens Services,5105693709,10.10.2014,Children placed with Family&Friends,Boarding Out Allowances,199.00,REDACTED PERSONAL DATA
Revenue,Director of Childrens Services,5105696761,31.10.2014,Children placed with Family&Friends,Boarding Out Allowances,199.00,REDACTED PERSONAL DATA
Revenue,Director of Childrens Services,5105692225,03.10.2014,Children placed with Family&Friends,Boarding Out Allowances,199.00,REDACTED PERSONAL DATA
Revenue,Director of Childrens Services,5105696021,24.10.2014,Children placed with Family&Friends,Boarding Out Allowances,199.00,REDACTED PERSONAL DATA
Revenue,Director of Childrens Services,5105695071,17.10.2014,Special Guardianship Order Costs,Support Children,125.79,REDACTED PERSONAL DATA
Revenue,Director of Childrens Services,5105693657,10.10.2014,Special Guardianship Order Costs,Support Children,125.79,REDACTED PERSONAL DATA
Revenue,Director of Childrens Services,5105692174,03.10.2014,Special Guardianship Order Costs,Support Children,125.79,REDACTED PERSONAL DATA
Revenue,Director of Childrens Services,5105695968,24.10.2014,Special Guardianship Order Costs,Support Children,125.79,REDACTED PERSONAL DATA
Revenue,Director of Childrens Services,5105696708,31.10.2014,Special Guardianship Order Costs,Support Children,161.49,REDACTED PERSONAL DATA
Revenue,Head of ASC & Community Wellbeing,5105692563,08.10.2014,Learning Disability Residential Care,Charges from Independent Providers,"1,894.76",REDACTED PERSONAL DATA
Revenue,Director of Childrens Services,5105695042,17.10.2014,Adoption Costs,Support Children,132.69,REDACTED PERSONAL DATA
Revenue,Director of Childrens Services,5105692145,03.10.2014,Adoption Costs,Support Children,132.69,REDACTED PERSONAL DATA
Revenue,Director of Childrens Services,5105693628,10.10.2014,Adoption Costs,Support Children,132.69,REDACTED PERSONAL DATA
Revenue,Director of Childrens Services,5105696679,31.10.2014,Adoption Costs,Support Children,132.69,REDACTED PERSONAL DATA
Revenue,Director of Childrens Services,5105695939,24.10.2014,Adoption Costs,Support Children,132.69,REDACTED PERSONAL DATA
Revenue,Head of Economy & Tourism,5105696168,24.10.2014,Public Libraries Central,Publications,150.00,CALIBRE AUDIO LIBRARY
Revenue,Director of Childrens Services,5105696926,31.10.2014,Learning & Development Running Costs,Gas,13.75,CALOR GAS LIMITED
Revenue,Head of HR & Organisational Change,5105696172,24.10.2014,Shared Services Manager,Cleaning Contracts,5.20,CANNON HYGIENE
Revenue,Head of HR & Organisational Change,5105696172,24.10.2014,"Enterprise House, Newport",Cleaning Contracts,12.09,CANNON HYGIENE
Revenue,Head of HR & Organisational Change,5105696172,24.10.2014,"County Hall,Newport",Cleaning Contracts,100.66,CANNON HYGIENE
Revenue,Head of HR & Organisational Change,5105696172,24.10.2014,"Civic Centre,Sandown",Cleaning Contracts,11.05,CANNON HYGIENE
Revenue,Head of HR & Organisational Change,5105696172,24.10.2014,"Bugle House,Newport",Cleaning Contracts,4.16,CANNON HYGIENE
Revenue,Head of ASC & Community Wellbeing,5105696172,24.10.2014,Downside Community & Learning Centre,Cleaning Contracts,12.35,CANNON HYGIENE
Revenue,Head of ASC & Community Wellbeing,5105696172,24.10.2014,31 Carter Avenue,Professional Services,1.04,CANNON HYGIENE
Revenue,Head of ASC & Community Wellbeing,5105693861,10.10.2014,31 Carter Avenue,Professional Services,14.00,CANNON HYGIENE
Revenue,Head of ASC & Community Wellbeing,5105696172,24.10.2014,Overbrook,Professional Services,43.94,CANNON HYGIENE
Revenue,Head of ASC & Community Wellbeing,5105693861,10.10.2014,Seagulls,Professional Services,12.00,CANNON HYGIENE
Revenue,Head of ASC & Community Wellbeing,5105696172,24.10.2014,Seagulls,Professional Services,1.04,CANNON HYGIENE
Revenue,Head of ASC & Community Wellbeing,5105696172,24.10.2014,Plean Dene,Professional Services,109.03,CANNON HYGIENE
Revenue,Head of ASC & Community Wellbeing,5105696172,24.10.2014,Saxonbury,Professional Services,116.22,CANNON HYGIENE
Revenue,Head of ASC & Community Wellbeing,5105695815,22.10.2014,Saxonbury,Professional Services,2.08,CANNON HYGIENE
Revenue,Head of ASC & Community Wellbeing,5105696172,24.10.2014,Highmead,Professional Services,30.12,CANNON HYGIENE
Revenue,Head of ASC & Community Wellbeing,5105696172,24.10.2014,The Laurels,Professional Services,30.11,CANNON HYGIENE
Revenue,Head of Economy & Tourism,5105696172,24.10.2014,"Barrack Block, Sandown",Cleaning Contracts,4.16,CANNON HYGIENE
Revenue,Head of ASC & Community Wellbeing,5105696172,24.10.2014,Adelaide Resource Centre,Cleaning Contracts,35.01,CANNON HYGIENE
Revenue,Head of ASC & Community Wellbeing,5105696172,24.10.2014,Westminster House,Cleaning Contracts,49.23,CANNON HYGIENE
Revenue,Head of ASC & Community Wellbeing,5105696172,24.10.2014,Mental Health Day Services,Cleaning Contracts,2.08,CANNON HYGIENE
Revenue,Head of ASC & Community Wellbeing,5105696172,24.10.2014,Mental Health Day Services,Cleaning Contracts,4.16,CANNON HYGIENE
Revenue,Head of Economy & Tourism,5105696172,24.10.2014,Library HQ,Cleaning Contracts,2.08,CANNON HYGIENE
Revenue,Head of Economy & Tourism,5105696172,24.10.2014,Freshwater West Wight Library,Cleaning Contracts,1.04,CANNON HYGIENE
Revenue,Head of Economy & Tourism,5105696172,24.10.2014,Newport Library,Cleaning Contracts,10.96,CANNON HYGIENE
Revenue,Head of Economy & Tourism,5105696172,24.10.2014,Ryde Library,Cleaning Contracts,1.04,CANNON HYGIENE
Revenue,Head of Economy & Tourism,5105696172,24.10.2014,Sandown Library,Cleaning Contracts,1.04,CANNON HYGIENE
Revenue,Director of Childrens Services,5105696172,24.10.2014,Learning & Development Running Costs,Cleaning Contracts,5.20,CANNON HYGIENE
Revenue,Head of Economy & Tourism,5105696172,24.10.2014,Guildhall Museum,Cleaning Contracts,2.08,CANNON HYGIENE
Revenue,Head of Economy & Tourism,5105696172,24.10.2014,Dinosaur Isle Museum (Sandown Geology),Cleaning Contracts,11.53,CANNON HYGIENE
Revenue,Head of Economy & Tourism,5105696172,24.10.2014,The Heights,Cleaning Contracts,78.35,CANNON HYGIENE
Revenue,Head of Economy & Tourism,5105696172,24.10.2014,Medina Leisure Centre,Cleaning Contracts,38.91,CANNON HYGIENE
Revenue,Head of Economy & Tourism,5105696172,24.10.2014,Westridge Squash Courts,Cleaning Contracts,3.12,CANNON HYGIENE
Revenue,Director of Childrens Services,5105696172,24.10.2014,Clatterford Pupil Referral Unit (PRU),Cleaning Contracts,7.28,CANNON HYGIENE
Revenue,Director of Childrens Services,5105696172,24.10.2014,Workshop Initiative Support in Education,Cleaning Contracts,2.08,CANNON HYGIENE
Revenue,Director of Childrens Services,5105696172,24.10.2014,Youth Offending Team,Cleaning Contracts,1.04,CANNON HYGIENE
Revenue,Director of Childrens Services,5105696172,24.10.2014,Specialist Support Service,Cleaning Contracts,8.41,CANNON HYGIENE
Revenue,Director of Childrens Services,5105696172,24.10.2014,Specialist Service Business Admin,Cleaning Contracts,13.13,CANNON HYGIENE
Revenue,Director of Childrens Services,5105696172,24.10.2014,Beaulieu House,Cleaning Contracts,141.09,CANNON HYGIENE
Revenue,Director of Childrens Services,5105696172,24.10.2014,Branstone Farm Studies Centre,Cleaning Contracts,2.08,CANNON HYGIENE
Revenue,Director of Childrens Services,5105696172,24.10.2014,Education Participation Team,Cleaning Contracts,2.08,CANNON HYGIENE
Revenue,Head of Economy & Tourism,5105696172,24.10.2014,Fort Victoria,Cleaning Contracts,4.51,CANNON HYGIENE
Revenue,Chief Fire Officer,5105696172,24.10.2014,Fire Technical Support,Cleaning Contracts,2.08,CANNON HYGIENE
Revenue,Chief Fire Officer,5105696172,24.10.2014,Fire Technical Support,Cleaning Contracts,1.04,CANNON HYGIENE
Revenue,Chief Fire Officer,5105696172,24.10.2014,Fire Technical Support,Cleaning Contracts,1.04,CANNON HYGIENE
Revenue,Chief Fire Officer,5105696172,24.10.2014,Fire Technical Support,Cleaning Contracts,3.12,CANNON HYGIENE
Revenue,Chief Fire Officer,5105696172,24.10.2014,Fire Technical Support,Cleaning Contracts,1.04,CANNON HYGIENE
Revenue,Chief Fire Officer,5105696172,24.10.2014,Fire Technical Support,Cleaning Contracts,5.20,CANNON HYGIENE
Revenue,Chief Fire Officer,5105696172,24.10.2014,Fire Technical Support,Cleaning Contracts,1.04,CANNON HYGIENE
Revenue,Head of Planning & Regulatory Services,5105696172,24.10.2014,Planning Business Support,Cleaning Contracts,22.40,CANNON HYGIENE
Revenue,Head of Planning & Regulatory Services,5105696172,24.10.2014,Regulatory Management & Admin Support,Cleaning Contracts,3.12,CANNON HYGIENE
Revenue,Head of Economy & Tourism,5105696172,24.10.2014,Crematorium,Cleaning Contracts,3.12,CANNON HYGIENE
Revenue,Head of Economy & Tourism,5105693857,15.10.2014,Print Unit,Photocopying Costs,"1,624.38",CANON (UK) LTD
Revenue,Head of Economy & Tourism,5105696059,24.10.2014,Print Unit,Photocopying Costs,"1,624.38",CANON (UK) LTD
Revenue,Head of Economy & Tourism,5105696063,24.10.2014,Print Unit,Photocopying Costs,497.51,CANON (UK) LTD
Revenue,Head of Economy & Tourism,5105696064,24.10.2014,Print Unit,Photocopying Costs,497.51,CANON (UK) LTD
Revenue,Head of Economy & Tourism,5105693295,08.10.2014,Ferry Operation,Operational Equipment,12.00,CAPCOM LAND SEA & AIR COMMUN.LTD
Revenue,Head of Economy & Tourism,5105693295,08.10.2014,Ferry Operation,Operational Equipment,249.92,CAPCOM LAND SEA & AIR COMMUN.LTD
Revenue,Head of Economy & Tourism,5105693295,08.10.2014,Ferry Operation,Operational Equipment,62.02,CAPCOM LAND SEA & AIR COMMUN.LTD
Revenue,Director of Childrens Services,5105696442,29.10.2014,Thompson House Tuition Centre (PRU),Computer Software & Consumables,"3,495.00",CAPITA BUSINESS SERVICES LTD
Revenue,Director of Childrens Services,5105696809,31.10.2014,Clatterford Pupil Referral Unit (PRU),Computer Software & Consumables,"5,085.00",CAPITA BUSINESS SERVICES LTD
Revenue,Director of Childrens Services,5105691949,01.10.2014,Admissions/Student Finance,Bought in Prof Services - Curriculum (Schools),"2,600.00",CAPITA BUSINESS SERVICES LTD
Revenue,Director of Childrens Services,5105691949,01.10.2014,Admissions/Student Finance,Bought in Prof Services - Curriculum (Schools),"8,800.00",CAPITA BUSINESS SERVICES LTD
Revenue,Director of Childrens Services,5105696371,29.10.2014,Childrens Services Finance Team,Bought in Prof Services - Curriculum (Schools),760.00,CAPITA BUSINESS SERVICES LTD
Revenue,Director of Childrens Services,5105695470,22.10.2014,Childrens Services Finance Team,Licences,-539.79,CAPITA BUSINESS SERVICES LTD
Revenue,Director of Childrens Services,5105695470,22.10.2014,Childrens Services Finance Team,Licences,"-2,672.67",CAPITA BUSINESS SERVICES LTD
Revenue,Director of Childrens Services,5105693796,15.10.2014,Purchased Fostering,Charges from Independent Providers,"4,207.01",CAPSTONE FOSTER CARE LTD
Revenue,Head of ASC & Community Wellbeing,5105694408,15.10.2014,Elderly Frail Homecare,Charges from Independent Providers,311.64,CARE FIRST IW LTD
Revenue,Head of ASC & Community Wellbeing,5105694409,15.10.2014,Elderly Frail Homecare,Charges from Independent Providers,178.08,CARE FIRST IW LTD
Revenue,Head of ASC & Community Wellbeing,5105694410,15.10.2014,Elderly Frail Homecare,Charges from Independent Providers,623.28,CARE FIRST IW LTD
Revenue,Head of ASC & Community Wellbeing,5105694412,15.10.2014,Elderly Frail Homecare,Charges from Independent Providers,200.34,CARE FIRST IW LTD
Revenue,Head of ASC & Community Wellbeing,5105694416,15.10.2014,Elderly Frail Homecare,Charges from Independent Providers,207.76,CARE FIRST IW LTD
Revenue,Head of ASC & Community Wellbeing,5105694417,15.10.2014,Elderly Frail Homecare,Charges from Independent Providers,519.40,CARE FIRST IW LTD
Revenue,Head of ASC & Community Wellbeing,5105694414,15.10.2014,Elderly Frail Homecare,Charges from Independent Providers,623.28,CARE FIRST IW LTD
Revenue,Head of ASC & Community Wellbeing,5105694413,15.10.2014,Elderly Frail Homecare,Charges from Independent Providers,207.76,CARE FIRST IW LTD
Revenue,Head of ASC & Community Wellbeing,5105694411,15.10.2014,Elderly Frail Homecare,Charges from Independent Providers,534.24,CARE FIRST IW LTD
Revenue,Head of ASC & Community Wellbeing,5105694407,15.10.2014,Elderly Frail Homecare,Charges from Independent Providers,"1,869.84",CARE FIRST IW LTD
Revenue,Head of ASC & Community Wellbeing,5105694419,15.10.2014,Elderly Frail Homecare,Charges from Independent Providers,400.68,CARE FIRST IW LTD
Revenue,Head of ASC & Community Wellbeing,5105694418,15.10.2014,Elderly Frail Homecare,Charges from Independent Providers,89.04,CARE FIRST IW LTD
Revenue,Head of ASC & Community Wellbeing,5105694421,15.10.2014,Elderly Frail Homecare,Charges from Independent Providers,623.28,CARE FIRST IW LTD
Revenue,Head of ASC & Community Wellbeing,5105694433,15.10.2014,Elderly Frail Homecare,Charges from Independent Providers,"1,246.56",CARE FIRST IW LTD
Revenue,Head of ASC & Community Wellbeing,5105694434,15.10.2014,Elderly Frail Homecare,Charges from Independent Providers,"1,795.64",CARE FIRST IW LTD
Revenue,Head of ASC & Community Wellbeing,5105694431,15.10.2014,Elderly Frail Homecare,Charges from Independent Providers,474.88,CARE FIRST IW LTD
Revenue,Head of ASC & Community Wellbeing,5105694435,15.10.2014,Elderly Frail Homecare,Charges from Independent Providers,623.28,CARE FIRST IW LTD
Revenue,Head of ASC & Community Wellbeing,5105694449,15.10.2014,Elderly Frail Homecare,Charges from Independent Providers,200.34,CARE FIRST IW LTD
Revenue,Head of ASC & Community Wellbeing,5105694450,15.10.2014,Elderly Frail Homecare,Charges from Independent Providers,85.33,CARE FIRST IW LTD
Revenue,Head of ASC & Community Wellbeing,5105694451,15.10.2014,Elderly Frail Homecare,Charges from Independent Providers,378.42,CARE FIRST IW LTD
Revenue,Head of ASC & Community Wellbeing,5105694452,15.10.2014,Elderly Frail Homecare,Charges from Independent Providers,140.98,CARE FIRST IW LTD
Revenue,Head of ASC & Community Wellbeing,5105694437,15.10.2014,Elderly Frail Homecare,Charges from Independent Providers,207.76,CARE FIRST IW LTD
Revenue,Head of ASC & Community Wellbeing,5105694443,15.10.2014,Elderly Frail Homecare,Charges from Independent Providers,148.40,CARE FIRST IW LTD
Revenue,Head of ASC & Community Wellbeing,5105694436,15.10.2014,Elderly Frail Homecare,Charges from Independent Providers,"1,016.54",CARE FIRST IW LTD
Revenue,Head of ASC & Community Wellbeing,5105694442,15.10.2014,Elderly Frail Homecare,Charges from Independent Providers,519.40,CARE FIRST IW LTD
Revenue,Head of ASC & Community Wellbeing,5105694441,15.10.2014,Elderly Frail Homecare,Charges from Independent Providers,"1,023.96",CARE FIRST IW LTD
Revenue,Head of ASC & Community Wellbeing,5105694447,15.10.2014,Elderly Frail Homecare,Charges from Independent Providers,207.76,CARE FIRST IW LTD
Revenue,Head of ASC & Community Wellbeing,5105694438,15.10.2014,Elderly Frail Homecare,Charges from Independent Providers,"1,246.56",CARE FIRST IW LTD
Revenue,Head of ASC & Community Wellbeing,5105694440,15.10.2014,Elderly Frail Homecare,Charges from Independent Providers,831.04,CARE FIRST IW LTD
Revenue,Head of ASC & Community Wellbeing,5105694428,15.10.2014,Elderly Frail Homecare,Charges from Independent Providers,934.92,CARE FIRST IW LTD
Revenue,Head of ASC & Community Wellbeing,5105694425,15.10.2014,Elderly Frail Homecare,Charges from Independent Providers,178.08,CARE FIRST IW LTD
Revenue,Head of ASC & Community Wellbeing,5105694427,15.10.2014,Elderly Frail Homecare,Charges from Independent Providers,434.07,CARE FIRST IW LTD
Revenue,Head of ASC & Community Wellbeing,5105694424,15.10.2014,Elderly Frail Homecare,Charges from Independent Providers,207.76,CARE FIRST IW LTD
Revenue,Head of ASC & Community Wellbeing,5105694426,15.10.2014,Elderly Frail Homecare,Charges from Independent Providers,148.40,CARE FIRST IW LTD
Revenue,Head of ASC & Community Wellbeing,5105694423,15.10.2014,Elderly Frail Homecare,Charges from Independent Providers,237.44,CARE FIRST IW LTD
Revenue,Head of ASC & Community Wellbeing,5105694439,15.10.2014,Elderly Frail Homecare,Charges from Independent Providers,"2,077.60",CARE FIRST IW LTD
Revenue,Head of ASC & Community Wellbeing,5105695404,22.10.2014,Elderly Frail Homecare,Charges from Independent Providers,441.49,CARE FIRST IW LTD
Revenue,Head of ASC & Community Wellbeing,5105694448,15.10.2014,Elderly Frail Homecare,Regular Respite Care,118.72,CARE FIRST IW LTD
Revenue,Head of ASC & Community Wellbeing,5105694446,15.10.2014,Elderly Frail Homecare,Regular Respite Care,356.16,CARE FIRST IW LTD
Revenue,Head of ASC & Community Wellbeing,5105694444,15.10.2014,Elderly Frail Homecare,Regular Respite Care,118.72,CARE FIRST IW LTD
Revenue,Head of ASC & Community Wellbeing,5105694420,15.10.2014,Elderly Mentally Ill Homecare,Charges from Independent Providers,"2,136.96",CARE FIRST IW LTD
Revenue,Head of ASC & Community Wellbeing,5105694429,15.10.2014,Elderly Mentally Ill Homecare,Charges from Independent Providers,482.30,CARE FIRST IW LTD
Revenue,Head of ASC & Community Wellbeing,5105694430,15.10.2014,Elderly Mentally Ill Homecare,Regular Respite Care,89.04,CARE FIRST IW LTD
Revenue,Head of ASC & Community Wellbeing,5105695403,22.10.2014,Mental Health Homecare,Charges from Independent Providers,192.92,CARE FIRST IW LTD
Revenue,Head of ASC & Community Wellbeing,5105694445,15.10.2014,Physical Disability Homecare,Charges from Independent Providers,549.08,CARE FIRST IW LTD
Revenue,Head of ASC & Community Wellbeing,5105694422,15.10.2014,Physical Disability Homecare,Regular Respite Care,89.04,CARE FIRST IW LTD
Revenue,Head of ASC & Community Wellbeing,5105694432,15.10.2014,Physical Disability Homecare,Charges from Independent Providers,111.30,CARE FIRST IW LTD
Revenue,Head of ASC & Community Wellbeing,5105694415,15.10.2014,Physical Disability Homecare,Charges from Independent Providers,"1,216.88",CARE FIRST IW LTD
Revenue,Head of ASC & Community Wellbeing,5105696857,31.10.2014,31 Carter Avenue,Professional Subscriptions,660.00,CARE QUALITY COMMISSION
Revenue,Head of ASC & Community Wellbeing,5105696857,31.10.2014,Overbrook,Professional Subscriptions,660.00,CARE QUALITY COMMISSION
Revenue,Head of ASC & Community Wellbeing,5105696857,31.10.2014,Seagulls,Professional Subscriptions,660.00,CARE QUALITY COMMISSION
Revenue,Head of ASC & Community Wellbeing,5105696857,31.10.2014,Plean Dene,Professional Subscriptions,"1,320.00",CARE QUALITY COMMISSION
Revenue,Head of ASC & Community Wellbeing,5105696857,31.10.2014,Saxonbury,Professional Subscriptions,660.00,CARE QUALITY COMMISSION
Revenue,Head of ASC & Community Wellbeing,5105696857,31.10.2014,40 Venner Avenue,Professional Subscriptions,660.00,CARE QUALITY COMMISSION
Revenue,Head of ASC & Community Wellbeing,5105696857,31.10.2014,Highmead,Professional Subscriptions,660.00,CARE QUALITY COMMISSION
Revenue,Head of ASC & Community Wellbeing,5105696857,31.10.2014,The Laurels,Professional Subscriptions,660.00,CARE QUALITY COMMISSION
Revenue,Head of ASC & Community Wellbeing,5105696857,31.10.2014,Community Outreach,Professional Subscriptions,"1,015.00",CARE QUALITY COMMISSION
Revenue,Head of ASC & Community Wellbeing,5105696857,31.10.2014,Community Outreach,Professional Subscriptions,"1,015.00",CARE QUALITY COMMISSION
Revenue,Head of ASC & Community Wellbeing,5105696857,31.10.2014,Adelaide Resource Centre,Professional Subscriptions,"2,640.00",CARE QUALITY COMMISSION
Revenue,Head of ASC & Community Wellbeing,5105696857,31.10.2014,Gouldings Resource Centre,Professional Subscriptions,"4,060.00",CARE QUALITY COMMISSION
Revenue,Head of ASC & Community Wellbeing,5105696857,31.10.2014,Westminster House,Professional Subscriptions,660.00,CARE QUALITY COMMISSION
Revenue,Director of Childrens Services,5105696857,31.10.2014,Outreach Services,Professional Subscriptions,"1,540.00",CARE QUALITY COMMISSION
Revenue,Director of Childrens Services,5105696857,31.10.2014,Outreach Services,Professional Subscriptions,"1,015.00",CARE QUALITY COMMISSION
Revenue,Director of Childrens Services,5105696857,31.10.2014,Outreach Services,Professional Subscriptions,"1,015.00",CARE QUALITY COMMISSION
Revenue,Head of ASC & Community Wellbeing,5105694284,15.10.2014,Elderly Frail Homecare,Charges from Independent Providers,415.52,CAREWATCH (SOUTHAMPTON NEW FOREST & IOW)
Revenue,Head of ASC & Community Wellbeing,5105694281,15.10.2014,Elderly Frail Homecare,Charges from Independent Providers,389.55,CAREWATCH (SOUTHAMPTON NEW FOREST & IOW)
Revenue,Head of ASC & Community Wellbeing,5105694283,15.10.2014,Elderly Frail Homecare,Charges from Independent Providers,563.92,CAREWATCH (SOUTHAMPTON NEW FOREST & IOW)
Revenue,Head of ASC & Community Wellbeing,5105694762,15.10.2014,Elderly Frail Homecare,Charges from Independent Providers,"1,098.16",CAREWATCH (SOUTHAMPTON NEW FOREST & IOW)
